Inv Transaction,Supplier Name,Service Name,Department,Account Description,Redacted/Business Supplier,Paid Date, Amount Paid ,Non Recoverable VAT (Where Applicable),Merchant Category 
5191723,THE CO-OP BANK PLC,Exchequer,Director of Finance,Fees,,02/03/2015,2,,Financial Services
5190397,WILLIAMS WOODWARD LTD,Finance,Director of Finance,Professional Consultancy Services,,02/03/2015,"7,055.00",,Consultancy
5187123,TRINITY MIRROR NORTH PUBLISHING LTD,Governance,Director of Governance,Statutory Advertising,,02/03/2015,"1,050.00",,Public Bodies
5191753,TRINITY MIRROR NORTH PUBLISHING LTD,Governance,Director of Governance,Statutory Advertising,,02/03/2015,"1,450.00",,Public Bodies
460295,FOUR SEASONS HEALTH CARE,Adult Social Care,Director of People,Residential Home Long Stay Fees,,02/03/2015,"8,246.55",,Social Community Care Supplies & Services
5190129,CLOVERLEAF ADVOCACY 2000 LTD,Adult Social Care,Director of People,Professional Services,,02/03/2015,"12,408.30",,Social Community Care Supplies & Services
5190138,CARE IN MIND,Adult Social Care,Director of People,Residential Home Short Stay Fees,,02/03/2015,"3,029.01",,Social & Community
5191340,MRL HEALTHCARE LIMITED,Adult Social Care,Director of People,Homecare Fees,,02/03/2015,"30,000.00",,Social Community Care Supplies & Services
5191442,FIRST COAT DECORATORS,Adult Social Care,Director of People,Fixtures & Fittings Purchase,,02/03/2015,800,,"Works - Construction, Repair & Maintenance"
5191461,CARE UK HOMECARE,Adult Social Care,Director of People,Homecare Fees,,02/03/2015,"113,208.33",,Social Community Care Supplies & Services
5191464,CARE UK HOMECARE,Adult Social Care,Director of People,Homecare Fees,,02/03/2015,"30,076.80",,Social Community Care Supplies & Services
5191723,THE CO-OP BANK PLC,Adult Social Care,Director of People,Miscellaneous Insurance,,02/03/2015,9.66,,Financial Services
5191723,THE CO-OP BANK PLC,Adult Social Care,Director of People,Printing And Stationery,,02/03/2015,61.3,,Financial Services
5191748,VODAFONE,Adult Social Care,Director of People,Telephone Landline Costs,,02/03/2015,21.2,,Information Communication Technology
5191768,DIRECT CARE (NORTH WEST) LTD,Adult Social Care,Director of People,Homecare Fees,,02/03/2015,"6,206.04",,Social Community Care Supplies & Services
5191769,DIRECT CARE (NORTH WEST) LTD,Adult Social Care,Director of People,Homecare Fees,,02/03/2015,"6,507.96",,Social Community Care Supplies & Services
5191775,TAMESIDE ARTS LTD,Adult Social Care,Director of People,Professional Services,,02/03/2015,"1,101.60",,Leisure Services
5191710,ALZHEIMERS SOCIETY,Adults Early Intervention,Director of People,Photo Print Charges,,02/03/2015,670,,Unclassifiable
5176611,YOUTH JUSTICE BOARD,Childrens Services,Director of People,Other Accomodation Related Costs,,02/03/2015,"1,141.00",,Financial Services
5191696, ,Childrens Services,Director of People,Cash Grants,Redacted Supplier,02/03/2015,"3,947.50",,Redacted
5191697, ,Childrens Services,Director of People,Cash Grants,Redacted Supplier,02/03/2015,"3,947.50",,Redacted
5191698, ,Childrens Services,Director of People,Cash Grants,Redacted Supplier,02/03/2015,"3,947.50",,Redacted
5191699, ,Childrens Services,Director of People,Cash Grants,Redacted Supplier,02/03/2015,"3,947.50",,Redacted
5191700, ,Childrens Services,Director of People,Cash Grants,Redacted Supplier,02/03/2015,"3,747.50",,Redacted
5191723,THE CO-OP BANK PLC,Childrens Services,Director of People,Cash Grants,,02/03/2015,223.66,,Financial Services
5190745,EMPRESS CONNECT,Education,Director of People,Security Services,,02/03/2015,"5,226.00",,Information Communication Technology
5191170,LEGGETT PSYCHOLOGY LTD,Education,Director of People,Professional Services,,02/03/2015,"2,000.00",,Education
5191822,HOWARD COOK,Education,Director of People,Professional Services,Business Payment,02/03/2015,680,,Unclassifiable
5191403,NEW CHARTER HOUSING TRUST GROUP,Strategy & Early Intervention,Director of People,Professional Services,,02/03/2015,"203,200.00",,Social Community Care Supplies & Services
5190700,NORTHGATE INFORMATION SOLUTIONS UK LTD,Stronger Communities,Director of People,Computer Hardware Purchase,,02/03/2015,749.53,,Information Communication Technology
5190778,THE FURNISHING SERVICE LTD,Stronger Communities,Director of People,Fixtures & Fittings Purchase,,02/03/2015,"3,623.52",,Furniture
5190779,THE FURNISHING SERVICE LTD,Stronger Communities,Director of People,Fixtures & Fittings Purchase,,02/03/2015,"3,518.46",,Furniture
5190968,PROFILE SECURITY SERVICES LIMITED,Stronger Communities,Director of People,Security Services,,02/03/2015,642.75,,Facilities & Management Services
5191151,ULVERSCROFT LARGE PRINT  BOOKS LTD,Stronger Communities,Director of People,Purchase Books,,02/03/2015,"2,310.01",,Education
5191748,VODAFONE,Stronger Communities,Director of People,Telephone Landline Costs,,02/03/2015,26.14,,Information Communication Technology
5188396,NETCARE EUROPE LTD,Asset & Investment Partnership Management,Director of Place,Communications Equipment,,02/03/2015,572,,Unclassifiable
5188418,NETCARE EUROPE LTD,Asset & Investment Partnership Management,Director of Place,Communications Equipment,,02/03/2015,"1,168.00",,Unclassifiable
5190881,PROFILE SECURITY SERVICES LIMITED,Asset & Investment Partnership Management,Director of Place,Security Services,,02/03/2015,"2,296.76",,Facilities & Management Services
5191570,ASHTON PIONEER HOMES,Development Growth & Investment,Director of Place,Legal Fees,,02/03/2015,"370,000.00",,Housing Management
5191534,ORANGE PCS,Digital Tameside,Director of Place,Mobile Telephones,,02/03/2015,788.13,,Information Communication Technology
5191535,ORANGE PCS,Digital Tameside,Director of Place,Mobile Telephones,,02/03/2015,"3,086.74",,Information Communication Technology
5191537,ORANGE PCS,Digital Tameside,Director of Place,Mobile Telephones,,02/03/2015,"7,773.21",,Information Communication Technology
470605,ACE SAFETY ACADEMY,Environmental Services,Director of Place,Training Course Costs,,02/03/2015,825,,Unclassifiable
470605,AGGREGATE INDUSTRIES UK LIMITED,Environmental Services,Director of Place,Sub-contractor Services,,02/03/2015,"16,822.01",,Highway Equipment & Materials�
470605,AJC ROAD SWEEPERS,Environmental Services,Director of Place,Sub-contractor Services,,02/03/2015,"1,550.00",,Vehicles
470605,ALTITUDE SERVICES,Environmental Services,Director of Place,Sub-contractor Services,,02/03/2015,"18,113.42",,Utilities
470605,EAGLE CIVIL ENGINEERING LTD,Environmental Services,Director of Place,Sub-contractor Services,,02/03/2015,"13,865.18",,Highway Equipment & Materials�
470605,FAIRWAY LANDSCAPES LTD,Environmental Services,Director of Place,Sub-contractor Services,,02/03/2015,"16,978.50",,"Works - Construction, Repair & Maintenance"
470605,P CASEY (ENVIRO) LTD,Environmental Services,Director of Place,Tipping Facility Fees,,02/03/2015,"2,083.20",,Public Bodies
470605,P P O'CONNOR,Environmental Services,Director of Place,Sub-contractor Services,Business Payment,02/03/2015,"67,025.13",,Public Bodies
470605,PG FABRICATIONS,Environmental Services,Director of Place,Sub-contractor Services,,02/03/2015,"3,290.00",,"Works - Construction, Repair & Maintenance"
470605,SECURETASK SECURITY LTD,Environmental Services,Director of Place,Sub-contractor Services,,02/03/2015,"4,782.99",,Facilities & Management Services
470605,VIRIDOR,Environmental Services,Director of Place,Tipping Facility Fees,,02/03/2015,"13,436.16",,Environmental Services
5190783,PROFILE SECURITY SERVICES LIMITED,Environmental Services,Director of Place,Security Services,,02/03/2015,"2,451.02",,Facilities & Management Services
5191595,DEPARTMENT OF ENERGY AND CLIMATE CHANGE,Environmental Services,Director of Place,Other Energy Costs,,02/03/2015,"211,452.00",,Financial Services
5191748,VODAFONE,Environmental Services,Director of Place,Telephone Landline Costs,,02/03/2015,33.66,,Information Communication Technology
460295,TURNING POINT,Public Health,Director of Public Health,Residential Home Long Stay Fees,,02/03/2015,"4,830.00",,Social Community Care Supplies & Services
5185309,DR LYNN OWENS,Public Health,Director of Public Health,Professional Services,Business Payment,02/03/2015,"1,000.00",,Consultancy
5188378,HOMESTART TAMESIDE & OLDHAM,Public Health,Director of Public Health,Professional Services,,02/03/2015,"16,666.67",,Social Community Care Supplies & Services
5188683,DR LYNN OWENS,Public Health,Director of Public Health,Professional Services,Business Payment,02/03/2015,"1,000.00",,Consultancy
5188845,ADDICTION DEPENDENCY SOLUTIONS (ADS),Public Health,Director of Public Health,Professional Services,,02/03/2015,"5,019.19",,Consultancy
5190789,CENTRAL MANCHESTER UNIVERSITY HOSPITAL NHS FT,Public Health,Director of Public Health,Professional Services,,02/03/2015,"29,950.00",,Human Resources
5190916,AGE UK TAMESIDE,Public Health,Director of Public Health,Professional Services,,02/03/2015,"8,000.00",,Environmental Services
5190984,DR LYNN OWENS,Public Health,Director of Public Health,Professional Services,Business Payment,02/03/2015,"1,000.00",,Consultancy
5191381,BROWNS BOOKS FOR STUDENTS,Public Health,Director of Public Health,Text Books Periodicals and Newspapers,,02/03/2015,"11,151.00",,Education
5191667,LIVERPOOL JOHN MOORES UNIVERSITY,Public Health,Director of Public Health,Professional Services,,02/03/2015,"9,816.00",,Unclassifiable
29000023,ALBION MEDICAL PRACTICE,Public Health,Director of Public Health,Local Enhanced Services,,02/03/2015,501,,Consultancy
29000023,BOOTS UK LTD,Public Health,Director of Public Health,Local Enhanced Services,,02/03/2015,718,,Consultancy
29000023,DAVAAR MEDICAL CENTRE,Public Health,Director of Public Health,Local Enhanced Services,,02/03/2015,"1,189.80",,Consultancy
29000023,HAUGHTON-THORNLEY MEDICAL CENTRE,Public Health,Director of Public Health,Local Enhanced Services,,02/03/2015,"1,745.30",,Medical
29000023,LAMBGATES HEALTH CENTRE,Public Health,Director of Public Health,Local Enhanced Services,,02/03/2015,"3,479.90",,Consultancy
29000023,LLOYDS PHARMACY LTD,Public Health,Director of Public Health,Local Enhanced Services,,02/03/2015,872,,Consultancy
29000023,LOCKSIDE MEDICAL CENTRE,Public Health,Director of Public Health,Local Enhanced Services,,02/03/2015,623.4,,Medical
29000023,MANOR HOUSE SURGERY,Public Health,Director of Public Health,Local Enhanced Services,,02/03/2015,"1,271.37",,Consultancy
29000023,MEDICX PHARMACY,Public Health,Director of Public Health,Local Enhanced Services,,02/03/2015,877,,Consultancy
29000023,MEDLOCK VALE MEDICAL PRACTICE,Public Health,Director of Public Health,Local Enhanced Services,,02/03/2015,788.6,,Medical
29000023,SSP HEALTH LTD,Public Health,Director of Public Health,Local Enhanced Services,,02/03/2015,"1,067.00",,Consultancy
29000023,ST ANDREWS HOUSE MEDICAL CENTRE,Public Health,Director of Public Health,Local Enhanced Services,,02/03/2015,"1,109.80",,Consultancy
29000023,THE BROOKE SURGERY,Public Health,Director of Public Health,Local Enhanced Services,,02/03/2015,"1,425.00",,Consultancy
29000023,THE CO-OP PHARMACY,Public Health,Director of Public Health,Local Enhanced Services,,02/03/2015,"1,266.00",,Medical
29000023,WINDMILL MEDICAL PRACTICE,Public Health,Director of Public Health,Local Enhanced Services,,02/03/2015,"1,244.00",,Medical
470605,P P O'CONNOR,Multiple Heads of Service,Multiple Strategic Directorates,Tax Retained Sub Contractors,Business Payment,02/03/2015,"-13,405.03",,Public Bodies
470605,PG FABRICATIONS,Multiple Heads of Service,Multiple Strategic Directorates,Tax Retained Sub Contractors,,02/03/2015,-234,,"Works - Construction, Repair & Maintenance"
5191748,VODAFONE,Multiple Heads of Service,Multiple Strategic Directorates,Telephone Landline Costs,,02/03/2015,970.74,,Information Communication Technology
5191973,DROYLSDEN YOUTH CENTRE,Stronger Communities,Director of People,Furniture And Fittings,,05/03/2015,"1,200.00",,Financial Services
5191977,DROYLSDEN YOUTH CENTRE,Stronger Communities,Director of People,Furniture And Fittings,,05/03/2015,"1,394.95",,Financial Services
5186160,GRANT THORNTON UK LLP,Corporate Costs,Corporate Costs,Audit Commission Fees,,05/03/2015,"4,200.00",,Financial Services
5192153,ROYAL MAIL GROUP PLC,Exchequer,Director of Finance,Postages,,05/03/2015,"1,640.37",,Mail Services
5191978,HARI MARKET NEWS/MR D JOSHI,Finance,Director of Finance,Text Books Periodicals and Newspapers,,05/03/2015,632.5,,Unclassifiable
5190667,XEROX (UK) LIMITED,Governance,Director of Governance,Printing And Stationery,,05/03/2015,"6,588.79",,Information Communication Technology
5191427,HMCTS,Governance,Director of Governance,Court Fees,,05/03/2015,"7,800.00",,Unclassifiable
5191754,EMAP PUBLISHING LTD,Governance,Director of Governance,Conference/Seminar Expenses For Staff,,05/03/2015,"1,400.00",,Unclassifiable
5191859,LEXISNEXIS UK,Governance,Director of Governance,Subscriptions,,05/03/2015,"4,343.98",,Information Communication Technology
5188088,TURNING POINT SERVICES LTD,Adult Social Care,Director of People,Independent Sector Care Fees,,05/03/2015,"46,566.67",,Social Community Care
5190661,NORTH WEST COMMUNITY  SERVICES (GTR M/CR) LTD,Adult Social Care,Director of People,Homecare Fees,,05/03/2015,"12,009.41",,Social Community Care Supplies & Services
5191248,CREATIVE SUPPORT LTD,Adult Social Care,Director of People,Homecare Fees,,05/03/2015,"79,445.25",,Social Community Care Supplies & Services
5191249,CREATIVE SUPPORT LTD,Adult Social Care,Director of People,Homecare Fees,,05/03/2015,"84,992.92",,Social Community Care Supplies & Services
5191250,CREATIVE SUPPORT LTD,Adult Social Care,Director of People,Homecare Fees,,05/03/2015,"124,890.83",,Social Community Care Supplies & Services
5191605, ,Adult Social Care,Director of People,Homecare Fees,Redacted Supplier,05/03/2015,"5,544.84",,Redacted
5191607, ,Adult Social Care,Director of People,Homecare Fees,Redacted Supplier,05/03/2015,"8,265.23",,Redacted
5191608, ,Adult Social Care,Director of People,Homecare Fees,Redacted Supplier,05/03/2015,"4,955.80",,Redacted
5191609, ,Adult Social Care,Director of People,Homecare Fees,Redacted Supplier,05/03/2015,"7,095.61",,Redacted
5191763,ABLE CARE AND SUPPORT SERVICES LTD,Adult Social Care,Director of People,Homecare Fees,,05/03/2015,"1,134.00",,Social Community Care Supplies & Services
5191854,DIRECT CARE (NORTH WEST) LTD,Adult Social Care,Director of People,Homecare Fees,,05/03/2015,"5,505.96",,Social Community Care Supplies & Services
5191855,DIRECT CARE (NORTH WEST) LTD,Adult Social Care,Director of People,Homecare Fees,,05/03/2015,"5,028.00",,Social Community Care Supplies & Services
5191857,ABLE CARE AND SUPPORT SERVICES LTD,Adult Social Care,Director of People,Homecare Fees,,05/03/2015,"2,092.00",,Social Community Care Supplies & Services
5191863,DIRECT CARE (NORTH WEST) LTD,Adult Social Care,Director of People,Homecare Fees,,05/03/2015,"6,951.00",,Social Community Care Supplies & Services
5191865,TAMESIDE ARTS LTD,Adult Social Care,Director of People,Professional Services,,05/03/2015,"1,224.00",,Leisure Services
5191874,DIRECT CARE (NORTH WEST) LTD,Adult Social Care,Director of People,Homecare Fees,,05/03/2015,"6,407.04",,Social Community Care Supplies & Services
5192044, ,Adult Social Care,Director of People,Contribution to Maintenance Fee Income,Redacted Supplier,05/03/2015,531.3,,Redacted
5192109,MEDICO NURSING AND HOMECARE,Adult Social Care,Director of People,Homecare Fees,,05/03/2015,"12,972.00",,Social Community Care Supplies & Services
5189592,TAMESIDE ELDERS ASSOCIATION,Adults Early Intervention,Director of People,Luncheon Club Fees,,05/03/2015,"1,924.11",,Unclassifiable
5191441,ELM FIRST AID TRAINING,Adults Early Intervention,Director of People,Training Course Costs,,05/03/2015,640,,Health
5191426,HMCTS,Childrens Services,Director of People,Court Fees,,05/03/2015,"8,220.00",,Unclassifiable
5191636,YOUTH JUSTICE BOARD,Childrens Services,Director of People,Other Accomodation Related Costs,,05/03/2015,"2,528.00",,Financial Services
5191943,RADIO CABS (ASHTON)LTD,Childrens Services,Director of People,Hired Transport,,05/03/2015,"1,560.00",,Transport
5191970,BROMLEYS SOLICITORS LLP,Childrens Services,Director of People,Legal Fees,,05/03/2015,693.35,,Legal Services
5192282, ,Childrens Services,Director of People,Cash Grants,Redacted Supplier,05/03/2015,"3,947.50",,Redacted
5189595,PENNINE CARE IN PATIENT SERVS PRIORY,Education,Director of People,Professional Child Services,,05/03/2015,"1,575.00",,Social Community Care
5189999,PHONAK UK LIMITED,Education,Director of People,Educational Equipment,,05/03/2015,840,,Social Community Care
5191015,CALLROUND LIMITED,Education,Director of People,Professional Services,,05/03/2015,"2,200.00",,Public Bodies
5191790,RANDSTAD EDUCATION LIMITED,Education,Director of People,Agency Staff,,05/03/2015,840,,Education
5191791,RANDSTAD EDUCATION LIMITED,Education,Director of People,Agency Staff,,05/03/2015,575,,Education
5191794,RANDSTAD EDUCATION LIMITED,Education,Director of People,Agency Staff,,05/03/2015,840,,Education
5191795,RANDSTAD EDUCATION LIMITED,Education,Director of People,Agency Staff,,05/03/2015,"1,050.00",,Education
5191799,RANDSTAD EDUCATION LIMITED,Education,Director of People,Agency Staff,,05/03/2015,"1,050.00",,Education
5191800,RANDSTAD EDUCATION LIMITED,Education,Director of People,Agency Staff,,05/03/2015,575,,Education
5191801,RANDSTAD EDUCATION LIMITED,Education,Director of People,Agency Staff,,05/03/2015,575,,Education
5191802,STREETDANCE AND FITNESS,Education,Director of People,Professional Services,,05/03/2015,540,,Leisure Services
5191803,RANDSTAD EDUCATION LIMITED,Education,Director of People,Agency Staff,,05/03/2015,"1,050.00",,Education
5191804,RANDSTAD EDUCATION LIMITED,Education,Director of People,Agency Staff,,05/03/2015,575,,Education
5191852,LOWE MARTIAL ARTS LTD,Education,Director of People,Professional Sports Coaching Services,,05/03/2015,"1,560.00",,Leisure Services
5191886,CREAMLINE DAIRIES LTD,Education,Director of People,Milk For Under 5 Year Olds,,05/03/2015,505.7,,Catering 
5191919,PENNINE CARE IN PATIENT SERVS PRIORY,Education,Director of People,Voluntary Organisations Fees,,05/03/2015,"1,050.00",,Social Community Care
5191923,PENNINE CARE IN PATIENT SERVS PRIORY,Education,Director of People,Voluntary Organisations Fees,,05/03/2015,"2,100.00",,Social Community Care
5191927,STAMFORD CARS UK LTD,Education,Director of People,Transport Of Pupils,,05/03/2015,"1,369.88",,Transport
5191928,STAMFORD CARS UK LTD,Education,Director of People,Transport Of Pupils,,05/03/2015,"1,458.00",,Transport
5191929,STAMFORD CARS UK LTD,Education,Director of People,Transport Of Pupils,,05/03/2015,"1,458.00",,Transport
5192057,VISION FOR EDUCATION LIMITED,Education,Director of People,Agency Staff,,05/03/2015,900,,Education
5192077,RANDSTAD EDUCATION LIMITED,Education,Director of People,Agency Staff,,05/03/2015,"1,050.00",,Education
5192079,RANDSTAD EDUCATION LIMITED,Education,Director of People,Agency Staff,,05/03/2015,575,,Education
5192081,RANDSTAD EDUCATION LIMITED,Education,Director of People,Agency Staff,,05/03/2015,575,,Education
5192123,RANDSTAD EDUCATION LIMITED,Education,Director of People,Agency Staff,,05/03/2015,575,,Education
5192125,RANDSTAD EDUCATION LIMITED,Education,Director of People,Agency Staff,,05/03/2015,"1,050.00",,Education
5192126,RANDSTAD EDUCATION LIMITED,Education,Director of People,Agency Staff,,05/03/2015,"1,050.00",,Education
5191005,KATHY BRODIE EARLY YEARS TRAINING,Strategy & Early Intervention,Director of People,Training Course Costs,,05/03/2015,"1,200.00",,Human Resources
5190230,BERTRAM LIBRARY SERVICES,Stronger Communities,Director of People,Purchase Books,,05/03/2015,"20,122.02",,Education
5191133,TRINITY COLLEGE LONDON,Stronger Communities,Director of People,Professional Entertainment Services,,05/03/2015,"1,020.00",,Non 3rd Party spend  
5191164,SOLON SECURITY LTD,Stronger Communities,Director of People,General Materials,,05/03/2015,"3,379.00",,Social Community Care Supplies & Services
5191684, ,Stronger Communities,Director of People,Emergency Grant Payments,Redacted Supplier,05/03/2015,500,,Redacted
5191899,MAGNA BOOK LTD,Stronger Communities,Director of People,Purchase Books,,05/03/2015,909.88,,Education
5191921,SALFORD COMMUNITY LEISURE LTD,Stronger Communities,Director of People,Contribution,,05/03/2015,"2,000.00",,Leisure Services
5191997,BIBLIOGRAPHIC DATA SERVICES LTD,Stronger Communities,Director of People,Subscriptions,,05/03/2015,"3,500.00",,Education
5190888,E JORDON REFRIGERATION LIMITED,Asset & Investment Partnership Management,Director of Place,Purchase Heavy Catering Equipment,,05/03/2015,760,,Catering
5190950,ROGER HANNAH & CO,Asset & Investment Partnership Management,Director of Place,Building Maintenance,,05/03/2015,750,,Human Resources
5191079,TRIBAL EDUCATION LTD,Asset & Investment Partnership Management,Director of Place,Computer Software Maintenance Costs,,05/03/2015,"11,330.40",,Education
5190195,IBI GROUP,Development Growth & Investment,Director of Place,Professional Services,,05/03/2015,"1,250.00",,Consultancy
5191039,QUEST MEDIA NETWORKS LTD,Development Growth & Investment,Director of Place,"Marketing, Publicity and Recruitment",,05/03/2015,504,,Unclassifiable
5191635,"GROUNDWORK M/CR,SALFORD,STOCKPORT,TAMESIDE&TRAFFOD",Development Growth & Investment,Director of Place,Professional Services,,05/03/2015,"1,900.00",,"Works - Construction, Repair & Maintenance"
5190466,OSMIS EDUCATION LIMITED,Digital Tameside,Director of Place,Professional Services,,05/03/2015,"3,725.00",,Information Communication Technology
5190980,VIGLEN LTD,Digital Tameside,Director of Place,It Equipment,,05/03/2015,"4,320.00",,Information Communication Technology
470605,W & B FORMWORK CO 1990,Environmental Services,Director of Place,Sub-contractor Services,,05/03/2015,"4,250.00",,"Works - Construction, Repair & Maintenance"
3250497,TERBERG MATEC UK LTD,Environmental Services,Director of Place,General Materials,,05/03/2015,793.18,,Environmental Services
3250498,F & G COMMERCIALS (OLDHAM) LIMITED,Environmental Services,Director of Place,General Materials,,05/03/2015,"3,740.23",,Vehicles
3250498,JOHNSTON SWEEPERS LTD,Environmental Services,Director of Place,General Materials,,05/03/2015,"3,154.47",,Environmental Services
3250498,M T KAILL(PLANT HIRE)LTD,Environmental Services,Director of Place,Additional Hire,,05/03/2015,"2,100.00",,Vehicles
3250498,SPECTRUM PLANT HIRE,Environmental Services,Director of Place,General Materials,,05/03/2015,"1,117.26",,Unclassifiable
5185716,BRENTWOOD MOSS NURSERIES,Environmental Services,Director of Place,Tree Planting Programme,,05/03/2015,848.54,,Horticultural
5189518,J HOPKINS CONTRACTORS  LTD,Environmental Services,Director of Place,HRA Repairs Engineers (External Expenditure),,05/03/2015,"44,184.53",,"Works - Construction, Repair & Maintenance"
5189615,HMS DECORATIVE SURFACING LTD,Environmental Services,Director of Place,Anti-skid Surface Repairs,,05/03/2015,"1,051.67",,Building Construction Materials
5189883,L&R ROADLINES LTD,Environmental Services,Director of Place,Road Markings,,05/03/2015,13.8,,Highway Equipment & Materials�
5189883,L&R ROADLINES LTD,Environmental Services,Director of Place,Roadmarkings Engineers Recharge,,05/03/2015,687.3,,Highway Equipment & Materials�
5190569,RIGBY TAYLOR LTD,Environmental Services,Director of Place,General Materials,,05/03/2015,"1,592.00",,Horticultural
5191415,WOODBROOK STONE SALES LTD,Environmental Services,Director of Place,General Materials,,05/03/2015,697.54,,Horticultural
5191615,WOODBROOK STONE SALES LTD,Environmental Services,Director of Place,General Materials,,05/03/2015,"1,892.34",,Horticultural
5192006,NPOWER LIMITED,Environmental Services,Director of Place,Electricity,,05/03/2015,"1,480.94",,Utilities
5192068,MAMMOTH SIGNS LTD,Environmental Services,Director of Place,Purchase Wheeled Bins,,05/03/2015,500,,"Works - Construction, Repair & Maintenance"
5192103,MONO ALARM INSTALLATIONS LTD.,Environmental Services,Director of Place,Computer Software Maintenance Costs,,05/03/2015,"1,150.00",,Facilities & Management Services
5192206,BANCROFT AMENITIES,Environmental Services,Director of Place,General Materials,,05/03/2015,"4,222.90",,Horticultural
5190137,HEALTH DEVELOPMENT CONSULTANCY LTD,Public Health,Director of Public Health,Professional Services,,05/03/2015,"24,968.75",,Consultancy
5190979,PEEP LEARNING LTD,Public Health,Director of Public Health,Training Course Costs,,05/03/2015,"11,200.00",,Human Resources
5191023,NEO360 LTD,Public Health,Director of Public Health,Computer Software,,05/03/2015,"11,971.84",,Unclassifiable
5191820,DR LYNN OWENS,Public Health,Director of Public Health,Professional Services,Business Payment,05/03/2015,"3,500.00",,Consultancy
5192133,NUDGE ASSOCIATES LIMITED,Public Health,Director of Public Health,Professional Services,,05/03/2015,"1,233.20",,Consultancy
5192135,NUDGE ASSOCIATES LIMITED,Public Health,Director of Public Health,Professional Services,,05/03/2015,"1,233.40",,Consultancy
5192136,NUDGE ASSOCIATES LIMITED,Public Health,Director of Public Health,Professional Services,,05/03/2015,"1,233.40",,Consultancy
5189518,J HOPKINS CONTRACTORS  LTD,Environmental Services,Director of Place,Highway Construction,,05/03/2015,"20,000.00",,"Works - Construction, Repair & Maintenance"
5190539,WILDE CONSULTING ENGINEERS,Environmental Services,Director of Place,Engineers -External,,05/03/2015,"1,225.28",,Consultancy
5190781,ASHTON (OLD) BATHS LIMITED,Environmental Services,Director of Place,Refurbishment Construction Costs,,05/03/2015,"62,041.26",,"Works - Construction, Repair & Maintenance"
5189884,THYSSENKRUPP ENCASA LTD,Development Growth & Investment,Director of Place,Improvement Grants - Final Mandatory,,05/03/2015,"1,795.00",,Social Community Care
5189888,HANDICARE LIMITED,Development Growth & Investment,Director of Place,Improvement Grants - Final Mandatory,,05/03/2015,"3,905.00",,Social Community Care
5191646,D WOODMAN BUILDERS,Development Growth & Investment,Director of Place,Improvement Grants - Final Mandatory,,05/03/2015,"2,460.00",,Financial Services
5191833,MR JAMES TURLEY T/A R TURLEY PLUMBERS,Development Growth & Investment,Director of Place,Improvement Grants - Final Mandatory,,05/03/2015,"3,670.00",,"Works - Construction, Repair & Maintenance"
5191982,HOIST & SHOWER CHAIR CO,Development Growth & Investment,Director of Place,Adaptations - Small Jobs,,05/03/2015,"1,800.00",,Social Community Care Supplies & Services
3250497,TERBERG MATEC UK LTD,Environmental Services,Director of Place,Debits Goods Received,,05/03/2015,447.07,,Environmental Services
3250498,G B OILS TA CARLTON FUELS,Environmental Services,Director of Place,Diesel Fuel,,05/03/2015,"19,458.35",,Utilities
3250498,MORRIS LUBRICANTS,Environmental Services,Director of Place,Debits Goods Received,,05/03/2015,639.61,,Unclassifiable
5189518,J HOPKINS CONTRACTORS  LTD,Multiple Heads of Service,Multiple Strategic Directorates,Highway Construction,,05/03/2015,"20,000.00",,"Works - Construction, Repair & Maintenance"
5190176,COOLSPIRIT LTD,Multiple Heads of Service,Multiple Strategic Directorates,Communications Equipment,,05/03/2015,"18,821.02",,Information Communication Technology
5190539,WILDE CONSULTING ENGINEERS,Multiple Heads of Service,Multiple Strategic Directorates,Engineers -External,,05/03/2015,"4,444.15",,Consultancy
5190630,PAULS TOOL EMPORIUM LTD,Multiple Heads of Service,Multiple Strategic Directorates,Horticultural Equipment,,05/03/2015,518.98,,Building Construction Materials
5191875,CYCLESCHEME LTD,Multiple Heads of Service,Multiple Strategic Directorates,General Equipment Purchase,,05/03/2015,"1,233.33",,Unclassifiable
5191983,TRAVELERS INSURANCE COMPANY LTD,Multiple Heads of Service,Multiple Strategic Directorates,Reimbursement Paid To Insurers,,05/03/2015,"43,352.00",,Financial Services
5192083,HMCTS,Multiple Heads of Service,Multiple Strategic Directorates,Court Fees,,05/03/2015,"1,640.00",,Unclassifiable
5190472,GRANT THORNTON UK LLP,Corporate Costs,Corporate Costs,Audit Commission Fees,,09/03/2015,"51,697.00",,Financial Services
5191258,WILLIAMS WOODWARD LTD,Finance,Director of Finance,Professional Consultancy Services,,09/03/2015,"2,905.00",,CONSULTANCY
5187446,TRINITY MIRROR NORTH PUBLISHING LTD,Governance,Director of Governance,Statutory Advertising,,09/03/2015,"2,105.00",,Public Bodies
5188888,NWA SOCIAL & MARKET RESEARCH LIMITED,Governance,Director of Governance,Subscriptions,,09/03/2015,"3,493.00",,Facilities & Management Services
5191821,MRL HEALTHCARE LIMITED,Adult Social Care,Director of People,Homecare Fees,,09/03/2015,"30,000.00",,Social Community Care Supplies & Services
5191880,DIRECT CARE (NORTH WEST) LTD,Adult Social Care,Director of People,Homecare Fees,,09/03/2015,"6,693.96",,Social Community Care Supplies & Services
5192320,COMFORT CALL LIMITED,Adult Social Care,Director of People,Homecare Fees,,09/03/2015,"32,183.64",,Medical
5192378,MEDICO NURSING AND HOMECARE,Adult Social Care,Director of People,Homecare Fees,,09/03/2015,"13,917.00",,Social Community Care Supplies & Services
5192513,GREENSCAPE,Adult Social Care,Director of People,Tree Planting Programme,,09/03/2015,663.69,,"Works - Construction, Repair & Maintenance"
5192535,SHERIDAN LIFTS LIMITED,Adult Social Care,Director of People,Building Repairs,,09/03/2015,"1,992.00",,Building Construction
5192540,MERIDIAN HEALTHCARE LTD,Adult Social Care,Director of People,Day Centre Fees,,09/03/2015,"20,768.00",,Social Community Care Supplies & Services
5192547,CREATIVE SUPPORT LTD,Adult Social Care,Director of People,Residential Home Long Stay Fees,,09/03/2015,"1,661.52",,Social Community Care Supplies & Services
5192550,MEDICO NURSING AND HOMECARE,Adult Social Care,Director of People,Homecare Fees,,09/03/2015,"13,325.00",,Social Community Care Supplies & Services
5192653, ,Adult Social Care,Director of People,Day Care Fees,Redacted Supplier,09/03/2015,699.63,,Redacted
5192664, ,Adult Social Care,Director of People,Day Care Fees,Redacted Supplier,09/03/2015,"1,205.44",,Redacted
5192677, ,Adult Social Care,Director of People,Day Care Fees,Redacted Supplier,09/03/2015,540.52,,Redacted
5192678, ,Adult Social Care,Director of People,Residential Home Short Stay Fees,Redacted Supplier,09/03/2015,883.26,,Redacted
5192265,TONGUE TIED (MANCHESTER) LTD,Childrens Services,Director of People,Professional Interpreter Services,,09/03/2015,"1,709.40",,CONSULTANCY
5192266,TONGUE TIED (MANCHESTER) LTD,Childrens Services,Director of People,Professional Interpreter Services,,09/03/2015,"1,717.75",,CONSULTANCY
5187247,BC EDUCATION LTD,Education,Director of People,Professional Consultancy Services,,09/03/2015,"4,250.00",,Human Resources
5191832,INSPIREDSPACES TAMESIDE LTD,Education,Director of People,Professional Architectural & Surveying Services,,09/03/2015,"26,555.00",,Consultancy
5191905,GREG EGAN,Education,Director of People,Additional Hire,Business Payment,09/03/2015,"3,000.00",,Transport
5192448,MR JOHN DELANEY,Education,Director of People,Transport Of Pupils,Business Payment,09/03/2015,"1,500.00",,Transport
5192449,MR JOHN DELANEY,Education,Director of People,Transport Of Pupils,Business Payment,09/03/2015,"1,500.00",,Transport
5192450,MR JOHN DELANEY,Education,Director of People,Transport Of Pupils,Business Payment,09/03/2015,"1,350.00",,Transport
5192452,MR JOHN DELANEY,Education,Director of People,Transport Of Pupils,Business Payment,09/03/2015,"1,350.00",,Transport
5192476,DAVID CROZIER,Education,Director of People,Transport Of Post 16 Pupils,Business Payment,09/03/2015,"1,440.00",,Unclassifiable
5192477,GLM ACCESSIBLE TRANSPORT,Education,Director of People,Transport Of Pupils,,09/03/2015,"1,120.00",,Transport
5192478,ROYALE MINICOACHES,Education,Director of People,Transport Of Pupils,,09/03/2015,"1,500.00",,Transport
5192479,GLM ACCESSIBLE TRANSPORT,Education,Director of People,Transport Of Pupils,,09/03/2015,980,,Transport
5192480,G M GREEN,Education,Director of People,Transport Of Pupils,Business Payment,09/03/2015,980,,Unclassifiable
5192481,GLM ACCESSIBLE TRANSPORT,Education,Director of People,Transport Of Pupils,,09/03/2015,"1,050.00",,Transport
5192482,DAVID CROZIER,Education,Director of People,Transport Of Pupils,Business Payment,09/03/2015,"1,320.00",,Unclassifiable
5192483,DAVID CROZIER,Education,Director of People,Transport Of Pupils,Business Payment,09/03/2015,"1,140.00",,Unclassifiable
5192485,DAVID CROZIER,Education,Director of People,Transport Of Pupils,Business Payment,09/03/2015,"1,440.00",,Unclassifiable
5192486,GLENN CAWTHORN,Education,Director of People,Transport Of Pupils,Business Payment,09/03/2015,885,,Transport
5192487,DAVID CROZIER,Education,Director of People,Transport Of Pupils,Business Payment,09/03/2015,"1,665.00",,Unclassifiable
5192635,LIME TRAVEL,Education,Director of People,Transport Of Pupils,,09/03/2015,"1,365.00",,Human Resources
5192639,LIME TRAVEL,Education,Director of People,Transport Of Pupils,,09/03/2015,"1,537.50",,Human Resources
5192645,LIME TRAVEL,Education,Director of People,Transport Of Pupils,,09/03/2015,"1,297.50",,Human Resources
5192650,LIME TRAVEL,Education,Director of People,Transport Of Pupils,,09/03/2015,"1,365.00",,Human Resources
5192655,LIME TRAVEL,Education,Director of People,Transport Of Pupils,,09/03/2015,"1,365.00",,Human Resources
5192663,B MORRELL,Education,Director of People,Transport Of Pupils,Business Payment,09/03/2015,"1,500.00",,Social Community Care
5192538,YMCA FAIRTMORNE MANOR,Strategy & Early Intervention,Director of People,"Activity (Materials, Trips)",,09/03/2015,"1,976.00",,Public Bodies
5192658,LIME TRAVEL,Strategy & Early Intervention,Director of People,Transport Of Pupils,,09/03/2015,"2,461.50",,Human Resources
5192276,OVERDRIVE,Stronger Communities,Director of People,Purchase Books,,09/03/2015,"11,253.02",,Unclassifiable
5192455,HYDE UNITED JUNIOR FOOTBALL CLUB,Stronger Communities,Director of People,Professional Entertainment Services,,09/03/2015,"2,000.00",,Charities and Voluntary Organisations
5192591,TAMESIDE COLLEGE,Stronger Communities,Director of People,Professional Entertainment Services,,09/03/2015,"5,000.00",,Education
5192768,PAYPOINT COLLECTIONS LTD,Stronger Communities,Director of People,Emergency Grant Payments,,09/03/2015,"1,452.00",,Unclassifiable
5186286,ADT FIRE & SECURITY,Asset & Investment Partnership Management,Director of Place,Security Services,,09/03/2015,600,,Facilities & Management Services
5186287,ADT FIRE & SECURITY,Asset & Investment Partnership Management,Director of Place,Security Services,,09/03/2015,506,,Facilities & Management Services
5191718,NPOWER LIMITED,Asset & Investment Partnership Management,Director of Place,Electricity,,09/03/2015,"3,387.59",,Utilities
5191720,NPOWER LIMITED,Asset & Investment Partnership Management,Director of Place,Electricity,,09/03/2015,927.2,,Utilities
5191724,NPOWER LIMITED,Asset & Investment Partnership Management,Director of Place,Electricity,,09/03/2015,"1,122.80",,Utilities
5191725,NPOWER LIMITED,Asset & Investment Partnership Management,Director of Place,Electricity,,09/03/2015,"1,094.48",,Utilities
5191727,NPOWER LIMITED,Asset & Investment Partnership Management,Director of Place,Electricity,,09/03/2015,572.99,,Utilities
5191728,NPOWER LIMITED,Asset & Investment Partnership Management,Director of Place,Electricity,,09/03/2015,"21,443.55",,Utilities
5191729,NPOWER LIMITED,Asset & Investment Partnership Management,Director of Place,Electricity,,09/03/2015,"2,453.47",,Utilities
5191730,NPOWER LIMITED,Asset & Investment Partnership Management,Director of Place,Electricity,,09/03/2015,613.65,,Utilities
5191732,NPOWER LIMITED,Asset & Investment Partnership Management,Director of Place,Electricity,,09/03/2015,"1,321.86",,Utilities
5191733,NPOWER LIMITED,Asset & Investment Partnership Management,Director of Place,Electricity,,09/03/2015,"1,630.37",,Utilities
5191734,NPOWER LIMITED,Asset & Investment Partnership Management,Director of Place,Electricity,,09/03/2015,544.29,,Utilities
5191735,NPOWER LIMITED,Asset & Investment Partnership Management,Director of Place,Electricity,,09/03/2015,"1,882.60",,Utilities
5191739,NPOWER LIMITED,Asset & Investment Partnership Management,Director of Place,Electricity,,09/03/2015,569.44,,Utilities
5191742,NPOWER LIMITED,Asset & Investment Partnership Management,Director of Place,Electricity,,09/03/2015,"2,291.65",,Utilities
5191832,INSPIREDSPACES TAMESIDE LTD,Asset & Investment Partnership Management,Director of Place,Agency Staff,,09/03/2015,"38,551.00",,Consultancy
5191832,INSPIREDSPACES TAMESIDE LTD,Asset & Investment Partnership Management,Director of Place,Refreshments,,09/03/2015,"126,818.13",,Consultancy
5191834,INSPIREDSPACES TAMESIDE (PROJECTCO2) LTD,Asset & Investment Partnership Management,Director of Place,Free School Meal Costs,,09/03/2015,"14,249.55",,"Works - Construction, Repair & Maintenance"
5191834,INSPIREDSPACES TAMESIDE (PROJECTCO2) LTD,Asset & Investment Partnership Management,Director of Place,Professional Services,,09/03/2015,"3,080.56",,"Works - Construction, Repair & Maintenance"
5191834,INSPIREDSPACES TAMESIDE (PROJECTCO2) LTD,Asset & Investment Partnership Management,Director of Place,Refreshments,,09/03/2015,"1,903.28",,"Works - Construction, Repair & Maintenance"
5191834,INSPIREDSPACES TAMESIDE (PROJECTCO2) LTD,Asset & Investment Partnership Management,Director of Place,Unitary Charge Payments,,09/03/2015,"813,586.36",,"Works - Construction, Repair & Maintenance"
5191834,INSPIREDSPACES TAMESIDE (PROJECTCO2) LTD,Asset & Investment Partnership Management,Director of Place,Utilities,,09/03/2015,"50,759.93",,"Works - Construction, Repair & Maintenance"
5191869,CBRE SPUK II (NO17) LTD,Asset & Investment Partnership Management,Director of Place,Non-Authority Accommodation Rental,,09/03/2015,"1,516.86",,Non 3rd Party spend  
5191870,CBRE SPUK II (NO17) LTD,Asset & Investment Partnership Management,Director of Place,Non-Authority Accommodation Rental,,09/03/2015,"4,750.00",,Non 3rd Party spend  
5191910,CORONA ENERGY RETAIL 4 LIMITED,Asset & Investment Partnership Management,Director of Place,Gas,,09/03/2015,"1,490.32",,Utilities
5191913,CORONA ENERGY RETAIL 4 LIMITED,Asset & Investment Partnership Management,Director of Place,Gas,,09/03/2015,"8,367.35",,Utilities
5191914,CORONA ENERGY RETAIL 4 LIMITED,Asset & Investment Partnership Management,Director of Place,Gas,,09/03/2015,606.22,,Utilities
5191916,CORONA ENERGY RETAIL 4 LIMITED,Asset & Investment Partnership Management,Director of Place,Gas,,09/03/2015,659.98,,Utilities
5191941,NPOWER LIMITED,Asset & Investment Partnership Management,Director of Place,Electricity,,09/03/2015,"7,067.94",,Utilities
5191947,NPOWER LIMITED,Asset & Investment Partnership Management,Director of Place,Electricity,,09/03/2015,859.07,,Utilities
5191948,NPOWER LIMITED,Asset & Investment Partnership Management,Director of Place,Electricity,,09/03/2015,502.34,,Utilities
5191949,NPOWER LIMITED,Asset & Investment Partnership Management,Director of Place,Electricity,,09/03/2015,947.29,,Utilities
5191953,NPOWER LIMITED,Asset & Investment Partnership Management,Director of Place,Electricity,,09/03/2015,"1,567.64",,Utilities
5191956,NPOWER LIMITED,Asset & Investment Partnership Management,Director of Place,Electricity,,09/03/2015,762.38,,Utilities
5191964,NPOWER LIMITED,Asset & Investment Partnership Management,Director of Place,Electricity,,09/03/2015,880.61,,Utilities
5191967,NPOWER LIMITED,Asset & Investment Partnership Management,Director of Place,Electricity,,09/03/2015,785.58,,Utilities
5191968,NPOWER LIMITED,Asset & Investment Partnership Management,Director of Place,Electricity,,09/03/2015,"1,425.75",,Utilities
5191969,NPOWER LIMITED,Asset & Investment Partnership Management,Director of Place,Electricity,,09/03/2015,768.42,,Utilities
5191971,NPOWER LIMITED,Asset & Investment Partnership Management,Director of Place,Electricity,,09/03/2015,"1,755.32",,Utilities
5191972,NPOWER LIMITED,Asset & Investment Partnership Management,Director of Place,Electricity,,09/03/2015,749.16,,Utilities
5191974,NPOWER LIMITED,Asset & Investment Partnership Management,Director of Place,Electricity,,09/03/2015,"2,351.50",,Utilities
5192005,NPOWER LIMITED,Asset & Investment Partnership Management,Director of Place,Electricity,,09/03/2015,852.89,,Utilities
5192018,SCOTTISH POWER,Asset & Investment Partnership Management,Director of Place,Electricity,,09/03/2015,"1,661.80",,Utilities
5192086,CORONA ENERGY RETAIL 4 LIMITED,Asset & Investment Partnership Management,Director of Place,Gas,,09/03/2015,832.96,,Utilities
5192087,CORONA ENERGY RETAIL 4 LIMITED,Asset & Investment Partnership Management,Director of Place,Gas,,09/03/2015,973.82,,Utilities
5192092,CORONA ENERGY RETAIL 4 LIMITED,Asset & Investment Partnership Management,Director of Place,Gas,,09/03/2015,"1,166.64",,Utilities
5192093,CORONA ENERGY RETAIL 4 LIMITED,Asset & Investment Partnership Management,Director of Place,Gas,,09/03/2015,661.13,,Utilities
5192094,CORONA ENERGY RETAIL 4 LIMITED,Asset & Investment Partnership Management,Director of Place,Gas,,09/03/2015,"1,109.44",,Utilities
5192285,INSPIREDSPACES TAMESIDE LTD,Asset & Investment Partnership Management,Director of Place,Utilities,,09/03/2015,"198,878.50",,Consultancy
5192446,MOSSLEY PRIVATE HIRE,Asset & Investment Partnership Management,Director of Place,Hired Transport,,09/03/2015,675,,Transport
470606,AMBERON LTD,Environmental Services,Director of Place,Additional Hire,,09/03/2015,"3,342.86",,Highway Equipment & Materials�
470606,CBS (NORTH WEST) LTD,Environmental Services,Director of Place,Sub-contractor Services,,09/03/2015,"36,538.84",,"Works - Construction, Repair & Maintenance"
470606,ELLIOTT GROUP LTD,Environmental Services,Director of Place,Additional Hire,,09/03/2015,"1,119.74",,"Works - Construction, Repair & Maintenance"
470606,ELLIOTT GROUP LTD,Environmental Services,Director of Place,General Materials,,09/03/2015,63.96,,"Works - Construction, Repair & Maintenance"
470606,KENNY BROTHERS,Environmental Services,Director of Place,Sub-contractor Services,,09/03/2015,"10,611.32",,Non 3rd Party spend  
470606,MATHER AND STUART GENERATORS LTD,Environmental Services,Director of Place,General Materials,,09/03/2015,616,,Horticultural
470606,NEW CHARTER BUILD CO LTD,Environmental Services,Director of Place,Sub-contractor Services,,09/03/2015,"2,561.31",,"Works - Construction, Repair & Maintenance"
470606,PG FABRICATIONS,Environmental Services,Director of Place,Sub-contractor Services,,09/03/2015,"1,072.00",,"Works - Construction, Repair & Maintenance"
470606,REACTEC LIMITED,Environmental Services,Director of Place,General Materials,,09/03/2015,"8,136.00",,"Works - Construction, Repair & Maintenance"
5191297,KELTIC LTD,Environmental Services,Director of Place,Protective Clothing,,09/03/2015,668.45,,Clothing
5192210,PG FABRICATIONS,Environmental Services,Director of Place,General Materials,,09/03/2015,"2,720.00",,"Works - Construction, Repair & Maintenance"
5192211,PG FABRICATIONS,Environmental Services,Director of Place,General Materials,,09/03/2015,760,,"Works - Construction, Repair & Maintenance"
5192443,MOSSLEY PRIVATE HIRE,Environmental Services,Director of Place,Hired Transport,,09/03/2015,"1,180.00",,Transport
5192447,MOSSLEY PRIVATE HIRE,Environmental Services,Director of Place,Hired Transport,,09/03/2015,"1,256.00",,Transport
5192457,MR JOHN DELANEY,Environmental Services,Director of Place,Hired Transport,Business Payment,09/03/2015,"1,700.00",,Transport
5192459,STAMFORD CARS UK LTD,Environmental Services,Director of Place,Hired Transport,,09/03/2015,600,,Transport
5192462,STAMFORD CARS UK LTD,Environmental Services,Director of Place,Hired Transport,,09/03/2015,720,,Transport
5192467,STAMFORD CARS UK LTD,Environmental Services,Director of Place,Hired Transport,,09/03/2015,"1,100.00",,Transport
5192488,DAVID CROZIER,Environmental Services,Director of Place,Hired Transport,Business Payment,09/03/2015,600,,Unclassifiable
5192491,PARKLANE,Environmental Services,Director of Place,Hired Transport,,09/03/2015,"1,920.00",,Transport
5192492,J & R TAXIS LTD,Environmental Services,Director of Place,Hired Transport,,09/03/2015,"2,240.00",,Transport
5192493,PARKLANE,Environmental Services,Director of Place,Hired Transport,,09/03/2015,"1,584.00",,Transport
5192536,REDDIPAK LIMITED,Environmental Services,Director of Place,General Materials,,09/03/2015,"1,048.00",,Unclassifiable
5192667,B MORRELL,Environmental Services,Director of Place,Hired Transport,Business Payment,09/03/2015,"1,060.00",,Social Community Care
5192671,FLETCHER STEWART(STOCKPORT)LTD,Environmental Services,Director of Place,General Materials,,09/03/2015,"2,380.02",,Horticultural
5192698,GREENSCAPE,Environmental Services,Director of Place,Agency Staff,,09/03/2015,563.49,,"Works - Construction, Repair & Maintenance"
5185233,VIRGIN BLACKPOOL,Public Health,Director of Public Health,Professional Services,,09/03/2015,"2,075.00",,Consultancy
5187755,VIRGIN BLACKPOOL,Public Health,Director of Public Health,Professional Services,,09/03/2015,"1,434.00",,Consultancy
5192331,NUDGE ASSOCIATES LIMITED,Public Health,Director of Public Health,Professional Services,,09/03/2015,"6,167.00",,Consultancy
5191832,INSPIREDSPACES TAMESIDE LTD,Asset & Investment Partnership Management,Director of Place,Refurbish Accommodation Works,,09/03/2015,"139,367.48",,Consultancy
5191832,INSPIREDSPACES TAMESIDE LTD,Asset & Investment Partnership Management,Director of Place,Refurbishment Construction Costs,,09/03/2015,"237,704.32",,Consultancy
5189168,GENECON,Environmental Services,Director of Place,Consultancies,,09/03/2015,"17,814.00",,Public Bodies
5186572,HUBER CAR PARK SYSTEMS INTERNATIONAL GMBH,Development Growth & Investment,Director of Place,Engineers -External,,09/03/2015,"342,009.01",,"Works - Construction, Repair & Maintenance"
5192625,MR JAMES TURLEY T/A R TURLEY PLUMBERS,Development Growth & Investment,Director of Place,Improvement Grants - Final Mandatory,,09/03/2015,"4,290.00",,"Works - Construction, Repair & Maintenance"
470606,PG FABRICATIONS,Multiple Heads of Service,Multiple Strategic Directorates,Tax Retained Sub Contractors,,09/03/2015,-64.32,,"Works - Construction, Repair & Maintenance"
5192785,ROYAL MAIL GROUP PLC,Exchequer,Director of Finance,Postages,,11/03/2015,"17,270.99",,Mail Services
5177055,TAMESIDE COLLEGE,Finance,Director of Finance,Training Course Costs,,11/03/2015,"1,600.00",,Education
5192819,MANCHESTER CITY COUNCIL,Finance,Director of Finance,General Expenditure,,11/03/2015,"1,207.00",,Financial Services
5189808,THOMSON REUTERS LEGAL LTD,Governance,Director of Governance,Professional Services,,11/03/2015,580.19,,Legal Services
5189911,COMPLETE BACKGROUND SCREENING LTD,Governance,Director of Governance,Professional Services,,11/03/2015,"1,985.60",,Unclassifiable
5191848,TAME VALLEY REGENERATION CONSORTIUM LTD,Governance,Director of Governance,Professional Entertainment Services,,11/03/2015,"20,000.00",,CONSULTANCY
5192205,COMPLETE BACKGROUND SCREENING LTD,Governance,Director of Governance,Professional Services,,11/03/2015,"3,101.50",,Unclassifiable
5192207,COMPLETE BACKGROUND SCREENING LTD,Governance,Director of Governance,Professional Services,,11/03/2015,"3,015.00",,Unclassifiable
5192369,DBS,Governance,Director of Governance,Professional Consultancy Services,,11/03/2015,"1,980.00",,Human Resources
5192820,MANCHESTER CITY COUNCIL,Governance,Director of Governance,Postages,,11/03/2015,"22,976.89",,Financial Services
5192852,AMHPA,Governance,Director of Governance,Subscriptions,,11/03/2015,800,,Medical
5190255,PENNINE CARE NHS TRUST,Adult Social Care,Director of People,Professional Services,,11/03/2015,"7,296.00",,Social Community Care Supplies & Services
5192155,JULIE CARTER,Adult Social Care,Director of People,Professional Interpreter Services,Business Payment,11/03/2015,"1,092.50",,Unclassifiable
5192756,DOMAIN CARE NORTH WEST LTD,Adult Social Care,Director of People,Homecare Fees,,11/03/2015,"1,440.00",,Social Community Care
5192757,DOMAIN CARE NORTH WEST LTD,Adult Social Care,Director of People,Homecare Fees,,11/03/2015,799.5,,Social Community Care
5192763,DOMAIN CARE NORTH WEST LTD,Adult Social Care,Director of People,Homecare Fees,,11/03/2015,781.54,,Social Community Care
5192774,CARE UK HOMECARE,Adult Social Care,Director of People,Homecare Fees,,11/03/2015,"5,309.16",,Social Community Care Supplies & Services
5192784,NEW CHARTER HOUSING TRUST GROUP,Adult Social Care,Director of People,Non-Authority Accommodation Rental,,11/03/2015,"27,968.54",,Social Community Care Supplies & Services
5192900,TAMESIDE ARTS LTD,Adult Social Care,Director of People,Professional Services,,11/03/2015,"1,224.00",,Leisure Services
5192949,"TAMESIDE, OLDHAM AND GLOSSOP MIND",Adult Social Care,Director of People,Professional Services,,11/03/2015,"4,926.60",,Social Community Care Supplies & Services
5192954,DOMAIN CARE NORTH WEST LTD,Adult Social Care,Director of People,Homecare Fees,,11/03/2015,"2,140.00",,Social Community Care
5192967,CARE IN BATHING LIMITED,Adult Social Care,Director of People,Adaptations - Jobs,,11/03/2015,713.54,,Medical
5189487,AGE UK TAMESIDE,Adults Early Intervention,Director of People,Professional Services,,11/03/2015,"19,166.67",,Environmental Services
5192680,CARERS ACTION GROUP (TAMESIDE),Adults Early Intervention,Director of People,Contributions,,11/03/2015,"5,000.00",,Charities and Voluntary Organisations
5192762,BOLTON MBC,Childrens Services,Director of People,Contribution,,11/03/2015,"2,500.00",,Human Resources
5192869,RADIO CABS (ASHTON)LTD,Childrens Services,Director of People,Transport Of Pupils,,11/03/2015,560.7,,Transport
5192872,RADIO CABS (ASHTON)LTD,Childrens Services,Director of People,Transport Of Pupils,,11/03/2015,684.6,,Transport
5192995, ,Childrens Services,Director of People,Cash Grants,Redacted Supplier,11/03/2015,"3,947.50",,Redacted
5190624,VILLAGE URBAN RESORTS,Education,Director of People,Room Hire,,11/03/2015,892.92,,Human Resources
5192779,JULIE BURNELL,Education,Director of People,Professional Services,Business Payment,11/03/2015,"3,200.00",,Education
5192780,JULIE BURNELL,Education,Director of People,Professional Services,Business Payment,11/03/2015,600,,Education
5192855,DR RICHARD SKELTON,Education,Director of People,Professional Services,Business Payment,11/03/2015,"4,400.00",,Medical
5192862,NORTHWEST TELECOM,Education,Director of People,Telephone Landline Costs,,11/03/2015,995,,Unclassifiable
5192987,HOWARD COOK,Education,Director of People,Professional Services,Business Payment,11/03/2015,680,,Unclassifiable
5192910,SOCIAL CARE NETWORK SOLUTIONS LTD,Strategy & Early Intervention,Director of People,Telephone Equipment Repairs & Maintenance,,11/03/2015,679.4,,Information Communication Technology
5171871,ACCENT,Stronger Communities,Director of People,Supporting People Gross Contract,,11/03/2015,"2,138.25",,Housing Management
5171873,ACCENT,Stronger Communities,Director of People,Supporting People Gross Contract,,11/03/2015,"2,162.25",,Housing Management
5171875,ACCENT,Stronger Communities,Director of People,Supporting People Gross Contract,,11/03/2015,"2,162.25",,Housing Management
5171878,ACCENT,Stronger Communities,Director of People,Supporting People Gross Contract,,11/03/2015,"2,138.25",,Housing Management
5183055,ACCENT,Stronger Communities,Director of People,Supporting People Gross Contract,,11/03/2015,"2,138.25",,Housing Management
5183056,ACCENT,Stronger Communities,Director of People,Supporting People Gross Contract,,11/03/2015,"2,162.25",,Housing Management
5188530,ANVIL MASTERS,Stronger Communities,Director of People,Security Equipment,,11/03/2015,763.5,,Building Construction Materials
5191613,THE FURNISHING SERVICE LTD,Stronger Communities,Director of People,Fixtures & Fittings Purchase,,11/03/2015,547.8,,Furniture
5192711,HITESH PAREKH,Stronger Communities,Director of People,Other Accomodation Related Costs,Business Payment,11/03/2015,500,,Unclassifiable
5192712,SMALL THINGS CREATIVE PROJECTS CIC,Stronger Communities,Director of People,Professional Entertainment Services,,11/03/2015,"3,000.00",,Unclassifiable
5192829,PROFILE SECURITY SERVICES LIMITED,Asset & Investment Partnership Management,Director of Place,Security Services,,11/03/2015,"2,294.62",,Facilities & Management Services
5192817,THIRTYNINE,Development Growth & Investment,Director of Place,Legal Fees,,11/03/2015,600,,Legal Services
5186438,REDDIPAK LIMITED,Environmental Services,Director of Place,General Materials,,11/03/2015,628.8,,Unclassifiable
5187056,TRINITY MIRROR NORTH PUBLISHING LTD,Environmental Services,Director of Place,Statutory Advertising,,11/03/2015,589.76,,Public Bodies
5190668,PHS GROUP PLC,Environmental Services,Director of Place,Sub-contractor Services,,11/03/2015,"1,108.86",,Cleaning & Janitorial
5190969,CENTRELEASE LIMITED,Environmental Services,Director of Place,General Lease,,11/03/2015,"8,017.21",,Non 3rd Party spend  
5192362,BROMLEYS SOLICITORS LLP,Environmental Services,Director of Place,Fees,,11/03/2015,825,,Legal Services
5192772,TAMESIDE RADIO,Environmental Services,Director of Place,Statutory Advertising,,11/03/2015,560,,Facilities & Management Services
5192776,QUEST MEDIA NETWORKS LTD,Environmental Services,Director of Place,"Marketing, Publicity and Recruitment",,11/03/2015,620,,Unclassifiable
5186708,STOCKPORT NHS FOUNDATION TRUST,Public Health,Director of Public Health,Professional Interpreter Services,,11/03/2015,"4,996.88",,Medical
5188947,UNIVERSITY HOSPITAL OF SOUTH MANCHESTER,Public Health,Director of Public Health,Professional Services,,11/03/2015,576.29,,Unclassifiable
5189068,NHS GREATER MANCHESTER CSU,Public Health,Director of Public Health,Professional Services,,11/03/2015,"3,026.72",,Public Bodies
5190465,ST HELENS AND KNOWSLEY HOSPITALS NHS TRUST,Public Health,Director of Public Health,Professional Services,,11/03/2015,639,,Consultancy
5191755,UNIVERSITY HOSPITAL OF SOUTH MANCHESTER,Public Health,Director of Public Health,Professional Services,,11/03/2015,"2,378.25",,Unclassifiable
5192152,VIRGIN CARE SERVICES - NON SURREY,Public Health,Director of Public Health,Professional Services,,11/03/2015,"1,655.00",,Consultancy
5192604,STOCKPORT NHS FOUNDATION TRUST,Public Health,Director of Public Health,Professional Services,,11/03/2015,"1,719.20",,Medical
5192924,ACORN RECOVERY PROJECTS,Public Health,Director of Public Health,Professional Services ,,11/03/2015,"2,192.14",,Facilities & Management Services
5192925,ACORN RECOVERY PROJECTS,Public Health,Director of Public Health,Professional Services ,,11/03/2015,"1,644.11",,Facilities & Management Services
5192927,ACORN RECOVERY PROJECTS,Public Health,Director of Public Health,Professional Services ,,11/03/2015,"1,644.11",,Facilities & Management Services
5192930,ACORN RECOVERY PROJECTS,Public Health,Director of Public Health,Professional Services ,,11/03/2015,"1,644.11",,Facilities & Management Services
5192931,ACORN RECOVERY PROJECTS,Public Health,Director of Public Health,Professional Services ,,11/03/2015,"2,192.14",,Facilities & Management Services
5192933,ACORN RECOVERY PROJECTS,Public Health,Director of Public Health,Professional Services ,,11/03/2015,"1,644.11",,Facilities & Management Services
5192939,ACORN RECOVERY PROJECTS,Public Health,Director of Public Health,Professional Services ,,11/03/2015,"1,644.11",,Facilities & Management Services
5192940,ACORN RECOVERY PROJECTS,Public Health,Director of Public Health,Professional Services ,,11/03/2015,"1,644.11",,Facilities & Management Services
5192951,"TAMESIDE, OLDHAM AND GLOSSOP MIND",Public Health,Director of Public Health,Professional Services,,11/03/2015,"4,000.00",,Social Community Care Supplies & Services
5190541,WILDE CONSULTING ENGINEERS,Environmental Services,Director of Place,Engineers -External,,11/03/2015,"1,751.48",,Consultancy
5192326,AUTUMN (UK)  LTD,Development Growth & Investment,Director of Place,Adaptations - Jobs <#500,,11/03/2015,500,,Social Community Care Supplies & Services
5192726,ADAPTACARE LTD,Development Growth & Investment,Director of Place,Improvement Grants - Final Mandatory,,11/03/2015,"4,995.00",,Social Community Care Supplies & Services
5192833,VINCENT OBRIEN (CONSTRUCTION),Development Growth & Investment,Director of Place,Improvement Grants - Final Mandatory,,11/03/2015,"6,012.00",,"Works - Construction, Repair & Maintenance"
5192978,K P DODD CONSTRUCTION LTD,Development Growth & Investment,Director of Place,Improvement Grants - Final Mandatory,,11/03/2015,"7,052.00",,"Works - Construction, Repair & Maintenance"
5190541,WILDE CONSULTING ENGINEERS,Multiple Heads of Service,Multiple Strategic Directorates,Engineers -External,,11/03/2015,"6,679.04",,Consultancy
5192858,CYCLESCHEME LTD,Multiple Heads of Service,Multiple Strategic Directorates,General Equipment Purchase,,11/03/2015,"1,412.50",,Unclassifiable
5192986,ROCOM,Multiple Heads of Service,Multiple Strategic Directorates,Computer Hardware,,11/03/2015,"1,186.16",,Information Communication Technology
5192988,ROCOM,Multiple Heads of Service,Multiple Strategic Directorates,Computer Hardware,,11/03/2015,"3,750.93",,Information Communication Technology
5192037,STOCKPORT MBC,Corporate Costs,Corporate Costs,Coroners Service Costs,,12/03/2015,"123,689.00",,Highway Equipment & Materials�
5192046,MACRO 4 PLC,Exchequer,Director of Finance,Computer Hardware Maintenance Costs,,12/03/2015,"8,074.00",,Information Communication Technology
5192199,TAMESIDE COLLEGE,Governance,Director of Governance,Training Course Costs,,12/03/2015,"4,800.00",,Education
5192204,TAMESIDE COLLEGE,Governance,Director of Governance,Training Course Costs,,12/03/2015,"4,125.00",,Education
5193046,UNIVERSITY OF SALFORD,Governance,Director of Governance,Training Course Costs,,12/03/2015,"1,998.00",,Education
5192028,TYNETEC,Adult Social Care,Director of People,It Equipment,,12/03/2015,"2,473.80",,Social Community Care
5192301,PULSE,Adult Social Care,Director of People,Homecare Fees,,12/03/2015,"2,196.24",,Social Community Care Supplies & Services
5192615,PRIME LIFE LTD,Adult Social Care,Director of People,Residential Home Short Stay Fees,,12/03/2015,"3,238.35",,Social Community Care Supplies & Services
5192697,R-COM CONSULTING LTD,Adult Social Care,Director of People,Licences,,12/03/2015,710,,Public Bodies
5192955,ABLE CARE AND SUPPORT SERVICES LTD,Adult Social Care,Director of People,Homecare Fees,,12/03/2015,"1,450.77",,Social Community Care Supplies & Services
5192974,COMFORT CALL LIMITED,Adult Social Care,Director of People,Homecare Fees,,12/03/2015,"31,657.56",,Medical
5193026,CITY LIFT SERVICES (NW) LTD,Adult Social Care,Director of People,Adaptations To Buildings,,12/03/2015,600,,"Works - Construction, Repair & Maintenance"
5193138,TYNETEC,Adult Social Care,Director of People,It Equipment,,12/03/2015,"7,141.30",,Social Community Care
5192316,AGE UK TAMESIDE,Adults Early Intervention,Director of People,Age Concern Fees,,12/03/2015,"3,501.67",,Environmental Services
5193018,RANDSTAD EDUCATION LIMITED,Childrens Services,Director of People,Agency Staff,,12/03/2015,575,,Education
5193025,AZZURRI COMMUNICATIONS LTD,Childrens Services,Director of People,Computer Hardware Maintenance Costs,,12/03/2015,"1,671.08",,Information Communication Technology
5192470,GLM ACCESSIBLE TRANSPORT,Education,Director of People,Additional Hire,,12/03/2015,759.99,,Transport
5192065,QUADRANT SECURITY GROUP LTD,Stronger Communities,Director of People,Security Equipment,,12/03/2015,"1,012.23",,Information Communication Technology
5192885,BERTRAM LIBRARY SERVICES,Stronger Communities,Director of People,Purchase Books,,12/03/2015,"12,570.08",,Education
5192836,PROFILE SECURITY SERVICES LIMITED,Asset & Investment Partnership Management,Director of Place,General Materials,,12/03/2015,"6,813.18",,Facilities & Management Services
5191175,VODAFONE,Digital Tameside,Director of Place,Telephone Landline Costs,,12/03/2015,"1,890.18",,Information Communication Technology
5193022,SOCITM LTD,Digital Tameside,Director of Place,Subscriptions,,12/03/2015,"1,550.00",,Information Communication Technology
3250499,ARNOLD PLANT HIRE LTD,Environmental Services,Director of Place,Additional Hire,,12/03/2015,"2,222.50",,Vehicles
3250499,ARNOLD PLANT HIRE LTD,Environmental Services,Director of Place,Workshop Recharges including Misuse & Damage Costs,,12/03/2015,220,,Vehicles
3250499,F. R. SHARROCK LIMITED,Environmental Services,Director of Place,General Materials,,12/03/2015,"1,835.32",,Public Bodies
3250499,NOBLET MUNICIPAL SERVICES LTD,Environmental Services,Director of Place,Replacement Hire,,12/03/2015,850,,Public Bodies
3250499,NOBLET MUNICIPAL SERVICES LTD,Environmental Services,Director of Place,Workshop Recharges including Misuse & Damage Costs,,12/03/2015,100,,Public Bodies
3250499,SHB HIRE LTD,Environmental Services,Director of Place,Core Hire,,12/03/2015,"13,694.25",,Vehicles
3250499,SVR,Environmental Services,Director of Place,Additional Hire,,12/03/2015,765,,Charities and Voluntary Organisations
5187331,CRAEMER UK LTD,Environmental Services,Director of Place,Refuse Domestic Bin Purchases,,12/03/2015,"16,867.50",,Environmental Services
5187336,CRAEMER UK LTD,Environmental Services,Director of Place,Refuse Domestic Bin Purchases,,12/03/2015,"14,647.50",,Environmental Services
5187397,CRAEMER UK LTD,Environmental Services,Director of Place,Refuse Domestic Bin Purchases,,12/03/2015,"13,950.00",,Environmental Services
5187448,CRAEMER UK LTD,Environmental Services,Director of Place,Refuse Domestic Bin Purchases,,12/03/2015,"14,647.50",,Environmental Services
5187477,CRAEMER UK LTD,Environmental Services,Director of Place,Refuse Domestic Bin Purchases,,12/03/2015,"14,647.50",,Environmental Services
5187680,CRAEMER UK LTD,Environmental Services,Director of Place,Refuse Domestic Bin Purchases,,12/03/2015,"14,647.50",,Environmental Services
5188089,CRAEMER UK LTD,Environmental Services,Director of Place,Refuse Domestic Bin Purchases,,12/03/2015,"14,134.92",,Environmental Services
5191144,SPUR INFORMATION SOLUTIONS LIMITED,Environmental Services,Director of Place,Computer Software,,12/03/2015,592.2,,Highway Equipment & Materials�
5191626,NORTHENDEN TRAVEL LTD,Environmental Services,Director of Place,Staff Travel Costs,,12/03/2015,"1,021.32",,Human Resources
5192192,KEEPMOAT REGENERATION LTD,Environmental Services,Director of Place,Professional Services,,12/03/2015,"1,848.60",,"Works - Construction, Repair & Maintenance"
5192192,KEEPMOAT REGENERATION LTD,Environmental Services,Director of Place,Refurbishment Construction Costs,,12/03/2015,"4,609.40",,"Works - Construction, Repair & Maintenance"
5192293,P J SPENCER LTD,Environmental Services,Director of Place,Building Works,,12/03/2015,545,,"Works - Construction, Repair & Maintenance"
5192741,P J SPENCER LTD,Environmental Services,Director of Place,Building Works,,12/03/2015,640,,"Works - Construction, Repair & Maintenance"
5181417,NATIONAL ENERGY ACTION,Public Health,Director of Public Health,Training Course Costs,,12/03/2015,"2,300.00",,Human Resources
5190922,HOMESTART TAMESIDE & OLDHAM,Public Health,Director of Public Health,Professional Services,,12/03/2015,"16,666.67",,Social Community Care Supplies & Services
5192568,MADELEINE LINDLEY LTD,Public Health,Director of Public Health,Educational Equipment,,12/03/2015,"2,429.00",,Education
5192656,NHS GREATER MANCHESTER CSU,Public Health,Director of Public Health,Professional Services,,12/03/2015,"3,026.72",,Public Bodies
5192914,ACORN RECOVERY PROJECTS,Public Health,Director of Public Health,Professional Services ,,12/03/2015,"41,232.00",,Facilities & Management Services
5193007,UNIVERSITY HOSPITAL OF SOUTH MANCHESTER,Public Health,Director of Public Health,Postages,,12/03/2015,"1,863.40",,Unclassifiable
5190572,GREATER MANCHESTER COMBINED AUTHORITY,Environmental Services,Director of Place,Engineers -External,,12/03/2015,"28,808.81",,Unclassifiable
5190575,GREATER MANCHESTER COMBINED AUTHORITY,Environmental Services,Director of Place,Engineers -External,,12/03/2015,"15,649.76",,Unclassifiable
5192334,WINDMILL GROUP,Environmental Services,Director of Place,Other Works,,12/03/2015,"47,200.00",,"Works - Construction, Repair & Maintenance"
5192831,RAYMOND C HARRISON BUILDERS,Development Growth & Investment,Director of Place,Improvement Grants - Final Mandatory,,12/03/2015,"3,795.00",,"Works - Construction, Repair & Maintenance"
5193196,JACKSON & TAYLOR LTD,Development Growth & Investment,Director of Place,Improvement Grants - Final Mandatory,,12/03/2015,"3,885.00",,"Works - Construction, Repair & Maintenance"
5190626,H JENKINSON & CO LTD,Multiple Heads of Service,Multiple Strategic Directorates,Furniture And Fittings,,12/03/2015,812.5,,Furniture
5192323,ANVIL MASTERS,Multiple Heads of Service,Multiple Strategic Directorates,Building Works,,12/03/2015,"2,550.00",,Building Construction Materials
5185877,BROXAP LIMITED,Environmental Services,Director of Place,General Materials,,13/03/2015,"2,586.00",,Highway Equipment & Materials�
5192596,BARCHAM TREES PLC,Environmental Services,Director of Place,Landscaping Works,,13/03/2015,"4,258.80",,Horticultural
5193005,COMPLETE BACKGROUND SCREENING LTD,Governance,Director of Governance,Professional Services,,13/03/2015,"3,434.75",,Unclassifiable
5193010,MRL HEALTHCARE LIMITED,Adult Social Care,Director of People,Homecare Fees,,13/03/2015,"32,025.00",,Social Community Care Supplies & Services
5193049,THE GUINNESS PARTNERSHIP LTD,Adult Social Care,Director of People,Non-Authority Accommodation Rental,,13/03/2015,"1,221.48",,Housing Management
5193050,THE GUINNESS PARTNERSHIP LTD,Adult Social Care,Director of People,Non-Authority Accommodation Rental,,13/03/2015,"4,066.40",,Housing Management
5193266,DIRECT CARE (NORTH WEST) LTD,Adult Social Care,Director of People,Homecare Fees,,13/03/2015,"6,603.00",,Social Community Care Supplies & Services
5193295,ENVIRONMENTAL WATER SERVICES LTD,Adult Social Care,Director of People,Firefighting Equipment,,13/03/2015,"3,731.00",,Environmental Services
5193297,STOCKPORT MBC,Adult Social Care,Director of People,"Marketing, Publicity and Recruitment",,13/03/2015,"1,500.00",,Highway Equipment & Materials�
5189655,INCLUSIVE TECHNOLOGY LTD,Education,Director of People,Purchase General Office Equipment,,13/03/2015,"2,166.00",,Information Communication Technology
5193306,STAMFORD CARS UK LTD,Education,Director of People,Transport Of Pupils,,13/03/2015,892.5,,Transport
5193308,MOSSLEY PRIVATE HIRE,Education,Director of People,Transport Of Pupils,,13/03/2015,"1,400.00",,Transport
5193073,NEW CHARTER HOUSING TRUST GROUP,Stronger Communities,Director of People,General Materials,,13/03/2015,765,,Social Community Care Supplies & Services
5193161,PEOPLE FIRST TAMESIDE,Stronger Communities,Director of People,General Materials,,13/03/2015,"13,818.00",,Social Community Care Supplies & Services
5193257,PROFILE SECURITY SERVICES LIMITED,Asset & Investment Partnership Management,Director of Place,Security Equipment,,13/03/2015,"10,501.28",,Facilities & Management Services
5193242,R-COM CONSULTING LTD,Digital Tameside,Director of Place,Professional Consultancy Services,,13/03/2015,"4,500.00",,Public Bodies
5185877,BROXAP LIMITED,Environmental Services,Director of Place,General Materials,,13/03/2015,144,,Highway Equipment & Materials�
5192608,FAIRWAY LANDSCAPES LTD,Environmental Services,Director of Place,General Materials,,13/03/2015,"1,455.40",,"Works - Construction, Repair & Maintenance"
5193309,MOSSLEY PRIVATE HIRE,Environmental Services,Director of Place,Hired Transport,,13/03/2015,680,,Transport
5193311,MARK HARLOW,Environmental Services,Director of Place,Hired Transport,Business Payment,13/03/2015,600,,Transport
5192662,WILLIAMS WOODWARD LTD,Finance,Director of Finance,Professional Consultancy Services,,16/03/2015,"1,660.00",,CONSULTANCY
5193006,PRD PROPERTY SERVICES LTD,Governance,Director of Governance,Legal Fees,,16/03/2015,"4,320.00",,Facilities & Management Services
5193053,RICOH UK,Governance,Director of Governance,Photo Print Charges,,16/03/2015,686.43,,Facilities & Management Services
5192318,AGE UK TAMESIDE,Adult Social Care,Director of People,Age Concern Fees,,16/03/2015,"11,473.22",,Environmental Services
5192484,MAKING SPACE,Adult Social Care,Director of People,Voluntary Organisations Fees,,16/03/2015,"20,735.75",,Social Community Care Supplies & Services
5192868,MOSSCARE HOUSING LTD,Adult Social Care,Director of People,Non-Authority Accommodation Rental,,16/03/2015,"28,480.93",,Social Community Care Supplies & Services
5193012,MRL HEALTHCARE LIMITED,Adult Social Care,Director of People,Homecare Fees,,16/03/2015,"32,025.00",,Social Community Care Supplies & Services
5193578,BESSEGES LTD,Adult Social Care,Director of People,Firefighting Equipment,,16/03/2015,770,,Unclassifiable
5193599,ROYAL MENCAP SOCIETY,Adult Social Care,Director of People,Voluntary Organisations Fees,,16/03/2015,"9,792.00",,Social Community Care Supplies & Services
5193379,LIME TRAVEL,Childrens Services,Director of People,Transport Of Pupils,,16/03/2015,"1,120.00",,Human Resources
5193315,STAMFORD CARS UK LTD,Education,Director of People,Transport Of Pupils,,16/03/2015,"1,185.00",,Transport
5193316,STAMFORD CARS UK LTD,Education,Director of People,Transport Of Pupils,,16/03/2015,712.5,,Transport
5193317,STAMFORD CARS UK LTD,Education,Director of People,Transport Of Pupils,,16/03/2015,"1,284.50",,Transport
5193318,STAMFORD CARS UK LTD,Education,Director of People,Transport Of Pupils,,16/03/2015,"1,113.00",,Transport
5193319,STAMFORD CARS UK LTD,Education,Director of People,Transport Of Pupils,,16/03/2015,945,,Transport
5193321,STAMFORD CARS UK LTD,Education,Director of People,Transport Of Pupils,,16/03/2015,"1,005.00",,Transport
5193322,STAMFORD CARS UK LTD,Education,Director of People,Transport Of Pupils,,16/03/2015,"1,215.00",,Transport
5193325,STAMFORD CARS UK LTD,Education,Director of People,Transport Of Pupils,,16/03/2015,"2,075.00",,Transport
5193336,STAMFORD CARS UK LTD,Education,Director of People,Transport Of Pupils,,16/03/2015,980,,Transport
5193338,STAMFORD CARS UK LTD,Education,Director of People,Transport Of Pupils,,16/03/2015,983.5,,Transport
5193344,STAMFORD CARS UK LTD,Education,Director of People,Transport Of Pupils,,16/03/2015,"1,319.50",,Transport
5193347,STAMFORD CARS UK LTD,Education,Director of People,Transport Of Pupils,,16/03/2015,862.75,,Transport
5193356,STAMFORD CARS UK LTD,Education,Director of People,Transport Of Pupils,,16/03/2015,"1,249.50",,Transport
5193367,STAMFORD CARS UK LTD,Education,Director of People,Transport Of Pupils,,16/03/2015,"1,215.00",,Transport
5193368,STAMFORD CARS UK LTD,Education,Director of People,Transport Of Pupils,,16/03/2015,"1,435.00",,Transport
5193369,MOSSLEY PRIVATE HIRE,Education,Director of People,Transport Of Pupils,,16/03/2015,"1,875.00",,Transport
5193371,STAMFORD CARS UK LTD,Education,Director of People,Transport Of Pupils,,16/03/2015,"1,280.00",,Transport
5193372,STAMFORD CARS UK LTD,Education,Director of People,Transport Of Pupils,,16/03/2015,945,,Transport
5193374,STAMFORD CARS UK LTD,Education,Director of People,Transport Of Pupils,,16/03/2015,"1,237.50",,Transport
5193515,LOUISE LIGHTFOOT,Education,Director of People,Professional Services,Business Payment,16/03/2015,"2,000.00",,Medical
5192264,P & MM LIMITED,Strategy & Early Intervention,Director of People,Personal Needs Entertainments & Holidays,,16/03/2015,"11,400.00",,Human Resources
5192647, ,Strategy & Early Intervention,Director of People,Professional Needs Entertaiment & Holidays,Redacted Supplier,16/03/2015,977,,Redacted
470607,ARCO LIMITED,Stronger Communities,Director of People,General Materials,,16/03/2015,19.6,,Clothing
5193237,GREENSCAPE,Stronger Communities,Director of People,Fixtures and Fittings Repairs and Maintenance Costs  ,,16/03/2015,"1,438.00",,"Works - Construction, Repair & Maintenance"
5193245,OXFORD UNIVERSITY PRESS,Stronger Communities,Director of People,Purchase Books,,16/03/2015,"4,256.00",,Unclassifiable
5193424,TAMESIDE SPORTS TRUST,Stronger Communities,Director of People,Professional Sports Coaching Services,,16/03/2015,"10,717.00",,Leisure Services
5193532,PAYPOINT COLLECTIONS LTD,Stronger Communities,Director of People,Emergency Grant Payments,,16/03/2015,"1,569.00",,Unclassifiable
5193443,R-COM CONSULTING LTD,Digital Tameside,Director of Place,Professional Consultancy Services,,16/03/2015,750,,Public Bodies
470607,ACORN LIGHTING SERVICES LTD,Environmental Services,Director of Place,Sub-contractor Services,,16/03/2015,"1,670.00",,Highway Equipment & Materials�
470607,AGGREGATE INDUSTRIES UK LIMITED,Environmental Services,Director of Place,General Materials,,16/03/2015,"7,769.47",,Highway Equipment & Materials�
470607,AGGREGATE INDUSTRIES UK LIMITED,Environmental Services,Director of Place,Sub-contractor Services,,16/03/2015,"88,419.67",,Highway Equipment & Materials�
470607,ARCO LIMITED,Environmental Services,Director of Place,General Materials,,16/03/2015,189.54,,Clothing
470607,BENCHMARK BUILDING SUPPLIES LTD,Environmental Services,Director of Place,Debits Goods Received,,16/03/2015,"1,251.21",,Building Construction Materials
470607,BLOK N MESH UK LTD,Environmental Services,Director of Place,General Materials,,16/03/2015,"2,852.00",,Building Construction Materials
470607,BRADY CORPORATION LTD T/A SAFETYSHOP,Environmental Services,Director of Place,General Materials,,16/03/2015,844.55,,Health & Safety�
470607,BRAMHALL SURFACING LTD,Environmental Services,Director of Place,Sub-contractor Services,,16/03/2015,"20,800.47",,"Works - Construction, Repair & Maintenance"
470607,BROXAP LIMITED,Environmental Services,Director of Place,General Materials,,16/03/2015,"1,774.00",,Highway Equipment & Materials�
470607,EAGLE CIVIL ENGINEERING LTD,Environmental Services,Director of Place,Sub-contractor Services,,16/03/2015,"14,979.18",,Highway Equipment & Materials�
470607,KEN TAYLOR SUPPLIES LTD,Environmental Services,Director of Place,General Materials,,16/03/2015,"3,217.40",,Unclassifiable
470607,KENNY BROTHERS,Environmental Services,Director of Place,Sub-contractor Services,,16/03/2015,"14,207.91",,Non 3rd Party spend  
470607,L&R ROADLINES LTD,Environmental Services,Director of Place,Sub-contractor Services,,16/03/2015,506.85,,Highway Equipment & Materials�
470607,LANCASHIRE LOCK & SAFE CO LTD,Environmental Services,Director of Place,General Materials,,16/03/2015,517.92,,Facilities & Management Services
470607,MAIN MAN SUPPLIES LTD,Environmental Services,Director of Place,General Materials,,16/03/2015,592.25,,Clothing
470607,MALLATITE LTD,Environmental Services,Director of Place,General Materials,,16/03/2015,"13,112.31",,Highway Equipment & Materials�
470607,MALLATITE LTD,Environmental Services,Director of Place,Stores Purchases,,16/03/2015,10,,Highway Equipment & Materials�
470607,MARCHINGTON STONE,Environmental Services,Director of Place,General Materials,,16/03/2015,"3,921.41",,Building Construction Materials
470607,MARWOOD ELECTRICAL CO,Environmental Services,Director of Place,General Materials,,16/03/2015,"18,978.48",,Highway Equipment & Materials�
470607,NAL LIMITED,Environmental Services,Director of Place,General Materials,,16/03/2015,"11,946.39",,Highway Equipment & Materials�
470607,PG FABRICATIONS,Environmental Services,Director of Place,Sub-contractor Services,,16/03/2015,"1,380.00",,"Works - Construction, Repair & Maintenance"
470607,PREMIER WASTE (UK) LTD,Environmental Services,Director of Place,Sub-contractor Services,,16/03/2015,"1,865.00",,Environmental Services
470607,PREMIER WASTE (UK) LTD,Environmental Services,Director of Place,General Materials,,16/03/2015,"1,200.00",,Environmental Services
470607,SIGNPOST SOLUTIONS LIMITED,Environmental Services,Director of Place,General Materials,,16/03/2015,"4,683.00",,Highway Equipment & Materials�
470607,STOCKPORT MBC,Environmental Services,Director of Place,General Materials,,16/03/2015,"2,108.30",,Highway Equipment & Materials�
470607,TARMAC CENTRAL LIMITED,Environmental Services,Director of Place,General Materials,,16/03/2015,"1,950.55",,Highway Equipment & Materials�
470607,TARMAC CENTRAL LIMITED,Environmental Services,Director of Place,Stores Purchases,,16/03/2015,219.48,,Highway Equipment & Materials�
470607,WENDY LAWTON,Environmental Services,Director of Place,Sub-contractor Services,Business Payment,16/03/2015,640,,Cleaning
470607,WOLSELEY UK LTD,Environmental Services,Director of Place,General Materials,,16/03/2015,"10,266.79",,Highway Equipment & Materials�
5186119,BPI RECYCLED PRODUCTS,Environmental Services,Director of Place,Purchase Wheeled Bins,,16/03/2015,"1,839.15",,Environmental Services
5189001,BPI RECYCLED PRODUCTS,Environmental Services,Director of Place,Purchase Wheeled Bins,,16/03/2015,"1,660.91",,Environmental Services
5191072,ARCO LIMITED,Environmental Services,Director of Place,Purchase Wheeled Bins,,16/03/2015,"4,941.95",,Clothing
5192871,ARCO LIMITED,Environmental Services,Director of Place,General Materials,,16/03/2015,739.26,,Clothing
5192519,THE CHESHIRE & GREATER MANCHESTER COMMUNITY REHABILITATION COMPANY LTD,Public Health,Director of Public Health,Professional Services,,16/03/2015,"27,268.59",,Unclassifiable
5193391,BROWNS BOOKS FOR STUDENTS,Public Health,Director of Public Health,Text Books Periodicals and Newspapers,,16/03/2015,"3,389.17",,Education
5193415,TAMESIDE SPORTS TRUST,Public Health,Director of Public Health,Other Accomodation Related Costs,,16/03/2015,"10,000.00",,Leisure Services
470607,ARCO LIMITED,Environmental Services,Director of Place,Debits Goods Received,,16/03/2015,565.98,,Clothing
470607,BENCHMARK BUILDING SUPPLIES LTD,Environmental Services,Director of Place,General Materials,,16/03/2015,"1,340.55",,Building Construction Materials
470607,INSTARMAC GROUP PLC,Environmental Services,Director of Place,Debits Goods Received,,16/03/2015,856,,Highway Equipment & Materials�
470607,KEN TAYLOR SUPPLIES LTD,Environmental Services,Director of Place,Debits Goods Received,,16/03/2015,188.9,,Unclassifiable
470607,MALLATITE LTD,Environmental Services,Director of Place,Debits Goods Received,,16/03/2015,28.86,,Highway Equipment & Materials�
470607,TARMAC CENTRAL LIMITED,Environmental Services,Director of Place,Debits Goods Received,,16/03/2015,"6,582.17",,Highway Equipment & Materials�
5190279,NATIONAL GRID plc,Environmental Services,Director of Place,Gas,,16/03/2015,"10,061.95",,Utilities
5193199,BRIAN GLYNN & CO,Development Growth & Investment,Director of Place,Improvement Grants - Final Mandatory,,16/03/2015,"4,680.00",,"Works - Construction, Repair & Maintenance"
5193201,THYSSENKRUPP ENCASA LTD,Development Growth & Investment,Director of Place,Improvement Grants - Final Mandatory,,16/03/2015,"4,544.00",,Social Community Care
470607,PG FABRICATIONS,Multiple Heads of Service,Multiple Strategic Directorates,Tax Retained Sub Contractors,,16/03/2015,-276,,"Works - Construction, Repair & Maintenance"
5190960,DWP,Multiple Heads of Service,Multiple Strategic Directorates,Claims Settled,,16/03/2015,627,,Non 3rd Party spend  
5193435,HMCTS,Multiple Heads of Service,Multiple Strategic Directorates,Court Fees,,16/03/2015,"1,000.00",,Unclassifiable
5193436,HMCTS,Multiple Heads of Service,Multiple Strategic Directorates,Court Fees,,16/03/2015,700,,Unclassifiable
5191830,SALFORD CITY COUNCIL,Adult Social Care,Director of People,General Expenditure,,18/03/2015,"7,550.00",,Consultancy
5193602,VODAFONE,Finance,Director of Finance,Telephone Landline Costs,,18/03/2015,774.39,,Information Communication Technology
5192837,CREATIVE IDEAS IN PRINT LTD,Governance,Director of Governance,Printing And Stationery,,18/03/2015,580.19,,Facilities & Management Services
5193404,BLACK & WHITE PROMOTIONAL PRINT SERVICES,Governance,Director of Governance,Printing And Stationery,,18/03/2015,585,,Facilities & Management Services
5193695,ELECTORAL REFORM SERVICES,Governance,Director of Governance,Printing And Stationery,,18/03/2015,"5,124.87",,Unclassifiable
5193858,MIDLAND SOFTWARE LTD,Governance,Director of Governance,Computer Software,,18/03/2015,"25,213.93",,Information Communication Technology
5193037,PERSON CENTRED CARE SERVICES LIMITED,Adult Social Care,Director of People,Homecare Fees,,18/03/2015,"1,776.79",,Medical
5193056, ,Adult Social Care,Director of People,Contribution to Maintenance Fee Income,Redacted Supplier,18/03/2015,569.94,,Redacted
5193540, ,Adult Social Care,Director of People,Day Care Fees,Redacted Supplier,18/03/2015,554.14,,Redacted
5193614,THE UNIVERSITY OF MANCHESTER,Adult Social Care,Director of People,Training Course Costs,,18/03/2015,"1,995.00",,Education
5193829,PULSE,Adult Social Care,Director of People,Homecare Fees,,18/03/2015,"2,440.32",,Social Community Care Supplies & Services
5193845,TAMESIDE ARTS LTD,Adult Social Care,Director of People,Professional Services,,18/03/2015,"1,162.80",,Leisure Services
5193851,"TAMESIDE, OLDHAM AND GLOSSOP MIND",Adult Social Care,Director of People,Professional Services,,18/03/2015,"1,224.00",,Social Community Care Supplies & Services
5194040, ,Adult Social Care,Director of People,Contribution to Maintenance Fee Income,Redacted Supplier,18/03/2015,"1,498.02",,Redacted
5193643,COMMUNITY AND VOLUNTARY ACTION TAMESIDE,Adults Early Intervention,Director of People,Room Hire,,18/03/2015,800,,Financial Services
5193729,MISS RACHAEL LEVENE,Childrens Services,Director of People,Legal Fees,Business Payment,18/03/2015,"1,000.00",,Legal
5188908,RADIO CABS (ASHTON)LTD,Education,Director of People,Transport Of Post 16 Pupils,,18/03/2015,588.7,,Transport
5188909,RADIO CABS (ASHTON)LTD,Education,Director of People,Transport Of Post 16 Pupils,,18/03/2015,"1,316.50",,Transport
5191283,STAMFORD CARS UK LTD,Education,Director of People,Transport Of Pupils,,18/03/2015,"1,197.00",,Transport
5192792,NPOWER LIMITED,Education,Director of People,Electricity,,18/03/2015,"1,942.62",,Utilities
5192883,CORONA ENERGY RETAIL 4 LIMITED,Education,Director of People,Gas,,18/03/2015,940.76,,Utilities
5192890,CORONA ENERGY RETAIL 4 LIMITED,Education,Director of People,Gas,,18/03/2015,914.55,,Utilities
5192941,CORONA ENERGY RETAIL 4 LIMITED,Education,Director of People,Gas,,18/03/2015,"4,609.52",,Utilities
5193212,CORONA ENERGY RETAIL 4 LIMITED,Education,Director of People,Gas,,18/03/2015,"5,054.62",,Utilities
5193480,STOCKPORT NHS FOUNDATION TRUST,Education,Director of People,Professional Services,,18/03/2015,"3,333.00",,Medical
5193630,STAMFORD CARS UK LTD,Education,Director of People,Transport Of Pupils,,18/03/2015,"1,215.00",,Transport
5193706,SIMPLY ICT SOLUTIONS,Education,Director of People,Computer Hardware Maintenance Costs,,18/03/2015,"1,155.00",,Information Communication Technology
5193876,HOWARD COOK,Education,Director of People,Professional Services,Business Payment,18/03/2015,680,,Unclassifiable
5193928,OLDHAM COUNCIL,Education,Director of People,Voluntary Organisations Fees,,18/03/2015,"5,370.00",,Unclassifiable
5193947,FENTONS MINIBUSES LTD,Education,Director of People,Transport Of Ola Pupils,,18/03/2015,"1,133.00",,Transport
5193882,MOSSLEY PRIVATE HIRE,Strategy & Early Intervention,Director of People,Hired Transport,,18/03/2015,"2,485.00",,Transport
5191873,PAYPOINT COLLECTIONS LTD,Stronger Communities,Director of People,Emergency Grant Payments,,18/03/2015,"1,508.00",,Unclassifiable
5192442,HYDE UNITED TIGERS CLUB,Stronger Communities,Director of People,Professional Entertainment Services,,18/03/2015,"2,000.00",,Charities and Voluntary Organisations
5192471,CASH BOX CREDIT UNION LTD,Stronger Communities,Director of People,Professional Services,,18/03/2015,"7,086.33",,Charities and Voluntary Organisations
5192696,THE FURNISHING SERVICE LTD,Stronger Communities,Director of People,Fixtures & Fittings Purchase,,18/03/2015,"1,001.33",,Furniture
5192806,THE FURNISHING SERVICE LTD,Stronger Communities,Director of People,Fixtures & Fittings Purchase,,18/03/2015,954.49,,Furniture
5192816,THE FURNISHING SERVICE LTD,Stronger Communities,Director of People,Fixtures & Fittings Purchase,,18/03/2015,546.08,,Furniture
5193269,BROADOAK & SMALLSHAW COMMUNITY ASSOCIATION,Stronger Communities,Director of People,Ward Schemes,,18/03/2015,"1,250.00",,Charities and Voluntary Organisations
5193381,THE FURNISHING SERVICE LTD,Stronger Communities,Director of People,Fixtures & Fittings Purchase,,18/03/2015,716.69,,Furniture
5193477,HELEN WILKINSON,Stronger Communities,Director of People,Professional Services,,18/03/2015,"3,000.00",,Financial Services
5193555,METROMEDIA,Stronger Communities,Director of People,Training Course Costs,,18/03/2015,"1,524.00",,Unclassifiable
5193629,LINK4LIFE,Stronger Communities,Director of People,Professional Services,,18/03/2015,"3,000.00",,Leisure Services
5193864,WIGAN MBC,Stronger Communities,Director of People,Professional Services,,18/03/2015,"4,000.00",,Unclassifiable
5192428,CORONA ENERGY RETAIL 4 LIMITED,Asset & Investment Partnership Management,Director of Place,Gas,,18/03/2015,"3,001.57",,Utilities
5192430,CORONA ENERGY RETAIL 4 LIMITED,Asset & Investment Partnership Management,Director of Place,Gas,,18/03/2015,"2,274.25",,Utilities
5192433,CORONA ENERGY RETAIL 4 LIMITED,Asset & Investment Partnership Management,Director of Place,Gas,,18/03/2015,"6,205.93",,Utilities
5192490,CORONA ENERGY RETAIL 4 LIMITED,Asset & Investment Partnership Management,Director of Place,Gas,,18/03/2015,536.27,,Utilities
5192494,CORONA ENERGY RETAIL 4 LIMITED,Asset & Investment Partnership Management,Director of Place,Gas,,18/03/2015,"3,033.35",,Utilities
5192502,CORONA ENERGY RETAIL 4 LIMITED,Asset & Investment Partnership Management,Director of Place,Gas,,18/03/2015,"1,049.25",,Utilities
5192553,CORONA ENERGY RETAIL 4 LIMITED,Asset & Investment Partnership Management,Director of Place,Gas,,18/03/2015,652.37,,Utilities
5192556,CORONA ENERGY RETAIL 4 LIMITED,Asset & Investment Partnership Management,Director of Place,Gas,,18/03/2015,"2,147.78",,Utilities
5192557,CORONA ENERGY RETAIL 4 LIMITED,Asset & Investment Partnership Management,Director of Place,Gas,,18/03/2015,677.87,,Utilities
5192558,CORONA ENERGY RETAIL 4 LIMITED,Asset & Investment Partnership Management,Director of Place,Gas,,18/03/2015,642.58,,Utilities
5192560,CORONA ENERGY RETAIL 4 LIMITED,Asset & Investment Partnership Management,Director of Place,Gas,,18/03/2015,"2,108.52",,Utilities
5192562,CORONA ENERGY RETAIL 4 LIMITED,Asset & Investment Partnership Management,Director of Place,Gas,,18/03/2015,828.38,,Utilities
5192563,CORONA ENERGY RETAIL 4 LIMITED,Asset & Investment Partnership Management,Director of Place,Gas,,18/03/2015,"2,223.85",,Utilities
5192578,CORONA ENERGY RETAIL 4 LIMITED,Asset & Investment Partnership Management,Director of Place,Gas,,18/03/2015,790.78,,Utilities
5192579,CORONA ENERGY RETAIL 4 LIMITED,Asset & Investment Partnership Management,Director of Place,Gas,,18/03/2015,606.4,,Utilities
5192580,CORONA ENERGY RETAIL 4 LIMITED,Asset & Investment Partnership Management,Director of Place,Gas,,18/03/2015,968.93,,Utilities
5192581,CORONA ENERGY RETAIL 4 LIMITED,Asset & Investment Partnership Management,Director of Place,Gas,,18/03/2015,560.44,,Utilities
5192582,CORONA ENERGY RETAIL 4 LIMITED,Asset & Investment Partnership Management,Director of Place,Gas,,18/03/2015,"1,025.82",,Utilities
5192929,UNITED UTILITIES WATER PLC,Asset & Investment Partnership Management,Director of Place,Metered Water Costs,,18/03/2015,932.53,,Utilities
5192937,NPOWER LIMITED,Asset & Investment Partnership Management,Director of Place,Electricity,,18/03/2015,"1,354.70",,Utilities
5192977,UNITED UTILITIES WATER PLC,Asset & Investment Partnership Management,Director of Place,Metered Water Costs,,18/03/2015,701.68,,Utilities
5192997,BT PLC,Asset & Investment Partnership Management,Director of Place,Telephone Landline Costs,,18/03/2015,"2,040.18",,Information Communication Technology
5192998,BT PLC,Asset & Investment Partnership Management,Director of Place,Telephone Landline Costs,,18/03/2015,"1,963.23",,Information Communication Technology
5192999,BT PLC,Asset & Investment Partnership Management,Director of Place,Telephone Landline Costs,,18/03/2015,"1,118.00",,Information Communication Technology
5193000,BT PLC,Asset & Investment Partnership Management,Director of Place,Telephone Landline Costs,,18/03/2015,"1,963.23",,Information Communication Technology
5193002,BT PLC,Asset & Investment Partnership Management,Director of Place,Telephone Landline Costs,,18/03/2015,"1,621.88",,Information Communication Technology
5193130,INSPIREDSPACES TAMESIDE LTD,Asset & Investment Partnership Management,Director of Place,Professional Services,,18/03/2015,"81,740.00",,Consultancy
5193168,TROWERS & HAMLINS LLP,Asset & Investment Partnership Management,Director of Place,Authority Accommodation Rental,,18/03/2015,"222,080.10",,Legal Services
5193208,CORONA ENERGY RETAIL 4 LIMITED,Asset & Investment Partnership Management,Director of Place,Gas,,18/03/2015,567.6,,Utilities
5193225,UNITED UTILITIES WATER PLC,Asset & Investment Partnership Management,Director of Place,Metered Water Costs,,18/03/2015,"2,781.37",,Utilities
5193227,UNITED UTILITIES WATER PLC,Asset & Investment Partnership Management,Director of Place,Metered Water Costs,,18/03/2015,"3,030.33",,Utilities
5193235,UNITED UTILITIES WATER PLC,Asset & Investment Partnership Management,Director of Place,Metered Water Costs,,18/03/2015,"1,021.33",,Utilities
5193259,DARBYS SOLICITORS,Asset & Investment Partnership Management,Director of Place,Non-Authority Accommodation Rental,,18/03/2015,"6,489.92",,Facilities & Management Services
5193395,CALL A CAR (TAMESIDE) LTD,Asset & Investment Partnership Management,Director of Place,Hired Transport,,18/03/2015,562,,Human Resources
5193553,UNITED UTILITIES WATER PLC,Asset & Investment Partnership Management,Director of Place,Metered Water Costs,,18/03/2015,938.45,,Utilities
5193576,UNITED UTILITIES WATER PLC,Asset & Investment Partnership Management,Director of Place,Metered Water Costs,,18/03/2015,544.51,,Utilities
5191260,NORTHGATE INFORMATION SOLUTIONS UK LTD,Digital Tameside,Director of Place,Computer Software,,18/03/2015,"1,300.00",,Information Communication Technology
5193057,COOLSPIRIT LTD,Digital Tameside,Director of Place,Communications Equipment,,18/03/2015,"2,753.96",,Information Communication Technology
5193204,COOLSPIRIT LTD,Digital Tameside,Director of Place,Communications Equipment,,18/03/2015,"2,956.80",,Information Communication Technology
5158733,GREATER MANCHESTER WASTE DISPOSAL AUTH.,Environmental Services,Director of Place,GMC Waste Disposal Levy,,18/03/2015,"1,478,750.00",,Environmental Services
5188899,RADIO CABS (ASHTON)LTD,Environmental Services,Director of Place,Hired Transport,,18/03/2015,653.2,,Transport
5193314,MARK HARLOW,Environmental Services,Director of Place,Hired Transport,Business Payment,18/03/2015,"1,400.00",,Transport
5193407,GREENSCAPE,Environmental Services,Director of Place,Engineers Works,,18/03/2015,900,,"Works - Construction, Repair & Maintenance"
5193610,POST OFFICE,Environmental Services,Director of Place,Motor Licence Costs,,18/03/2015,"2,030.00",,Mail Services
5193710,THE BLACKBURN PRODUCTS CO LTD,Environmental Services,Director of Place,Waste Disposal Fees,,18/03/2015,560,,Environmental Services
5193716,EON ENERGY,Environmental Services,Director of Place,Electricity,,18/03/2015,"2,798.25",,Utilities
5193919,MANCHESTER DOGS HOME,Environmental Services,Director of Place,Professional Consultancy Services,,18/03/2015,"1,439.68",,Environmental Services
5193964,ASHTON REFRIGERATION COMPANY,Environmental Services,Director of Place,Building Works,,18/03/2015,"1,080.00",,Catering
5192517,THE CHESHIRE & GREATER MANCHESTER COMMUNITY REHABILITATION COMPANY LTD,Public Health,Director of Public Health,Professional Services,,18/03/2015,"2,413.95",,Unclassifiable
5193393,YORKSHIRE PURCHASING ORGANISATION,Public Health,Director of Public Health,Artwork,,18/03/2015,"9,368.57",,Education
5193717,TAMESIDE HOSPITAL NHS FOUNDATION TRUST,Public Health,Director of Public Health,Professional Services,,18/03/2015,"3,013.53",,Medical
5193856,LIFELINE PROJECT LTD (PH),Public Health,Director of Public Health,Professional Services,,18/03/2015,"4,916.75",,Consultancy
5193857,LIFELINE PROJECT LTD (PH),Public Health,Director of Public Health,Professional Services,,18/03/2015,"8,364.00",,Consultancy
5193130,INSPIREDSPACES TAMESIDE LTD,Asset & Investment Partnership Management,Director of Place,Other Works,,18/03/2015,"5,295.77",,Consultancy
5193130,INSPIREDSPACES TAMESIDE LTD,Asset & Investment Partnership Management,Director of Place,Refurbishment Construction Costs,,18/03/2015,"143,147.75",,Consultancy
5193906,SICO EUROPE LIMITED,Asset & Investment Partnership Management,Director of Place,Adaptations - Small Jobs,,18/03/2015,585,,Furniture
5192834,IBI GROUP,Environmental Services,Director of Place,Consultancies,,18/03/2015,"4,000.00",,Consultancy
5192102,HM COURTS AND TRIBUNALS SERVICE,Development Growth & Investment,Director of Place,Professional Services,,18/03/2015,"5,832.00",,Public Bodies
5193198,J P KELSEY PLUMBING & HEATING LTD,Development Growth & Investment,Director of Place,Improvement Grants - Final Mandatory,,18/03/2015,"3,395.00",,Building Construction Materials
5193547,MR JAMES TURLEY T/A R TURLEY PLUMBERS,Development Growth & Investment,Director of Place,Improvement Grants - Final Mandatory,,18/03/2015,"3,315.00",,"Works - Construction, Repair & Maintenance"
5193551,AUTUMN (UK)  LTD,Development Growth & Investment,Director of Place,Improvement Grants - Final Mandatory,,18/03/2015,"4,666.00",,Social Community Care Supplies & Services
5193711,HANDICARE LIMITED,Development Growth & Investment,Director of Place,Improvement Grants - Final Mandatory,,18/03/2015,"4,062.00",,Social Community Care
5193713,AMW LIFT AND MOBILITY,Development Growth & Investment,Director of Place,Improvement Grants - Final Mandatory,,18/03/2015,"1,420.00",,Unclassifiable
5193727,K P DODD CONSTRUCTION LTD,Development Growth & Investment,Director of Place,Improvement Grants - Final Mandatory,,18/03/2015,"3,340.00",,"Works - Construction, Repair & Maintenance"
5193728,VINCENT OBRIEN (CONSTRUCTION),Development Growth & Investment,Director of Place,Improvement Grants - Final Mandatory,,18/03/2015,"3,295.00",,"Works - Construction, Repair & Maintenance"
5193130,INSPIREDSPACES TAMESIDE LTD,Asset & Investment Partnership Management,Director of Place,Survey/Surveyors Fees,,18/03/2015,"18,489.67",,Consultancy
5191222,NATIONAL GRID plc,Multiple Heads of Service,Multiple Strategic Directorates,Claims Settled,,18/03/2015,503.11,,Utilities
5193057,COOLSPIRIT LTD,Multiple Heads of Service,Multiple Strategic Directorates,Communications Equipment,,18/03/2015,"21,230.44",,Information Communication Technology
5193604,VODAFONE,Multiple Heads of Service,Multiple Strategic Directorates,Telephone Landline Costs,,18/03/2015,"8,481.72",,Information Communication Technology
5193286,COMFORT CALL LIMITED,Adult Social Care,Director of People,Homecare Fees,,19/03/2015,"32,035.08",,Medical
5193496,TOUGH FURNITURE LTD,Adult Social Care,Director of People,Fixtures & Fittings Purchase,,19/03/2015,"2,061.00",,Furniture
5194102,TELECARE SERVICES ASSOCIATION,Adult Social Care,Director of People,Subscriptions,,19/03/2015,"1,110.00",,Financial Services
5194246,MRL HEALTHCARE LIMITED,Adult Social Care,Director of People,Homecare Fees,,19/03/2015,"32,025.00",,Social Community Care Supplies & Services
5194264,AGE UK TAMESIDE,Adults Early Intervention,Director of People,Professional Services,,19/03/2015,"6,930.00",,Environmental Services
5188727,WORKS 4U SUPPORT SERVICES LIMITED,Education,Director of People,Professional Services,,19/03/2015,"81,188.00",,Human Resources
5191286,STAMFORD CARS UK LTD,Education,Director of People,Transport Of Pupils,,19/03/2015,"1,748.00",,Transport
5191566,STAMFORD CARS UK LTD,Education,Director of People,Transport Of Pupils,,19/03/2015,"1,885.00",,Transport
5191942,STAMFORD CARS UK LTD,Education,Director of People,Transport Of Pupils,,19/03/2015,"1,334.75",,Transport
5192409,RANDSTAD EDUCATION LIMITED,Education,Director of People,Agency Staff,,19/03/2015,630,,Education
5192416,RANDSTAD EDUCATION LIMITED,Education,Director of People,Agency Staff,,19/03/2015,"1,050.00",,Education
5193349,STAMFORD CARS UK LTD,Education,Director of People,Transport Of Pupils,,19/03/2015,"1,113.75",,Transport
5193448,RANDSTAD EDUCATION LIMITED,Education,Director of People,Agency Staff,,19/03/2015,995,,Education
5193450,RANDSTAD EDUCATION LIMITED,Education,Director of People,Agency Staff,,19/03/2015,995,,Education
5193455,RANDSTAD EDUCATION LIMITED,Education,Director of People,Agency Staff,,19/03/2015,575,,Education
5193598,VISION FOR EDUCATION LIMITED,Education,Director of People,Agency Staff,,19/03/2015,540,,Education
5193674,WORKS 4U SUPPORT SERVICES LIMITED,Education,Director of People,Professional Services,,19/03/2015,"1,180.00",,Human Resources
5193946,W A MEADOWCROFT,Education,Director of People,Transport Of Pupils,Business Payment,19/03/2015,900,,Unclassifiable
5194158,OUR KIDS EYES,Education,Director of People,Project Costs,,19/03/2015,"10,920.00",,Social Community Care Supplies & Services
5194213,RANDSTAD EDUCATION LIMITED,Education,Director of People,Agency Staff,,19/03/2015,650,,Education
5194216,RANDSTAD EDUCATION LIMITED,Education,Director of People,Agency Staff,,19/03/2015,"1,050.00",,Education
5194222,RANDSTAD EDUCATION LIMITED,Education,Director of People,Agency Staff,,19/03/2015,"1,050.00",,Education
5194224,RANDSTAD EDUCATION LIMITED,Education,Director of People,Agency Staff,,19/03/2015,995,,Education
5189406,TRIBAL EDUCATION LTD,Strategy & Early Intervention,Director of People,Computer Software Maintenance Costs,,19/03/2015,525,,Education
5189429,TRIBAL EDUCATION LTD,Strategy & Early Intervention,Director of People,Computer Software Maintenance Costs,,19/03/2015,"1,350.00",,Education
5191203,POSITIVE STEPS OLDHAM,Strategy & Early Intervention,Director of People,Professional Services,,19/03/2015,"34,520.55",,Unclassifiable
5192827,MANCHESTER CITY COUNCIL,Stronger Communities,Director of People,Purchase Books,,19/03/2015,"2,700.00",,Financial Services
5193712,CO-OPERATIVE & MUTUAL  SOLUTIONS LIMITED,Stronger Communities,Director of People,Professional Services,,19/03/2015,715,,Unclassifiable
5194082, ,Stronger Communities,Director of People,Emergency Grant Payments,Redacted Supplier,19/03/2015,530,,Redacted
5194150,NEW CHARTER HOUSING TRUST GROUP,Stronger Communities,Director of People,Contributions,,19/03/2015,"4,166.66",,Social Community Care Supplies & Services
5194151,NEW CHARTER HOUSING TRUST GROUP,Stronger Communities,Director of People,Housing Aid Function,,19/03/2015,"33,740.57",,Social Community Care Supplies & Services
5194423,STOCKPORT MBC,Stronger Communities,Director of People,Professional Services,,19/03/2015,"1,000.00",,Highway Equipment & Materials�
5192300,DTZ,Development Growth & Investment,Director of Place,Valuation Fees,,19/03/2015,"5,565.00",,Consultancy
3250500,BPP TRANSPORT ENGINEERS LTD,Environmental Services,Director of Place,General Materials,,19/03/2015,86.85,,Transport
3250500,BPP TRANSPORT ENGINEERS LTD,Environmental Services,Director of Place,Tyre Costs,,19/03/2015,"1,172.84",,Transport
3250500,BURNT TREE GROUP LIMITED,Environmental Services,Director of Place,Additional Hire,,19/03/2015,"4,254.95",,Vehicles
3250500,BURNT TREE GROUP LIMITED,Environmental Services,Director of Place,Core Hire,,19/03/2015,"1,140.00",,Vehicles
3250500,DENNIS EAGLE LTD,Environmental Services,Director of Place,General Materials,,19/03/2015,535.22,,Vehicles
3250500,ECON ENGINEERING LTD,Environmental Services,Director of Place,General Materials,,19/03/2015,351.47,,Vehicles
3250500,F & G COMMERCIALS (OLDHAM) LIMITED,Environmental Services,Director of Place,General Materials,,19/03/2015,647.01,,Vehicles
3250500,F G ROWLAND LTD,Environmental Services,Director of Place,Core Hire,,19/03/2015,845,,Vehicles
3250500,HI-Q TYRESERVICES,Environmental Services,Director of Place,Tyre Costs,,19/03/2015,"2,951.25",,Vehicles
3250500,HI-WAY COMPONENTS,Environmental Services,Director of Place,Consumable Materials,,19/03/2015,19.2,,Vehicles
3250500,HI-WAY COMPONENTS,Environmental Services,Director of Place,General Materials,,19/03/2015,"1,073.85",,Vehicles
3250500,I H S HOSEMASTER,Environmental Services,Director of Place,General Materials,,19/03/2015,"1,472.68",,Unclassifiable
3250500,JOHNSTON SWEEPERS LTD,Environmental Services,Director of Place,General Materials,,19/03/2015,568.3,,Environmental Services
3250500,PEAK PARTS,Environmental Services,Director of Place,Consumable Materials,,19/03/2015,253.41,,Vehicles
3250500,PEAK PARTS,Environmental Services,Director of Place,General Materials,,19/03/2015,299.4,,Vehicles
3250500,STOCKPORT TRUCK CENTRE LTD,Environmental Services,Director of Place,General Materials,,19/03/2015,415.92,,Human Resources
3250500,STOCKPORT TRUCK CENTRE LTD,Environmental Services,Director of Place,Vehicle Inspection/Testing Costs,,19/03/2015,"6,000.00",,Human Resources
5192592,RIGBY TAYLOR LTD,Environmental Services,Director of Place,Horticultural Equipment,,19/03/2015,745,,Horticultural
5192810,RIGBY TAYLOR LTD,Environmental Services,Director of Place,Horticultural Equipment,,19/03/2015,"5,767.50",,Horticultural
5192958,GREENSCAPE,Environmental Services,Director of Place,Agency Staff,,19/03/2015,769.5,,"Works - Construction, Repair & Maintenance"
5193192,RIGBY TAYLOR LTD,Environmental Services,Director of Place,Painting Works,,19/03/2015,"2,850.00",,Horticultural
5193655,PG FABRICATIONS,Environmental Services,Director of Place,General Materials,,19/03/2015,520,,"Works - Construction, Repair & Maintenance"
5193945,W A MEADOWCROFT,Environmental Services,Director of Place,Hired Transport,Business Payment,19/03/2015,"1,200.00",,Unclassifiable
5156536,SALFORD ROYAL NHS FOUNDATION TRUST,Public Health,Director of Public Health,Professional Services,,19/03/2015,866.18,,Unclassifiable
5186968,CENTRAL MANCHESTER UNIVERSITY HOSPITAL NHS FT,Public Health,Director of Public Health,Professional Services,,19/03/2015,"4,447.00",,Human Resources
5188105,CENTRAL MANCHESTER UNIVERSITY HOSPITAL NHS FT,Public Health,Director of Public Health,Professional Services,,19/03/2015,"3,730.00",,Human Resources
5192835,CENTRAL MANCHESTER UNIVERSITY HOSPITAL NHS FT,Public Health,Director of Public Health,Professional Services,,19/03/2015,"2,640.00",,Human Resources
5193244,ADDICTION DEPENDENCY SOLUTIONS (ADS),Public Health,Director of Public Health,Professional Services,,19/03/2015,"5,019.19",,Consultancy
5193449,PENNINE CARE NHS TRUST,Public Health,Director of Public Health,Professional Services,,19/03/2015,"7,396.00",,Social Community Care Supplies & Services
5194175,FUTUREGOV,Public Health,Director of Public Health,Commissioned Research/Studies,,19/03/2015,"17,150.00",,Consultancy
5194241,GREATER MANCHESTER COMBINED AUTHORITY,Environmental Services,Director of Place,Engineers -External,,19/03/2015,661.05,,Unclassifiable
5193635,BRIAN OLIVER,Development Growth & Investment,Director of Place,Adaptations - Jobs <#500,Business Payment,19/03/2015,500,,"Works - Construction, Repair & Maintenance"
5193636,BRIAN OLIVER,Development Growth & Investment,Director of Place,Adaptations - Jobs <#500,Business Payment,19/03/2015,500,,"Works - Construction, Repair & Maintenance"
5193800,HOIST & SHOWER CHAIR CO,Development Growth & Investment,Director of Place,Improvement Grants - Final Mandatory,,19/03/2015,"3,695.00",,Social Community Care Supplies & Services
5194375,VINCENT OBRIEN (CONSTRUCTION),Development Growth & Investment,Director of Place,Improvement Grants - Final Mandatory,,19/03/2015,"3,653.00",,"Works - Construction, Repair & Maintenance"
5194425,K P DODD CONSTRUCTION LTD,Development Growth & Investment,Director of Place,Improvement Grants - Final Mandatory,,19/03/2015,"8,137.00",,"Works - Construction, Repair & Maintenance"
5194434,VINCENT OBRIEN (CONSTRUCTION),Development Growth & Investment,Director of Place,Improvement Grants - Final Mandatory,,19/03/2015,"2,710.00",,"Works - Construction, Repair & Maintenance"
3250500,DENNIS EAGLE LTD,Environmental Services,Director of Place,Debits Goods Received,,19/03/2015,151.26,,Vehicles
3250500,ECON ENGINEERING LTD,Environmental Services,Director of Place,Debits Goods Received,,19/03/2015,533.65,,Vehicles
3250500,F & G COMMERCIALS (OLDHAM) LIMITED,Environmental Services,Director of Place,General Materials,,19/03/2015,51.32,,Vehicles
3250500,HI-WAY COMPONENTS,Environmental Services,Director of Place,Debits Goods Received,,19/03/2015,11.68,,Vehicles
5191255,DWP,Multiple Heads of Service,Multiple Strategic Directorates,Claims Settled,,19/03/2015,600,,Non 3rd Party spend  
5191256,DWP,Multiple Heads of Service,Multiple Strategic Directorates,Claims Settled,,19/03/2015,615,,Non 3rd Party spend  
5192989,ROCOM,Multiple Heads of Service,Multiple Strategic Directorates,Computer Hardware,,19/03/2015,"4,663.24",,Information Communication Technology
5194130,FREECLAIM SOLICITORS,Multiple Heads of Service,Multiple Strategic Directorates,Claims Settled,,19/03/2015,"17,000.00",,Legal Services
5194227, ,Multiple Heads of Service,Multiple Strategic Directorates,Claims Settled,Redacted Supplier,19/03/2015,795.98,,Redacted
5193304,ROYAL MAIL GROUP PLC,Exchequer,Director of Finance,Postages,,23/03/2015,"1,842.70",,Mail Services
5187600,CREATIVE SUPPORT LTD,Adult Social Care,Director of People,Homecare Fees,,23/03/2015,"84,992.92",,Social Community Care Supplies & Services
5187602,CREATIVE SUPPORT LTD,Adult Social Care,Director of People,Independent Sector Care Fees,,23/03/2015,"67,669.36",,Social Community Care Supplies & Services
5187909,CREATIVE SUPPORT LTD,Adult Social Care,Director of People,Homecare Fees,,23/03/2015,"124,890.83",,Social Community Care Supplies & Services
5188807,CREATIVE SUPPORT LTD,Adult Social Care,Director of People,Age Concern Fees,,23/03/2015,"28,726.66",,Social Community Care Supplies & Services
5191817,ADVOCACY EXPERIENCE LTD,Adult Social Care,Director of People,Professional Services,,23/03/2015,"7,518.62",,Social Community Care Supplies & Services
5192197,WESLEY PROPERTIES (NORTHERN) LTD,Adult Social Care,Director of People,Non-Authority Accommodation Rental,,23/03/2015,"1,369.89",,Facilities & Management Services
5193719,AGE UK TAMESIDE,Adult Social Care,Director of People,Age Concern Fees,,23/03/2015,"11,473.22",,Environmental Services
5194238,MAKING SPACE,Adult Social Care,Director of People,Voluntary Organisations Fees,,23/03/2015,"20,735.75",,Social Community Care Supplies & Services
5194361,M G DOMESTIC,Adult Social Care,Director of People,Fixtures & Fittings Purchase,,23/03/2015,514.99,,Domestic Goods
5194404, ,Adult Social Care,Director of People,Contribution to Maintenance Fee Income,Redacted Supplier,23/03/2015,503.91,,Redacted
5194439,CARE UK HOMECARE,Adult Social Care,Director of People,Homecare Fees,,23/03/2015,"32,603.00",,Social Community Care Supplies & Services
5194451,CREATIVE SUPPORT LTD,Adult Social Care,Director of People,Residential Home Long Stay Fees,,23/03/2015,"1,661.52",,Social Community Care Supplies & Services
5194551, ,Adult Social Care,Director of People,Day Care Fees,Redacted Supplier,23/03/2015,551,,Redacted
5194568,ALLIED HEALTHCARE GROUP LTD (MEDICO),Adult Social Care,Director of People,Homecare Fees,,23/03/2015,"12,962.60",,Social Community Care Supplies & Services
5194610,STOCKPORT NHS FOUNDATION TRUST,Adult Social Care,Director of People,Agency Staff,,23/03/2015,"2,977.08",,Medical
5194627,CREATIVE SUPPORT LTD,Adult Social Care,Director of People,Homecare Fees,,23/03/2015,"13,634.25",,Social Community Care Supplies & Services
5194631,CREATIVE SUPPORT LTD,Adult Social Care,Director of People,Homecare Fees,,23/03/2015,"13,634.25",,Social Community Care Supplies & Services
5194633,CREATIVE SUPPORT LTD,Adult Social Care,Director of People,Homecare Fees,,23/03/2015,"13,634.25",,Social Community Care Supplies & Services
5189110,AGE UK TAMESIDE,Adults Early Intervention,Director of People,Professional Services,,23/03/2015,"19,166.67",,Environmental Services
5192314,AGE UK TAMESIDE,Adults Early Intervention,Director of People,Professional Services,,23/03/2015,"19,166.67",,Environmental Services
5192315,AGE UK TAMESIDE,Adults Early Intervention,Director of People,Professional Services,,23/03/2015,"6,930.00",,Environmental Services
5192317,AGE UK TAMESIDE,Adults Early Intervention,Director of People,Age Concern Fees,,23/03/2015,"4,660.00",,Environmental Services
5157966,PENNINE CARE NHS TRUST,Childrens Services,Director of People,Professional Child Services,,23/03/2015,836.67,,Social Community Care Supplies & Services
5194622,TRI-X-CHILDCARE LTD,Childrens Services,Director of People,It Equipment,,23/03/2015,"5,000.00",,Social Community Care Supplies & Services
5193505,STEVE MORRIS EDUCATION,Education,Director of People,Training Course Costs,,23/03/2015,"3,000.00",,Human Resources
5194493,VILLAGE URBAN RESORTS,Education,Director of People,Room Hire,,23/03/2015,826.67,,Human Resources
5194543,STAMFORD CARS UK LTD,Education,Director of People,Transport Of Pupils,,23/03/2015,983.5,,Transport
5194707,VILLAGE URBAN RESORTS,Education,Director of People,Training Course Costs,,23/03/2015,"1,612.00",,Human Resources
5194713,HOWARD COOK,Education,Director of People,Professional Services,Business Payment,23/03/2015,680,,Unclassifiable
5192456,CASH BOX CREDIT UNION,Stronger Communities,Director of People,Emergency Grant Payments,,23/03/2015,"20,000.00",,Public Bodies
5193516,THE FURNISHING SERVICE LTD,Stronger Communities,Director of People,Fixtures & Fittings Purchase,,23/03/2015,506.57,,Furniture
5193528,THE FURNISHING SERVICE LTD,Stronger Communities,Director of People,Fixtures & Fittings Purchase,,23/03/2015,553.82,,Furniture
5193596,THE GUINNESS PARTNERSHIP LTD,Stronger Communities,Director of People,Supporting People Gross Contract,,23/03/2015,"4,520.00",,Housing Management
5194149,NEW CHARTER HOUSING TRUST GROUP,Stronger Communities,Director of People,Supporting People Gross Contract,,23/03/2015,"20,022.16",,Social Community Care Supplies & Services
5194521,NEW CHARTER HOUSING TRUST GROUP,Stronger Communities,Director of People,Professional Entertainment Services,,23/03/2015,"1,000.00",,Social Community Care Supplies & Services
5194696,HYDE FESTIVAL ASSOCIATION,Stronger Communities,Director of People,Professional Entertainment Services,,23/03/2015,"3,964.00",,Financial Services
5193536,COOLSPIRIT LTD,Asset & Investment Partnership Management,Director of Place,It Equipment,,23/03/2015,"1,361.95",,Information Communication Technology
5194515,ADONI SOFTWARE,Digital Tameside,Director of Place,Computer Software,,23/03/2015,"1,800.00",,Information Communication Technology
5194635,SPECIALIST COMPUTER CENTRES LIMITED,Digital Tameside,Director of Place,It Equipment,,23/03/2015,"45,471.00",,Information Communication Technology
5189672,APSE,Environmental Services,Director of Place,Professional Services,,23/03/2015,"4,232.82",,Human Resources
5193831,PG FABRICATIONS,Environmental Services,Director of Place,General Materials,,23/03/2015,"1,780.00",,"Works - Construction, Repair & Maintenance"
5194170,POOLE TRANSPORT,Environmental Services,Director of Place,Hired Transport,,23/03/2015,"1,600.00",,Transport
5193499,TTS GROUP LTD,Public Health,Director of Public Health,Educational Equipment,,23/03/2015,"3,819.18",,Education
5194265,AGE UK TAMESIDE,Public Health,Director of Public Health,Professional Services,,23/03/2015,"13,000.00",,Environmental Services
5194399,"TAMESIDE, OLDHAM AND GLOSSOP MIND",Public Health,Director of Public Health,Professional Services,,23/03/2015,"4,000.00",,Social Community Care Supplies & Services
5194450,NEW CHARTER HOUSING TRUST GROUP,Public Health,Director of Public Health,Professional Services,,23/03/2015,"19,950.00",,Social Community Care Supplies & Services
29000024,AWBURN HOUSE MEDICAL PRACTICE,Public Health,Director of Public Health,Local Enhanced Services,,23/03/2015,"1,794.00",,Consultancy
29000024,BOOTS UK LTD,Public Health,Director of Public Health,Local Enhanced Services,,23/03/2015,"3,198.14",,Consultancy
29000024,CHURCHGATE SURGERY,Public Health,Director of Public Health,Local Enhanced Services,,23/03/2015,"1,139.50",,Consultancy
29000024,DAVAAR MEDICAL CENTRE,Public Health,Director of Public Health,Local Enhanced Services,,23/03/2015,"1,459.70",,Consultancy
29000024,DENTON MEDICAL PRACTICE,Public Health,Director of Public Health,Local Enhanced Services,,23/03/2015,908.3,,Medical
29000024,DONNEYBROOK MEDICAL CENTRE,Public Health,Director of Public Health,Local Enhanced Services,,23/03/2015,524.8,,Medical
29000024,GROSVENOR MEDICAL CENTRE,Public Health,Director of Public Health,Local Enhanced Services,,23/03/2015,"3,492.70",,Medical
29000024,HATTERSLEY GROUP PRACTICE,Public Health,Director of Public Health,Local Enhanced Services,,23/03/2015,719.7,,Consultancy
29000024,HAUGHTON-THORNLEY MEDICAL CENTRE,Public Health,Director of Public Health,Local Enhanced Services,,23/03/2015,"2,204.30",,Medical
29000024,LLOYDS PHARMACY LTD,Public Health,Director of Public Health,Local Enhanced Services,,23/03/2015,"1,683.54",,Consultancy
29000024,LOCKSIDE MEDICAL CENTRE,Public Health,Director of Public Health,Local Enhanced Services,,23/03/2015,827.3,,Medical
29000024,MANOR HOUSE SURGERY,Public Health,Director of Public Health,Local Enhanced Services,,23/03/2015,530,,Consultancy
29000024,MEDICX PHARMACY,Public Health,Director of Public Health,Local Enhanced Services,,23/03/2015,687,,Consultancy
29000024,MOSSLEY MEDICAL PRACTICE,Public Health,Director of Public Health,Local Enhanced Services,,23/03/2015,844.6,,Consultancy
29000024,S F WAIN & SONS LTD,Public Health,Director of Public Health,Local Enhanced Services,,23/03/2015,"1,172.37",,Consultancy
29000024,ST ANDREWS HOUSE MEDICAL CENTRE,Public Health,Director of Public Health,Local Enhanced Services,,23/03/2015,"1,013.60",,Consultancy
29000024,STAMFORD HOUSE MEDICAL CENTRE,Public Health,Director of Public Health,Local Enhanced Services,,23/03/2015,578.6,,Medical
29000024,STAVELEIGH MEDICAL CENTRE,Public Health,Director of Public Health,Local Enhanced Services,,23/03/2015,957.9,,Medical
29000024,THE CO-OP PHARMACY,Public Health,Director of Public Health,Local Enhanced Services,,23/03/2015,"4,610.04",,Medical
29000024,WINDMILL MEDICAL PRACTICE,Public Health,Director of Public Health,Local Enhanced Services,,23/03/2015,"1,172.20",,Medical
5194428,JACKSON & TAYLOR LTD,Development Growth & Investment,Director of Place,Improvement Grants - Final Mandatory,,23/03/2015,"4,580.00",,"Works - Construction, Repair & Maintenance"
5194672,TAMESIDE SEA CADETS,Corporate Costs,Corporate Costs,Contributions,,25/03/2015,"1,000.00",,Leisure Services
5194736,HYDE BANGLADESH WELFARE  ASSOCIATION,Corporate Costs,Corporate Costs,Contributions,,25/03/2015,"1,000.00",,Unclassifiable
5194737,CROFT MILLENNIUM GREEN TRUST,Corporate Costs,Corporate Costs,Contributions,,25/03/2015,500,,Financial Services
5194000,ROYAL MAIL GROUP PLC,Exchequer,Director of Finance,Postages,,25/03/2015,"1,503.04",,Mail Services
5194094,TAMESIDE CITIZENS ADVICE BUREAU,Exchequer,Director of Finance,Professional Services,,25/03/2015,"3,639.50",,Social Community Care Supplies & Services
5192839,WILLIAMS WOODWARD LTD,Finance,Director of Finance,Professional Consultancy Services,,25/03/2015,"5,395.00",,CONSULTANCY
5194628,BURY MBC,Governance,Director of Governance,Subscriptions,,25/03/2015,"4,800.00",,Unclassifiable
5194837,MIDLAND SOFTWARE LTD,Governance,Director of Governance,Professional Services,,25/03/2015,500,,Information Communication Technology
460296,AUDEN HOUSE RESIDENTIAL HOME,Adult Social Care,Director of People,Residential Home Long Stay Fees,,25/03/2015,"4,916.13",,Social Community Care Supplies & Services
460296,BAMFORD GRANGE N/H,Adult Social Care,Director of People,Residential Home Long Stay Fees,,25/03/2015,"2,745.90",,Social Community Care Supplies & Services
460296,BEECHFIELD LODGE,Adult Social Care,Director of People,Residential Home Long Stay Fees,,25/03/2015,"1,003.07",,Social Community Care
460296,BLACKCLIFFE LTD,Adult Social Care,Director of People,Residential Home Long Stay Fees,,25/03/2015,"61,845.46",,Social Community Care Supplies & Services
460296,BOURNE HOUSE RESIDENTIAL HOME,Adult Social Care,Director of People,Residential Home Long Stay Fees,,25/03/2015,"35,071.23",,Social Community Care Supplies & Services
460296,BOWLACRE HOME,Adult Social Care,Director of People,Residential Home Long Stay Fees,,25/03/2015,"17,317.14",,Social Community Care Supplies & Services
460296,BROOKVALE,Adult Social Care,Director of People,Residential Home Long Stay Fees,,25/03/2015,"6,598.88",,Social Community Care Supplies & Services
460296,BROUGHTON HOUSE HOME FOR  EX-SERVICE PERSONNEL,Adult Social Care,Director of People,Residential Home Long Stay Fees,,25/03/2015,880.07,,Social Community Care Supplies & Services
460296,CAMBIAN LEARNING DISABILITIES MIDLANDS LTD,Adult Social Care,Director of People,Residential Home Long Stay Fees,,25/03/2015,"18,949.33",,Social Community Care Supplies & Services
460296,CANTERBURY CARE HOMES LTD,Adult Social Care,Director of People,Residential Home Long Stay Fees,,25/03/2015,953.44,,Social Community Care Supplies & Services
460296,CARE UK LEARNING DISABILITIES SERVS LTD,Adult Social Care,Director of People,Residential Home Long Stay Fees,,25/03/2015,"10,460.57",,Public Bodies
460296,CHADDERTON TOTAL CAREUNIT LTD,Adult Social Care,Director of People,Residential Home Long Stay Fees,,25/03/2015,"6,354.36",,Social Community Care Supplies & Services
460296,CHARNLEY HOUSE LIMITED,Adult Social Care,Director of People,Residential Home Long Stay Fees,,25/03/2015,"16,910.98",,Social Community Care Supplies & Services
460296,CLARKSON HOUSE,Adult Social Care,Director of People,Residential Home Long Stay Fees,,25/03/2015,"17,597.87",,Social Community Care Supplies & Services
460296,CLEARWATER CARE,Adult Social Care,Director of People,Residential Home Long Stay Fees,,25/03/2015,"3,398.57",,Social Community Care
460296,CLIFFEMOUNT COMMUNITY CARE,Adult Social Care,Director of People,Residential Home Long Stay Fees,,25/03/2015,"19,714.52",,Public Bodies
460296,COMPASS CARE LIMITED,Adult Social Care,Director of People,Residential Home Long Stay Fees,,25/03/2015,"4,318.24",,Social Community Care Supplies & Services
460296,DANSHELL HEALTHCARE LTD,Adult Social Care,Director of People,Residential Home Long Stay Fees,,25/03/2015,"4,200.00",,Social Community Care
460296,DOM POLSKI CARE HOME,Adult Social Care,Director of People,Residential Home Long Stay Fees,,25/03/2015,"5,446.93",,Social Community Care
460296,EHC MOSTON GRANGE LTD,Adult Social Care,Director of People,Residential Home Long Stay Fees,,25/03/2015,"6,987.72",,Social Community Care Supplies & Services
460296,ELDER HOMES GROUP,Adult Social Care,Director of People,Residential Home Long Stay Fees,,25/03/2015,491.08,,Social Community Care Supplies & Services
460296,ELDER HOMES GROUP,Adult Social Care,Director of People,Residential Home Long Stay Fees,,25/03/2015,"58,161.04",,Social Community Care Supplies & Services
460296,EQUALIBRIUM HEALTH CARE,Adult Social Care,Director of People,Residential Home Long Stay Fees,,25/03/2015,"27,615.27",,Social Community Care Supplies & Services
460296,ERNELESTHORP NURSING HOME,Adult Social Care,Director of People,Residential Home Long Stay Fees,,25/03/2015,"1,783.43",,Social Community Care Supplies & Services
460296,FAIRFIELD VIEW CARE LTD,Adult Social Care,Director of People,Residential Home Long Stay Fees,,25/03/2015,"47,773.28",,Social Community Care Supplies & Services
460296,FERN BANK,Adult Social Care,Director of People,Residential Home Long Stay Fees,,25/03/2015,"19,538.24",,Social Community Care Supplies & Services
460296,FIRBANK HOUSE NURSING & RESIDENTIAL CARE HOME,Adult Social Care,Director of People,Residential Home Long Stay Fees,,25/03/2015,"60,243.19",,Social Community Care Supplies & Services
460296,FOUR SEASONS HEALTH CARE,Adult Social Care,Director of People,Residential Home Long Stay Fees,,25/03/2015,"30,613.18",,Social Community Care Supplies & Services
460296,GLENROYD CARE HOME,Adult Social Care,Director of People,Residential Home Long Stay Fees,,25/03/2015,"1,786.84",,Social Community Care Supplies & Services
460296,GRANGEFIELD,Adult Social Care,Director of People,Residential Home Long Stay Fees,,25/03/2015,963.56,,Social Community Care
460296,HC ONE OF A KIND - GUIDE LANE,Adult Social Care,Director of People,Residential Home Long Stay Fees,,25/03/2015,"32,347.91",,Social Community Care
460296,HC ONE OF A KIND - KINGS PARK,Adult Social Care,Director of People,Residential Home Long Stay Fees,,25/03/2015,"1,314.84",,Social Community Care
460296,HC ONE OF A KIND - KINGS PARK,Adult Social Care,Director of People,Residential Home Long Stay Fees,,25/03/2015,"48,699.23",,Social Community Care
460296,HEATHCOTES CARE,Adult Social Care,Director of People,Residential Home Long Stay Fees,,25/03/2015,"32,116.60",,Social Community Care
460296,HILLTOP HALL,Adult Social Care,Director of People,Residential Home Long Stay Fees,,25/03/2015,"5,386.56",,Unclassifiable
460296,LAUREL BANK RESIDENTIAL CARE HOME LTD,Adult Social Care,Director of People,Residential Home Long Stay Fees,,25/03/2015,"12,280.59",,Social Community Care Supplies & Services
460296,LOUTH CARE LTD,Adult Social Care,Director of People,Residential Home Long Stay Fees,,25/03/2015,"1,789.14",,Social Community Care
460296,LYNWOOD,Adult Social Care,Director of People,Residential Home Long Stay Fees,,25/03/2015,"1,935.29",,Social Community Care Supplies & Services
460296,MARPLE DALE HALL LTD,Adult Social Care,Director of People,Residential Home Long Stay Fees,,25/03/2015,"1,074.30",,Social Community Care Supplies & Services
460296,MERIDIAN HEALTHCARE LTD,Adult Social Care,Director of People,Residential Home Long Stay Fees,,25/03/2015,"1,473.24",,Social Community Care Supplies & Services
460296,MERIDIAN HEALTHCARE LTD,Adult Social Care,Director of People,Residential Home Long Stay Fees,,25/03/2015,"810,135.49",,Social Community Care Supplies & Services
460296,MOSS COTTAGE NURSING HOME,Adult Social Care,Director of People,Residential Home Long Stay Fees,,25/03/2015,538.6,,Social Community Care Supplies & Services
460296,MOSS COTTAGE NURSING HOME,Adult Social Care,Director of People,Residential Home Long Stay Fees,,25/03/2015,"23,232.32",,Social Community Care Supplies & Services
460296,MRS P RUGGEE,Adult Social Care,Director of People,Residential Home Long Stay Fees,Business Payment,25/03/2015,"7,952.57",,Social Community Care Supplies & Services
460296,OAKWOOD CARE CENTRE,Adult Social Care,Director of People,Residential Home Long Stay Fees,,25/03/2015,"7,294.98",,Social Community Care Supplies & Services
460296,PENDLEBURY CARE HOMES LTD,Adult Social Care,Director of People,Residential Home Long Stay Fees,,25/03/2015,"1,847.29",,Social Community Care Supplies & Services
460296,PENNINE CARE CENTRE,Adult Social Care,Director of People,Residential Home Long Stay Fees,,25/03/2015,"3,660.17",,Social Community Care Supplies & Services
460296,PHOENIX FUTURES,Adult Social Care,Director of People,Residential Home Long Stay Fees,,25/03/2015,"9,438.93",,Medical
460296,PROGRESS ADULT SERVICES LIMITED,Adult Social Care,Director of People,Residential Home Long Stay Fees,,25/03/2015,"13,352.14",,Social Community Care
460296,RIVERSIDE CARE CENTRE,Adult Social Care,Director of People,Residential Home Long Stay Fees,,25/03/2015,491.08,,Social Community Care Supplies & Services
460296,RIVERSIDE CARE CENTRE,Adult Social Care,Director of People,Residential Home Long Stay Fees,,25/03/2015,"65,609.92",,Social Community Care Supplies & Services
460296,RUSHCLIFFE CARE LTD T/A OAKFORD MANOR NURSING HOME,Adult Social Care,Director of People,Residential Home Long Stay Fees,,25/03/2015,"4,148.10",,Social Community Care Supplies & Services
460296,SPINAL UNIT ACTION GROUP,Adult Social Care,Director of People,Residential Home Long Stay Fees,,25/03/2015,"1,987.89",,Social Community Care Supplies & Services
460296,ST GEORGE'S NURSING HOME (OLDHAM) LTD,Adult Social Care,Director of People,Residential Home Long Stay Fees,,25/03/2015,"26,130.98",,Social Community Care Supplies & Services
460296,ST LAWRENCES LODGE,Adult Social Care,Director of People,Residential Home Long Stay Fees,,25/03/2015,"11,586.20",,Social Community Care Supplies & Services
460296,ST MARY'S CONTINUING CARE LTD,Adult Social Care,Director of People,Residential Home Long Stay Fees,,25/03/2015,"10,883.83",,Social Community Care Supplies & Services
460296,STALEY HOUSE EPH,Adult Social Care,Director of People,Residential Home Long Stay Fees,,25/03/2015,"29,776.31",,Social Community Care Supplies & Services
460296,SUNNY BANK PRS LTD,Adult Social Care,Director of People,Residential Home Long Stay Fees,,25/03/2015,"2,551.07",,Social Community Care Supplies & Services
460296,THE ALEXANDRA,Adult Social Care,Director of People,Residential Home Long Stay Fees,,25/03/2015,"1,944.14",,Social Community Care Supplies & Services
460296,THE DAVID LEWIS CENTRE,Adult Social Care,Director of People,Residential Home Long Stay Fees,,25/03/2015,"4,709.49",,Social Community Care
460296,THE HESLEY GROUP LTD,Adult Social Care,Director of People,Residential Home Long Stay Fees,,25/03/2015,"10,482.55",,Social Community Care Supplies & Services
460296,THE JOSEPH COX CHARITY,Adult Social Care,Director of People,Residential Home Long Stay Fees,,25/03/2015,"3,545.03",,Social Community Care Supplies & Services
460296,THE OLD VICARAGE,Adult Social Care,Director of People,Residential Home Long Stay Fees,,25/03/2015,"6,124.29",,Social Community Care Supplies & Services
460296,THE ROYAL ELMS REST HOMES,Adult Social Care,Director of People,Residential Home Long Stay Fees,,25/03/2015,"1,841.58",,Social Community Care
460296,THE VICARAGE RESIDENTIAL CARE HOME,Adult Social Care,Director of People,Residential Home Long Stay Fees,,25/03/2015,"21,150.82",,Social Community Care Supplies & Services
460296,THORNCLIFFE GRANGE NURSING HOME,Adult Social Care,Director of People,Residential Home Long Stay Fees,,25/03/2015,"29,987.38",,Social Community Care Supplies & Services
460296,TREETON GRANGE NURSING HOME,Adult Social Care,Director of People,Residential Home Long Stay Fees,,25/03/2015,"1,234.11",,Social Community Care Supplies & Services
460296,TURNING POINT,Adult Social Care,Director of People,Residential Home Long Stay Fees,,25/03/2015,"5,040.15",,Social Community Care Supplies & Services
460296,VICTORIA NURSING HOME,Adult Social Care,Director of People,Residential Home Long Stay Fees,,25/03/2015,"16,688.57",,Social Community Care Supplies & Services
460296,WESTMINSTER HEALTH CARE LTD,Adult Social Care,Director of People,Residential Home Long Stay Fees,,25/03/2015,"14,183.25",,Social Community Care Supplies & Services
460296,WINDMILL CARE HOME,Adult Social Care,Director of People,Residential Home Long Stay Fees,,25/03/2015,"3,825.73",,Social Community Care Supplies & Services
460296,WOODLANDS RESIDENTIAL CARE HOME,Adult Social Care,Director of People,Residential Home Long Stay Fees,,25/03/2015,"7,971.59",,Social Community Care Supplies & Services
5194747,TAMESIDE ARTS LTD,Adult Social Care,Director of People,Professional Services,,25/03/2015,"1,101.60",,Leisure Services
5194812,ALLIED HEALTHCARE GROUP LTD (MEDICO),Adult Social Care,Director of People,Homecare Fees,,25/03/2015,"13,158.00",,Social Community Care Supplies & Services
5194844,MARY FODEN,Adult Social Care,Director of People,Professional Services,Business Payment,25/03/2015,509,,Unclassifiable
5194846,TUNSTALL HEALTHCARE (UK) LTD,Adult Social Care,Director of People,It Equipment,,25/03/2015,995,,Social Community Care Supplies & Services
5194861,ALLIED HEALTHCARE GROUP LTD (MEDICO),Adult Social Care,Director of People,Homecare Fees,,25/03/2015,"13,172.00",,Social Community Care Supplies & Services
5194964, ,Adult Social Care,Director of People,Residential Home Short Stay Fees,Redacted Supplier,25/03/2015,883.26,,Redacted
5195030,ABLE CARE AND SUPPORT SERVICES LTD,Adult Social Care,Director of People,Homecare Fees,,25/03/2015,"1,534.00",,Social Community Care Supplies & Services
5195031,COMFORT CALL LIMITED,Adult Social Care,Director of People,Homecare Fees,,25/03/2015,"33,655.07",,Medical
5195038,LAUREL BANK SUPPORT AT HOME,Adult Social Care,Director of People,Homecare Fees,,25/03/2015,518.81,,Social Community Care Supplies & Services
5183127,NHS TAMESIDE AND GLOSSOP CCG,Childrens Services,Director of People,Professional Services,,25/03/2015,"93,750.00",,Medical
5194467,HMCTS,Childrens Services,Director of People,Court Fees,,25/03/2015,"12,330.00",,Unclassifiable
5194715,AYRES WATERS,Childrens Services,Director of People,Legal Fees,Business Payment,25/03/2015,850,,Legal
5195175,RANDSTAD EDUCATION LIMITED,Childrens Services,Director of People,Professional Child Services,,25/03/2015,512,,Education
5195259,MISS JANICE WILLS,Childrens Services,Director of People,Legal Fees,Business Payment,25/03/2015,950,,Legal Services
5195297,MISS KATE BRAMALL,Childrens Services,Director of People,Legal Fees,Business Payment,25/03/2015,"2,650.00",,Unclassifiable
5195306,ANDREW MOORE,Childrens Services,Director of People,Legal Fees,Business Payment,25/03/2015,"1,800.00",,Legal Services
5195342,ANDREW MOORE,Childrens Services,Director of People,Legal Fees,Business Payment,25/03/2015,"1,500.00",,Legal Services
5195343,MISS KATE BRAMALL,Childrens Services,Director of People,Legal Fees,Business Payment,25/03/2015,"1,000.00",,Unclassifiable
5194490,VILLAGE URBAN RESORTS,Education,Director of People,Room Hire,,25/03/2015,833,,Human Resources
5194867,CALLROUND LIMITED,Education,Director of People,Professional Services,,25/03/2015,"1,200.00",,Public Bodies
5194869,DENTON LINKS,Education,Director of People,Transport Of Ola Pupils,,25/03/2015,"1,725.00",,Transport
5194870,DENTON LINKS,Education,Director of People,Transport Of Ola Pupils,,25/03/2015,"2,505.00",,Transport
5194879,DENTON LINKS,Education,Director of People,Transport Of Ola Pupils,,25/03/2015,"1,125.00",,Transport
5194126,STOCKPORT NHS FOUNDATION TRUST,Strategy & Early Intervention,Director of People,Professional Services,,25/03/2015,"2,435.50",,Medical
5194910,NEW CHARTER HOUSING TRUST GROUP,Strategy & Early Intervention,Director of People,Contributions,,25/03/2015,"30,696.60",,Social Community Care Supplies & Services
470608,ARCO LIMITED,Stronger Communities,Director of People,General Materials,,25/03/2015,53.25,,Clothing
470608,ARCO LIMITED,Stronger Communities,Director of People,General Materials,,25/03/2015,44.58,,Clothing
5192438,THE FURNISHING SERVICE LTD,Stronger Communities,Director of People,Fixtures & Fittings Purchase,,25/03/2015,"1,492.09",,Furniture
5193506,TOW MASTER LTD,Stronger Communities,Director of People,General Equipment Purchase,,25/03/2015,"3,098.00",,Vehicles
5193933,ADULLAM HOMES HOUSING ASSOC LTD,Stronger Communities,Director of People,Supporting People Gross Contract,,25/03/2015,"37,226.00",,Social Community Care Supplies & Services
5194652,NEW CHARTER HOUSING TRUST GROUP,Stronger Communities,Director of People,Supporting People Gross Contract,,25/03/2015,"29,159.25",,Social Community Care Supplies & Services
5194686,OVERDRIVE,Stronger Communities,Director of People,Purchase Books,,25/03/2015,"3,752.71",,Unclassifiable
5194697,HYDE BANGLADESH WELFARE  ASSOCIATION,Stronger Communities,Director of People,Room Hire,,25/03/2015,"2,000.00",,Unclassifiable
5194718,PAYPOINT COLLECTIONS LTD,Stronger Communities,Director of People,Emergency Grant Payments,,25/03/2015,"1,287.00",,Unclassifiable
5194724,STONE SOUP,Stronger Communities,Director of People,Professional Entertainment Services,,25/03/2015,"1,355.00",,Public Bodies
5194727,STONE SOUP,Stronger Communities,Director of People,Professional Entertainment Services,,25/03/2015,"2,215.01",,Public Bodies
5194730,STONE SOUP,Stronger Communities,Director of People,Professional Entertainment Services,,25/03/2015,"2,092.80",,Public Bodies
5194831,ALICE SMITH,Stronger Communities,Director of People,Artwork,Business Payment,25/03/2015,615,,Unclassifiable
5194906,NEW CHARTER HOUSING TRUST GROUP,Stronger Communities,Director of People,Professional Services,,25/03/2015,"40,000.00",,Social Community Care Supplies & Services
5195009,LEISA GRAY,Stronger Communities,Director of People,Professional Entertainment Services,Business Payment,25/03/2015,675,,Unclassifiable
5195169,PENDLE PRODUCTIONS,Stronger Communities,Director of People,Professional Entertainment Services,,25/03/2015,934.65,,Leisure Services
5195170,PROFILE SECURITY SERVICES LIMITED,Stronger Communities,Director of People,Security Services,,25/03/2015,514.2,,Facilities & Management Services
5193488,MCI DIVENTI LTD,Asset & Investment Partnership Management,Director of Place,Communications Equipment,,25/03/2015,"10,455.50",,Information Communication Technology
5193590,TRIBAL EDUCATION LTD,Asset & Investment Partnership Management,Director of Place,Computer Software Maintenance Costs,,25/03/2015,850,,Education
5194780,ADDLESHAW GODDARD,Asset & Investment Partnership Management,Director of Place,Legal Fees,,25/03/2015,"13,419.30",,Legal Services
5194866,MOSSLEY PRIVATE HIRE,Asset & Investment Partnership Management,Director of Place,Hired Transport,,25/03/2015,900,,Transport
5193667,HOIST & SHOWER CHAIR CO,Development Growth & Investment,Director of Place,Improvement Grants - Final Mandatory,,25/03/2015,"3,380.00",,Social Community Care Supplies & Services
470608,AGGREGATE INDUSTRIES UK LIMITED,Environmental Services,Director of Place,General Materials,,25/03/2015,"4,554.14",,Highway Equipment & Materials�
470608,AJC ROAD SWEEPERS,Environmental Services,Director of Place,Sub-contractor Services,,25/03/2015,"2,712.50",,Vehicles
470608,ALTITUDE SERVICES,Environmental Services,Director of Place,Sub-contractor Services,,25/03/2015,"5,516.40",,Utilities
470608,ARCO LIMITED,Environmental Services,Director of Place,General Materials,,25/03/2015,384.61,,Clothing
470608,AUTOMATIC ALARMS LTD,Environmental Services,Director of Place,General Materials,,25/03/2015,"2,056.73",,Facilities & Management Services
470608,BLOK N MESH UK LTD,Environmental Services,Director of Place,General Materials,,25/03/2015,"21,925.00",,Building Construction Materials
470608,BRAMHALL SURFACING LTD,Environmental Services,Director of Place,Sub-contractor Services,,25/03/2015,"24,640.00",,"Works - Construction, Repair & Maintenance"
470608,BROXAP LIMITED,Environmental Services,Director of Place,General Materials,,25/03/2015,"2,688.00",,Highway Equipment & Materials�
470608,HARTTRON  LTD,Environmental Services,Director of Place,Sub-contractor Services,,25/03/2015,"9,600.00",,"Works - Construction, Repair & Maintenance"
470608,KEN TAYLOR SUPPLIES LTD,Environmental Services,Director of Place,General Materials,,25/03/2015,982.85,,Unclassifiable
470608,NAL LIMITED,Environmental Services,Director of Place,General Materials,,25/03/2015,"1,096.82",,Highway Equipment & Materials�
470608,P P O'CONNOR,Environmental Services,Director of Place,Sub-contractor Services,Business Payment,25/03/2015,"3,829.50",,Public Bodies
470608,PG FABRICATIONS,Environmental Services,Director of Place,Sub-contractor Services,,25/03/2015,943,,"Works - Construction, Repair & Maintenance"
470608,SECURETASK SECURITY LTD,Environmental Services,Director of Place,Sub-contractor Services,,25/03/2015,"3,572.58",,Facilities & Management Services
470608,T N ROBINSON LTD,Environmental Services,Director of Place,General Materials,,25/03/2015,"1,270.54",,Building Construction Materials
470608,TARMAC CENTRAL LIMITED,Environmental Services,Director of Place,General Materials,,25/03/2015,"1,375.19",,Highway Equipment & Materials�
470608,TARMAC CENTRAL LIMITED,Environmental Services,Director of Place,Stores Purchases,,25/03/2015,136.44,,Highway Equipment & Materials�
470608,WOLSELEY UK LTD,Environmental Services,Director of Place,General Materials,,25/03/2015,"6,473.19",,Highway Equipment & Materials�
3250500,TERBERG MATEC UK LTD,Environmental Services,Director of Place,Consumable Materials,,25/03/2015,18.66,,Environmental Services
3250500,TERBERG MATEC UK LTD,Environmental Services,Director of Place,General Materials,,25/03/2015,144.61,,Environmental Services
3250500,THOMAS HARDIE,Environmental Services,Director of Place,General Materials,Business Payment,25/03/2015,674.57,,Vehicles
5187822,PROFILE SECURITY SERVICES LIMITED,Environmental Services,Director of Place,General Materials,,25/03/2015,"6,813.18",,Facilities & Management Services
5192648,SERENITY URNS,Environmental Services,Director of Place,General Materials,,25/03/2015,"2,600.00",,Cemetery & Crematorium
5193179,TAME VALLEY COMMUNITY GREEN,Environmental Services,Director of Place,Security Services,,25/03/2015,500,,Unclassifiable
5193471,MASSEY & HARRIS LTD,Environmental Services,Director of Place,Play Equipment,,25/03/2015,"9,512.50",,Sports & Playground Equipment & Maintenance
5193987,IDOX SOFTWARE LIMITED,Environmental Services,Director of Place,It Equipment,,25/03/2015,902.68,,Information Communication Technology
460296,CYNGOR ALCOHOL INFORMATION SERVICE - CAIS,Public Health,Director of Public Health,Residential Home Long Stay Fees,,25/03/2015,"7,482.00",,Medical
460296,GREATER MANCHESTER WEST MENTAL HEALTH FOUNDATION TRUST,Public Health,Director of Public Health,Residential Home Long Stay Fees,,25/03/2015,"8,880.00",,Medical
460296,PHOENIX FUTURES,Public Health,Director of Public Health,Residential Home Long Stay Fees,,25/03/2015,"10,575.85",,Medical
460296,TURNING POINT,Public Health,Director of Public Health,Residential Home Long Stay Fees,,25/03/2015,"1,621.07",,Social Community Care Supplies & Services
5187174,BT PLC,Public Health,Director of Public Health,Telephone Landline Costs,,25/03/2015,"1,668.75",,Information Communication Technology
5192801,MADELEINE LINDLEY LTD,Public Health,Director of Public Health,Educational Equipment,,25/03/2015,995.17,,Education
5193582,THE BRAZELTON CENTRE IN GREAT BRITAIN,Public Health,Director of Public Health,Other Accomodation Related Costs,,25/03/2015,740,,Human Resources
5193582,THE BRAZELTON CENTRE IN GREAT BRITAIN,Public Health,Director of Public Health,Training Course Costs,,25/03/2015,"12,070.00",,Human Resources
5193859,LIFELINE PROJECT LTD (PH),Public Health,Director of Public Health,Professional Services,,25/03/2015,"24,989.00",,Consultancy
5194184,STOCKPORT NHS FOUNDATION TRUST,Public Health,Director of Public Health,Professional Services,,25/03/2015,"279,776.00",,Medical
5194541,COMMUNITY AND VOLUNTARY ACTION TAMESIDE,Public Health,Director of Public Health,Professional Services,,25/03/2015,"100,000.00",,Financial Services
5194625,TOBACCO FREE FUTURES,Public Health,Director of Public Health,Professional Services,,25/03/2015,"2,161.00",,Consultancy
5194640,COMMUNITY CHANGE TRUST T/A COMMUNITY CHANGE FOUNDATION,Public Health,Director of Public Health,Professional Services,,25/03/2015,"7,500.00",,Human Resources
5194911,HOMESTART TAMESIDE & OLDHAM,Public Health,Director of Public Health,Professional Services,,25/03/2015,"16,666.67",,Social Community Care Supplies & Services
5195178,NHS TAMESIDE AND GLOSSOP CCG,Public Health,Director of Public Health,Professional Services,,25/03/2015,"94,300.21",,Medical
470608,ARCO LIMITED,Environmental Services,Director of Place,Debits Goods Received,,25/03/2015,181.03,,Clothing
470608,CASTINGS SERVICES NW LTD,Environmental Services,Director of Place,Debits Goods Received,,25/03/2015,"2,232.50",,Building Construction Materials
470608,KEN TAYLOR SUPPLIES LTD,Environmental Services,Director of Place,Debits Goods Received,,25/03/2015,24,,Unclassifiable
470608,NEWEY & EYRE LTD,Environmental Services,Director of Place,Debits Goods Received,,25/03/2015,891.74,,Highway Equipment & Materials�
470608,P F CUSACK LTD,Environmental Services,Director of Place,Debits Goods Received,,25/03/2015,622.07,,Horticultural
470608,STAINTON METAL CO LTD,Environmental Services,Director of Place,Debits Goods Received,,25/03/2015,"3,313.40",,Highway Equipment & Materials�
470608,T N ROBINSON LTD,Environmental Services,Director of Place,Debits Goods Received,,25/03/2015,160,,Building Construction Materials
470608,TARMAC CENTRAL LIMITED,Environmental Services,Director of Place,Debits Goods Received,,25/03/2015,"3,733.53",,Highway Equipment & Materials�
5193539,J A FINNERTY LTD,Development Growth & Investment,Director of Place,Improvement Grants - Final Mandatory,,25/03/2015,"9,089.00",,"Works - Construction, Repair & Maintenance"
5194960,S ROCHE,Development Growth & Investment,Director of Place,Improvement Grants - Final Mandatory,Business Payment,25/03/2015,"7,011.60",,Building Construction Materials
5194962,S ROCHE,Development Growth & Investment,Director of Place,Improvement Grants - Final Mandatory,Business Payment,25/03/2015,"1,860.00",,Building Construction Materials
5195121,PARKING MATTERS LIMITED,Development Growth & Investment,Director of Place,External  Consultants,,25/03/2015,"10,000.00",,Traffic Management
5195334,MATTHEWS & GOODMAN LLP,Asset & Investment Partnership Management,Director of Place,Legal Fees,,25/03/2015,950,,Consultancy
3250500,TERBERG MATEC UK LTD,Environmental Services,Director of Place,Debits Goods Received,,25/03/2015,338.11,,Environmental Services
470608,KEN TAYLOR SUPPLIES LTD,Multiple Heads of Service,Multiple Strategic Directorates,General Materials,,25/03/2015,107.85,,Unclassifiable
470608,P P O'CONNOR,Multiple Heads of Service,Multiple Strategic Directorates,Tax Retained Sub Contractors,Business Payment,25/03/2015,-765.9,,Public Bodies
470608,PG FABRICATIONS,Multiple Heads of Service,Multiple Strategic Directorates,Tax Retained Sub Contractors,,25/03/2015,-110.2,,"Works - Construction, Repair & Maintenance"
5194053,HEPTONSTALLS SOLICITORS,Multiple Heads of Service,Multiple Strategic Directorates,Claims Settled,,25/03/2015,856,,Unclassifiable
5194400,LEO ABSE AND COHEN SOLICITORS,Multiple Heads of Service,Multiple Strategic Directorates,Claims Settled,,25/03/2015,"6,159.65",,Unclassifiable
5194437,UPDATA INFRASTRUCTURE UK LTD,Multiple Heads of Service,Multiple Strategic Directorates,Telephone Landline Costs,,25/03/2015,"18,882.50",,Consultancy
5194438,UPDATA INFRASTRUCTURE UK LTD,Multiple Heads of Service,Multiple Strategic Directorates,Telephone Landline Costs,,25/03/2015,"8,197.50",,Consultancy
5194522,UPDATA INFRASTRUCTURE UK LTD,Multiple Heads of Service,Multiple Strategic Directorates,Telephone Landline Costs,,25/03/2015,"22,870.00",,Consultancy
5194738,ZURICH MUNICIPAL CLAIMS BUREAU,Multiple Heads of Service,Multiple Strategic Directorates,Reimbursement Paid To Insurers,,25/03/2015,"25,000.00",,Financial Services
5194783,TRAVELERS INSURANCE COMPANY LTD,Multiple Heads of Service,Multiple Strategic Directorates,Reimbursement Paid To Insurers,,25/03/2015,"17,937.91",,Financial Services
5195556,POSTAGE BY PHONE PITNEY BOWES LTD,Exchequer,Director of Finance,Postages,,26/03/2015,"5,008.00",,Mail Services
5195562,POSTAGE BY PHONE PITNEY BOWES LTD,Exchequer,Director of Finance,Postages,,26/03/2015,"4,980.80",,Mail Services
5194005,WILLIAMS WOODWARD LTD,Finance,Director of Finance,Professional Consultancy Services,,26/03/2015,"3,320.00",,CONSULTANCY
5194143,MANCHESTER METROPOLITAN UNIVERSITY,Governance,Director of Governance,Training Course Costs,,26/03/2015,870,,Education
5194157,MANCHESTER METROPOLITAN UNIVERSITY,Governance,Director of Governance,Training Course Costs,,26/03/2015,870,,Education
5194159,MANCHESTER METROPOLITAN UNIVERSITY,Governance,Director of Governance,Training Course Costs,,26/03/2015,870,,Education
5194160,MANCHESTER METROPOLITAN UNIVERSITY,Governance,Director of Governance,Training Course Costs,,26/03/2015,870,,Education
5194161,MANCHESTER METROPOLITAN UNIVERSITY,Governance,Director of Governance,Training Course Costs,,26/03/2015,870,,Education
5194162,MANCHESTER METROPOLITAN UNIVERSITY,Governance,Director of Governance,Training Course Costs,,26/03/2015,870,,Education
5194168,MANCHESTER METROPOLITAN UNIVERSITY,Governance,Director of Governance,Training Course Costs,,26/03/2015,870,,Education
5194169,MANCHESTER METROPOLITAN UNIVERSITY,Governance,Director of Governance,Training Course Costs,,26/03/2015,870,,Education
460297,BELMONT PARKHILL LTD,Adult Social Care,Director of People,Residential Home Long Stay Fees,,26/03/2015,"36,372.89",,Social Community Care Supplies & Services
460297,JIGSAW CREATIVE CARE LIMITED,Adult Social Care,Director of People,Residential Home Long Stay Fees,,26/03/2015,"39,842.43",,Social Community Care Supplies & Services
5188115,ALTERNATIVE FUTURES GROUP,Adult Social Care,Director of People,Homecare Fees,,26/03/2015,"116,656.04",,Social Community Care Supplies & Services
5192182,NORTHERN PROPERTIES LTD,Adult Social Care,Director of People,Non-Authority Accommodation Rental,,26/03/2015,"1,847.29",,Facilities & Management Services
5192184,STAMFORD PROPERTIES,Adult Social Care,Director of People,Non-Authority Accommodation Rental,,26/03/2015,"1,017.43",,Unclassifiable
5192185,HAMILTON PROPERTIES,Adult Social Care,Director of People,Non-Authority Accommodation Rental,,26/03/2015,"1,575.20",,Housing Management
5192186,STAMFORD PROPERTIES,Adult Social Care,Director of People,Non-Authority Accommodation Rental,,26/03/2015,"2,552.73",,Unclassifiable
5192188,HUGH MASON PROPERTIES LIMITED,Adult Social Care,Director of People,Non-Authority Accommodation Rental,,26/03/2015,"2,471.40",,Facilities & Management Services
5192190,HUGH MASON PROPERTIES LIMITED,Adult Social Care,Director of People,Non-Authority Accommodation Rental,,26/03/2015,"2,207.18",,Facilities & Management Services
5192191,HUGH MASON PROPERTIES LIMITED,Adult Social Care,Director of People,Non-Authority Accommodation Rental,,26/03/2015,"2,207.18",,Facilities & Management Services
5192195,CROFT INVESTMENTS LTD,Adult Social Care,Director of People,Non-Authority Accommodation Rental,,26/03/2015,"2,024.61",,Social Community Care Supplies & Services
5192859,PROGRESS CARE HOUSING ASSOCIATION LIMITED,Adult Social Care,Director of People,Non-Authority Accommodation Rental,,26/03/2015,"5,316.08",,Housing Management
5192983,TYNETEC,Adult Social Care,Director of People,It Equipment,,26/03/2015,"9,617.90",,Social Community Care
5192984,TYNETEC,Adult Social Care,Director of People,It Equipment,,26/03/2015,"7,141.30",,Social Community Care
5193023,PROGRESS CARE HOUSING ASSOCIATION LIMITED,Adult Social Care,Director of People,Non-Authority Accommodation Rental,,26/03/2015,"5,316.08",,Housing Management
5193240,TURNING POINT SERVICES LTD,Adult Social Care,Director of People,Independent Sector Care Fees,,26/03/2015,"46,566.67",,Social Community Care
5193472,ROSS AUTO ENGINEERING LIMITED,Adult Social Care,Director of People,Joint Loans Store Fee,,26/03/2015,"110,751.06",,Social Community Care
5193714,COMMUNITY INTEGRATED CARE,Adult Social Care,Director of People,Homecare Fees,,26/03/2015,"18,360.00",,Social Community Care Supplies & Services
5193872,NEW CHARTER HOUSING TRUST GROUP,Adult Social Care,Director of People,Non-Authority Accommodation Rental,,26/03/2015,"2,551.64",,Social Community Care Supplies & Services
5193902,PENNINE CARE NHS TRUST,Adult Social Care,Director of People,Professional Services,,26/03/2015,712.58,,Social Community Care Supplies & Services
5193915,PENNINE CARE NHS TRUST,Adult Social Care,Director of People,Professional Services,,26/03/2015,712.58,,Social Community Care Supplies & Services
5194013,PENNINE CARE NHS TRUST,Adult Social Care,Director of People,Professional Services,,26/03/2015,712.58,,Social Community Care Supplies & Services
5194014,PENNINE CARE NHS TRUST,Adult Social Care,Director of People,Professional Services,,26/03/2015,713.33,,Social Community Care Supplies & Services
5194015,PENNINE CARE NHS TRUST,Adult Social Care,Director of People,Professional Services,,26/03/2015,712.58,,Social Community Care Supplies & Services
5194259,COMPLETE FIRE SYSTEMS LTD,Adult Social Care,Director of People,Firefighting Equipment,,26/03/2015,"2,240.00",,Health
5194596,MRL HEALTHCARE LIMITED,Adult Social Care,Director of People,Homecare Fees,,26/03/2015,"4,273.76",,Social Community Care Supplies & Services
5194770,NEW CHARTER HOUSING TRUST GROUP,Adult Social Care,Director of People,Non-Authority Accommodation Rental,,26/03/2015,"2,551.64",,Social Community Care Supplies & Services
5194823,REMPLOY LIMITED,Adult Social Care,Director of People,Telephone Landline Costs,,26/03/2015,598,,Education
5194897,NEW CHARTER HOUSING TRUST GROUP,Adult Social Care,Director of People,Non-Authority Accommodation Rental,,26/03/2015,"5,102.00",,Social Community Care Supplies & Services
5195135,CARE UK HOMECARE,Adult Social Care,Director of People,Homecare Fees,,26/03/2015,"33,968.92",,Social Community Care Supplies & Services
5195181,MRL HEALTHCARE LIMITED,Adult Social Care,Director of People,Homecare Fees,,26/03/2015,"28,182.00",,Social Community Care Supplies & Services
5195567,ABLE CARE AND SUPPORT SERVICES LTD,Adult Social Care,Director of People,Homecare Fees,,26/03/2015,"1,534.00",,Social Community Care Supplies & Services
5195628,CITY LIFT SERVICES (NW) LTD,Adult Social Care,Director of People,Adaptations To Buildings,,26/03/2015,"1,520.00",,"Works - Construction, Repair & Maintenance"
5194519,AUDENSHAW LOCAL HISTORY SOCIETY,Adults Early Intervention,Director of People,Development Monies,,26/03/2015,500,,Financial Services
5195037,"TAMESIDE, OLDHAM AND GLOSSOP MIND",Adults Early Intervention,Director of People,Professional Services,,26/03/2015,"44,167.50",,Social Community Care Supplies & Services
5194152,NEW CHARTER HOUSING TRUST GROUP,Childrens Services,Director of People,Non-Authority Accommodation Rental,,26/03/2015,"2,006.20",,Social Community Care Supplies & Services
5194346,NEW CHARTER HOUSING TRUST GROUP,Childrens Services,Director of People,Planning Fees,,26/03/2015,"3,458.83",,Social Community Care Supplies & Services
5194665,OLDHAM COUNCIL,Childrens Services,Director of People,Other Local Authorities Fees,,26/03/2015,"128,868.77",,Unclassifiable
5194729,NEW CHARTER HOUSING TRUST GROUP,Childrens Services,Director of People,Non-Authority Accommodation Rental,,26/03/2015,"1,760.48",,Social Community Care Supplies & Services
5194731,NEW CHARTER HOUSING TRUST GROUP,Childrens Services,Director of People,Non-Authority Accommodation Rental,,26/03/2015,"2,006.20",,Social Community Care Supplies & Services
5195477,MISS PAULINE MCHUGH,Childrens Services,Director of People,Legal Fees,Business Payment,26/03/2015,"3,200.00",,Legal Services
5194270,VISION FOR EDUCATION LIMITED,Education,Director of People,Agency Staff,,26/03/2015,900,,Education
5194654,NPOWER LIMITED,Education,Director of People,Electricity,,26/03/2015,"1,361.07",,Utilities
5194847,UNITED UTILITIES WATER PLC,Education,Director of People,Metered Water Costs,,26/03/2015,"2,421.95",,Utilities
5194849,STOCKPORT NHS FOUNDATION TRUST,Education,Director of People,Professional Services,,26/03/2015,"3,333.00",,Medical
5195385,RADIO CABS (ASHTON)LTD,Education,Director of People,Transport Of Post 16 Pupils,,26/03/2015,"1,246.50",,Transport
5195389,RADIO CABS (ASHTON)LTD,Education,Director of People,Transport Of Pupils,,26/03/2015,"1,725.00",,Transport
5195390,RADIO CABS (ASHTON)LTD,Education,Director of People,Transport Of Pupils,,26/03/2015,"1,410.00",,Transport
5195397,RADIO CABS (ASHTON)LTD,Education,Director of People,Transport Of Post 16 Pupils,,26/03/2015,548.1,,Transport
5195398,RADIO CABS (ASHTON)LTD,Education,Director of People,Transport Of Post 16 Pupils,,26/03/2015,"1,236.50",,Transport
5195401,RADIO CABS (ASHTON)LTD,Education,Director of People,Transport Of Pupils,,26/03/2015,"1,410.00",,Transport
5195402,RADIO CABS (ASHTON)LTD,Education,Director of People,Transport Of Ola Pupils,,26/03/2015,"1,590.00",,Transport
5195403,RADIO CABS (ASHTON)LTD,Education,Director of People,Transport Of Ola Pupils,,26/03/2015,995.8,,Transport
5195406,RADIO CABS (ASHTON)LTD,Education,Director of People,Transport Of Ola Pupils,,26/03/2015,"1,539.00",,Transport
5195407,RADIO CABS (ASHTON)LTD,Education,Director of People,Transport Of Pupils,,26/03/2015,"1,363.00",,Transport
5195409,RADIO CABS (ASHTON)LTD,Education,Director of People,Transport Of Pupils,,26/03/2015,"1,044.00",,Transport
5195410,RADIO CABS (ASHTON)LTD,Education,Director of People,Transport Of Pupils,,26/03/2015,"1,200.00",,Transport
5195412,RADIO CABS (ASHTON)LTD,Education,Director of People,Transport Of Pupils,,26/03/2015,"1,620.00",,Transport
5195413,RADIO CABS (ASHTON)LTD,Education,Director of People,Transport Of Pupils,,26/03/2015,722.4,,Transport
5195455,THE MUSIC MAN,Education,Director of People,Educational Equipment,,26/03/2015,942,,Financial Services
5195463,THE MUSIC MAN,Education,Director of People,Educational Equipment,,26/03/2015,"1,100.00",,Financial Services
5192296,W F HOWES LTD,Stronger Communities,Director of People,Purchase Books,,26/03/2015,"1,000.00",,Education
5192901,CASTLE FINE ARTS FOUNDRY LTD,Stronger Communities,Director of People,Professional Entertainment Services,,26/03/2015,573,,Leisure Services
5193456,THE FURNISHING SERVICE LTD,Stronger Communities,Director of People,Fixtures & Fittings Purchase,,26/03/2015,682.62,,Furniture
5193522,THE FURNISHING SERVICE LTD,Stronger Communities,Director of People,Fixtures & Fittings Purchase,,26/03/2015,"2,679.85",,Furniture
5193549,THE CARE TEAM LTD,Stronger Communities,Director of People,Professional Medical Services,,26/03/2015,"1,200.00",,Unclassifiable
5193744,THE FURNISHING SERVICE LTD,Stronger Communities,Director of People,Fixtures & Fittings Purchase,,26/03/2015,524.18,,Furniture
5194022,THE FURNISHING SERVICE LTD,Stronger Communities,Director of People,Fixtures & Fittings Purchase,,26/03/2015,503.31,,Furniture
5194027,THE FURNISHING SERVICE LTD,Stronger Communities,Director of People,Fixtures & Fittings Purchase,,26/03/2015,543.53,,Furniture
5194329,BURNLEY COUNCIL,Stronger Communities,Director of People,Professional Services,,26/03/2015,"1,270.00",,Financial Services
5194346,NEW CHARTER HOUSING TRUST GROUP,Stronger Communities,Director of People,Supporting People Gross Contract,,26/03/2015,"25,599.75",,Social Community Care Supplies & Services
5194372,GREEN MONSTER ARTS,Stronger Communities,Director of People,Professional Photography Services,,26/03/2015,"1,500.00",,Leisure Services
5195458,STONE SOUP,Stronger Communities,Director of People,Professional Entertainment Services,,26/03/2015,"2,000.00",,Public Bodies
5195481,STEVEN BAILEY,Stronger Communities,Director of People,Professional Entertainment Services,Business Payment,26/03/2015,"2,800.00",,Unclassifiable
5195494,STONE SOUP,Stronger Communities,Director of People,Professional Entertainment Services,,26/03/2015,780,,Public Bodies
5194033,UNITED UTILITIES WATER PLC,Asset & Investment Partnership Management,Director of Place,Metered Water Costs,,26/03/2015,"2,536.83",,Utilities
5194034,UNITED UTILITIES WATER PLC,Asset & Investment Partnership Management,Director of Place,Metered Water Costs,,26/03/2015,"1,810.65",,Utilities
5194036,UNITED UTILITIES WATER PLC,Asset & Investment Partnership Management,Director of Place,Metered Water Costs,,26/03/2015,"1,082.70",,Utilities
5194037,UNITED UTILITIES WATER PLC,Asset & Investment Partnership Management,Director of Place,Metered Water Costs,,26/03/2015,845.77,,Utilities
5194140,NPOWER LIMITED,Asset & Investment Partnership Management,Director of Place,Electricity,,26/03/2015,"19,415.62",,Utilities
5194141,NPOWER LIMITED,Asset & Investment Partnership Management,Director of Place,Electricity,,26/03/2015,"6,358.95",,Utilities
5194267,NPOWER LIMITED,Asset & Investment Partnership Management,Director of Place,Electricity,,26/03/2015,"2,201.30",,Utilities
5194268,NPOWER LIMITED,Asset & Investment Partnership Management,Director of Place,Electricity,,26/03/2015,"2,399.78",,Utilities
5194602,UNITED UTILITIES WATER PLC,Asset & Investment Partnership Management,Director of Place,Metered Water Costs,,26/03/2015,"1,935.23",,Utilities
5194603,UNITED UTILITIES WATER PLC,Asset & Investment Partnership Management,Director of Place,Metered Water Costs,,26/03/2015,"3,324.98",,Utilities
5194605,UNITED UTILITIES WATER PLC,Asset & Investment Partnership Management,Director of Place,Metered Water Costs,,26/03/2015,"1,008.12",,Utilities
5194680,PLANTATION INVESTMENTS LIMITED,Asset & Investment Partnership Management,Director of Place,Non-Authority Accommodation Rental,,26/03/2015,"53,337.00",,Unclassifiable
5194891,TOTAL GAS & POWER LIMITED,Asset & Investment Partnership Management,Director of Place,Gas,,26/03/2015,567.33,,Utilities
5194939,UNITED UTILITIES WATER PLC,Asset & Investment Partnership Management,Director of Place,Metered Water Costs,,26/03/2015,"2,781.37",,Utilities
5194942,UNITED UTILITIES WATER PLC,Asset & Investment Partnership Management,Director of Place,Metered Water Costs,,26/03/2015,515.78,,Utilities
5194948,UNITED UTILITIES WATER PLC,Asset & Investment Partnership Management,Director of Place,Metered Water Costs,,26/03/2015,977.91,,Utilities
5195183,INSPIREDSPACES TAMESIDE LTD,Asset & Investment Partnership Management,Director of Place,Refreshments,,26/03/2015,"230,938.39",,Consultancy
5195185,INSPIREDSPACES TAMESIDE LTD,Asset & Investment Partnership Management,Director of Place,Agency Staff,,26/03/2015,"40,561.00",,Consultancy
5195185,INSPIREDSPACES TAMESIDE LTD,Asset & Investment Partnership Management,Director of Place,PFI Facilities Management Services,,26/03/2015,"88,243.75",,Consultancy
5195190,CORONA ENERGY RETAIL 4 LIMITED,Asset & Investment Partnership Management,Director of Place,Gas,,26/03/2015,"1,920.21",,Utilities
5195191,CORONA ENERGY RETAIL 4 LIMITED,Asset & Investment Partnership Management,Director of Place,Gas,,26/03/2015,806.39,,Utilities
5195192,CORONA ENERGY RETAIL 4 LIMITED,Asset & Investment Partnership Management,Director of Place,Gas,,26/03/2015,"2,645.88",,Utilities
5195193,CORONA ENERGY RETAIL 4 LIMITED,Asset & Investment Partnership Management,Director of Place,Gas,,26/03/2015,788.99,,Utilities
5195194,CORONA ENERGY RETAIL 4 LIMITED,Asset & Investment Partnership Management,Director of Place,Gas,,26/03/2015,593.75,,Utilities
5195195,CORONA ENERGY RETAIL 4 LIMITED,Asset & Investment Partnership Management,Director of Place,Gas,,26/03/2015,"1,068.38",,Utilities
5195196,CORONA ENERGY RETAIL 4 LIMITED,Asset & Investment Partnership Management,Director of Place,Gas,,26/03/2015,"1,825.21",,Utilities
5195197,CORONA ENERGY RETAIL 4 LIMITED,Asset & Investment Partnership Management,Director of Place,Gas,,26/03/2015,881.59,,Utilities
5195200,CORONA ENERGY RETAIL 4 LIMITED,Asset & Investment Partnership Management,Director of Place,Gas,,26/03/2015,552.06,,Utilities
5195204,CORONA ENERGY RETAIL 4 LIMITED,Asset & Investment Partnership Management,Director of Place,Gas,,26/03/2015,"1,234.84",,Utilities
5195206,CORONA ENERGY RETAIL 4 LIMITED,Asset & Investment Partnership Management,Director of Place,Gas,,26/03/2015,"2,788.74",,Utilities
5195208,CORONA ENERGY RETAIL 4 LIMITED,Asset & Investment Partnership Management,Director of Place,Gas,,26/03/2015,"1,813.45",,Utilities
5195210,CORONA ENERGY RETAIL 4 LIMITED,Asset & Investment Partnership Management,Director of Place,Gas,,26/03/2015,799.41,,Utilities
5195213,CORONA ENERGY RETAIL 4 LIMITED,Asset & Investment Partnership Management,Director of Place,Gas,,26/03/2015,886.25,,Utilities
5195215,CORONA ENERGY RETAIL 4 LIMITED,Asset & Investment Partnership Management,Director of Place,Gas,,26/03/2015,"1,049.39",,Utilities
5195217,CORONA ENERGY RETAIL 4 LIMITED,Asset & Investment Partnership Management,Director of Place,Gas,,26/03/2015,581,,Utilities
5195218,CORONA ENERGY RETAIL 4 LIMITED,Asset & Investment Partnership Management,Director of Place,Gas,,26/03/2015,870.57,,Utilities
5195221,CORONA ENERGY RETAIL 4 LIMITED,Asset & Investment Partnership Management,Director of Place,Gas,,26/03/2015,"1,108.86",,Utilities
5195222,CORONA ENERGY RETAIL 4 LIMITED,Asset & Investment Partnership Management,Director of Place,Gas,,26/03/2015,"1,791.99",,Utilities
5195223,CORONA ENERGY RETAIL 4 LIMITED,Asset & Investment Partnership Management,Director of Place,Gas,,26/03/2015,"6,816.42",,Utilities
5195231,CORONA ENERGY RETAIL 4 LIMITED,Asset & Investment Partnership Management,Director of Place,Gas,,26/03/2015,509.75,,Utilities
5195246,CORONA ENERGY RETAIL 4 LIMITED,Asset & Investment Partnership Management,Director of Place,Gas,,26/03/2015,"7,461.51",,Utilities
5195248,CORONA ENERGY RETAIL 4 LIMITED,Asset & Investment Partnership Management,Director of Place,Gas,,26/03/2015,"4,286.10",,Utilities
5195250,CORONA ENERGY RETAIL 4 LIMITED,Asset & Investment Partnership Management,Director of Place,Gas,,26/03/2015,551.74,,Utilities
5195252,CORONA ENERGY RETAIL 4 LIMITED,Asset & Investment Partnership Management,Director of Place,Gas,,26/03/2015,601.41,,Utilities
5195253,CORONA ENERGY RETAIL 4 LIMITED,Asset & Investment Partnership Management,Director of Place,Gas,,26/03/2015,719.54,,Utilities
5195263,CORONA ENERGY RETAIL 4 LIMITED,Asset & Investment Partnership Management,Director of Place,Gas,,26/03/2015,754.68,,Utilities
5195269,CORONA ENERGY RETAIL 4 LIMITED,Asset & Investment Partnership Management,Director of Place,Gas,,26/03/2015,"2,018.69",,Utilities
5195277,CORONA ENERGY RETAIL 4 LIMITED,Asset & Investment Partnership Management,Director of Place,Gas,,26/03/2015,596.87,,Utilities
5195278,CORONA ENERGY RETAIL 4 LIMITED,Asset & Investment Partnership Management,Director of Place,Gas,,26/03/2015,"1,112.85",,Utilities
5195279,CORONA ENERGY RETAIL 4 LIMITED,Asset & Investment Partnership Management,Director of Place,Gas,,26/03/2015,"2,439.08",,Utilities
5195281,CORONA ENERGY RETAIL 4 LIMITED,Asset & Investment Partnership Management,Director of Place,Gas,,26/03/2015,"2,081.59",,Utilities
5195290,NPOWER LIMITED,Asset & Investment Partnership Management,Director of Place,Electricity,,26/03/2015,"2,957.55",,Utilities
5195296,NPOWER LIMITED,Asset & Investment Partnership Management,Director of Place,Electricity,,26/03/2015,958.29,,Utilities
5195298,NPOWER LIMITED,Asset & Investment Partnership Management,Director of Place,Electricity,,26/03/2015,"1,965.85",,Utilities
5195300,NPOWER LIMITED,Asset & Investment Partnership Management,Director of Place,Electricity,,26/03/2015,"2,094.49",,Utilities
5195302,NPOWER LIMITED,Asset & Investment Partnership Management,Director of Place,Electricity,,26/03/2015,"1,872.57",,Utilities
5195303,NPOWER LIMITED,Asset & Investment Partnership Management,Director of Place,Electricity,,26/03/2015,795.4,,Utilities
5195304,NPOWER LIMITED,Asset & Investment Partnership Management,Director of Place,Electricity,,26/03/2015,"2,167.04",,Utilities
5195307,NPOWER LIMITED,Asset & Investment Partnership Management,Director of Place,Electricity,,26/03/2015,"1,424.57",,Utilities
5195310,NPOWER LIMITED,Asset & Investment Partnership Management,Director of Place,Electricity,,26/03/2015,650.72,,Utilities
5195312,NPOWER LIMITED,Asset & Investment Partnership Management,Director of Place,Electricity,,26/03/2015,"1,013.62",,Utilities
5195316,NPOWER LIMITED,Asset & Investment Partnership Management,Director of Place,Electricity,,26/03/2015,"1,106.01",,Utilities
5195317,NPOWER LIMITED,Asset & Investment Partnership Management,Director of Place,Electricity,,26/03/2015,"1,542.03",,Utilities
5195321,NPOWER LIMITED,Asset & Investment Partnership Management,Director of Place,Electricity,,26/03/2015,"1,460.22",,Utilities
5195325,NPOWER LIMITED,Asset & Investment Partnership Management,Director of Place,Electricity,,26/03/2015,579.78,,Utilities
5195326,NPOWER LIMITED,Asset & Investment Partnership Management,Director of Place,Electricity,,26/03/2015,730.8,,Utilities
5195336,NPOWER LIMITED,Asset & Investment Partnership Management,Director of Place,Electricity,,26/03/2015,534.74,,Utilities
5195337,NPOWER LIMITED,Asset & Investment Partnership Management,Director of Place,Electricity,,26/03/2015,825.41,,Utilities
5195338,NPOWER LIMITED,Asset & Investment Partnership Management,Director of Place,Electricity,,26/03/2015,670.51,,Utilities
5195348,NPOWER LIMITED,Asset & Investment Partnership Management,Director of Place,Electricity,,26/03/2015,688.62,,Utilities
5195350,NPOWER LIMITED,Asset & Investment Partnership Management,Director of Place,Electricity,,26/03/2015,"1,720.41",,Utilities
5195355,NPOWER LIMITED,Asset & Investment Partnership Management,Director of Place,Electricity,,26/03/2015,540.45,,Utilities
5195356,NPOWER LIMITED,Asset & Investment Partnership Management,Director of Place,Electricity,,26/03/2015,619.5,,Utilities
5193836,RICOH UK,Development Growth & Investment,Director of Place,Printing And Stationery,,26/03/2015,"1,066.08",,Facilities & Management Services
5195456,THIRTYNINE,Development Growth & Investment,Director of Place,Legal Fees,,26/03/2015,600,,Legal Services
5195569,CW CONSULTING (UK) LTD,Development Growth & Investment,Director of Place,Professional Services,,26/03/2015,"8,263.50",,Unclassifiable
5195608,CW CONSULTING (UK) LTD,Development Growth & Investment,Director of Place,Professional Services,,26/03/2015,"8,800.00",,Unclassifiable
5192860,GETRONICS UNIFIED COMMUNICATIONS UK LIMITED,Digital Tameside,Director of Place,Telephone Landline Costs,,26/03/2015,804,,Information Communication Technology
5193917,VIGLEN LTD,Digital Tameside,Director of Place,It Equipment,,26/03/2015,"4,896.00",,Information Communication Technology
5194363,NETWORK CONNECT LTD,Digital Tameside,Director of Place,Computer Hardware,,26/03/2015,"1,853.30",,Information Communication Technology
470607,SILVER FOX LTD,Environmental Services,Director of Place,General Materials,,26/03/2015,"6,052.57",,Unclassifiable
3250501,ATS EUROMASTER LTD,Environmental Services,Director of Place,General Materials,,26/03/2015,245.8,,Vehicles
3250501,ATS EUROMASTER LTD,Environmental Services,Director of Place,Tyre Costs,,26/03/2015,"5,582.77",,Vehicles
3250501,DENNIS EAGLE LTD,Environmental Services,Director of Place,General Materials,,26/03/2015,"1,724.93",,Vehicles
3250501,F & G COMMERCIALS (OLDHAM) LIMITED,Environmental Services,Director of Place,General Materials,,26/03/2015,"2,136.26",,Vehicles
5189623,L&R ROADLINES LTD,Environmental Services,Director of Place,HRA Repairs Engineers Recharge,,26/03/2015,160,,Highway Equipment & Materials�
5189623,L&R ROADLINES LTD,Environmental Services,Director of Place,Road Markings,,26/03/2015,"3,668.85",,Highway Equipment & Materials�
5189623,L&R ROADLINES LTD,Environmental Services,Director of Place,Roadmarkings Engineers Recharge,,26/03/2015,"2,100.00",,Highway Equipment & Materials�
5193779,N A BROWN LTD,Environmental Services,Director of Place,General Materials,,26/03/2015,"1,404.50",,Unclassifiable
5194133,NPOWER LIMITED,Environmental Services,Director of Place,Electricity,,26/03/2015,"242,094.28",,Utilities
5194136,NPOWER LIMITED,Environmental Services,Director of Place,Electricity,,26/03/2015,"229,748.20",,Utilities
5194194,NSL LIMITED,Environmental Services,Director of Place,NSL Fees,,26/03/2015,"51,040.49",,Traffic Management
5194255,ELECTRICITY NORTH WEST LTD,Environmental Services,Director of Place,Reactive Works Engineers Recharge,,26/03/2015,610.7,,Utilities
5194433,THE CONSERVATION VOLUNTEERS,Environmental Services,Director of Place,Voluntary Organisations Fees,,26/03/2015,960,,Human Resources
5195147,EMO OIL LTD,Environmental Services,Director of Place,Fuel Oil,,26/03/2015,952.72,,Utilities
5195386,RADIO CABS (ASHTON)LTD,Environmental Services,Director of Place,Hired Transport,,26/03/2015,503.2,,Transport
5195391,RADIO CABS (ASHTON)LTD,Environmental Services,Director of Place,Hired Transport,,26/03/2015,784.8,,Transport
5195394,RADIO CABS (ASHTON)LTD,Environmental Services,Director of Place,Hired Transport,,26/03/2015,"1,001.60",,Transport
5195605,NPOWER LIMITED,Environmental Services,Director of Place,Electricity,,26/03/2015,"2,940.49",,Utilities
5194346,NEW CHARTER HOUSING TRUST GROUP,Public Health,Director of Public Health,Supporting People Gross Contract,,26/03/2015,"13,176.25",,Social Community Care Supplies & Services
5194406,THE PENNINE ACUTE HOSPITALS NHS TRUST,Public Health,Director of Public Health,Professional Services,,26/03/2015,845,,Medical
5195577,LIVERPOOL JOHN MOORES UNIVERSITY,Public Health,Director of Public Health,Professional Services,,26/03/2015,"9,817.00",,Unclassifiable
5195578,LIVERPOOL JOHN MOORES UNIVERSITY,Public Health,Director of Public Health,Professional Services,,26/03/2015,"9,967.00",,Unclassifiable
29000023,S2 ENTERPRISE LTD T/A PENNY MEADOW PHARMACY,Public Health,Director of Public Health,Local Enhanced Services,,26/03/2015,"1,137.00",,Consultancy
5193684,ADDLESHAW GODDARD,Asset & Investment Partnership Management,Director of Place,Legal - External,,26/03/2015,"1,081.00",,Legal Services
5193815,LOWE MARTIAL ARTS LTD,Asset & Investment Partnership Management,Director of Place,"Activity (Materials, Trips)",,26/03/2015,"1,560.00",,Leisure Services
5195183,INSPIREDSPACES TAMESIDE LTD,Asset & Investment Partnership Management,Director of Place,Telecom,,26/03/2015,"11,826.78",,Consultancy
5195185,INSPIREDSPACES TAMESIDE LTD,Asset & Investment Partnership Management,Director of Place,Computer Hardware,,26/03/2015,"1,708.00",,Consultancy
5189623,L&R ROADLINES LTD,Environmental Services,Director of Place,Road Marking Works,,26/03/2015,57.5,,Highway Equipment & Materials�
5192047,NATIONAL GRID plc,Environmental Services,Director of Place,Telecom,,26/03/2015,"10,061.95",,Utilities
5193027,GREATER MANCHESTER COMBINED AUTHORITY,Environmental Services,Director of Place,Engineers -External,,26/03/2015,"53,218.95",,Unclassifiable
5193808,PETER BRETT ASSOCIATES LLP,Environmental Services,Director of Place,Engineers -External,,26/03/2015,550,,Consultancy
5194250,ELECTRICITY NORTH WEST LTD,Environmental Services,Director of Place,Contractor Expenditure,,26/03/2015,610.7,,Utilities
5194850,ELECTRICITY NORTH WEST LTD,Environmental Services,Director of Place,Engineers -External,,26/03/2015,"7,920.11",,Utilities
5195449,J HOPKINS CONTRACTORS  LTD,Environmental Services,Director of Place,Highway Construction,,26/03/2015,"31,811.71",,"Works - Construction, Repair & Maintenance"
5189623,L&R ROADLINES LTD,Development Growth & Investment,Director of Place,Road Marking Works,,26/03/2015,40.5,,Highway Equipment & Materials�
5194431,BRIAN OLIVER,Development Growth & Investment,Director of Place,Improvement Grants - Final Mandatory,Business Payment,26/03/2015,853,,"Works - Construction, Repair & Maintenance"
5194954,MR JAMES TURLEY T/A R TURLEY PLUMBERS,Development Growth & Investment,Director of Place,Improvement Grants - Final Mandatory, ,26/03/2015,"4,700.00",,"Works - Construction, Repair & Maintenance"
5195185,INSPIREDSPACES TAMESIDE LTD,Asset & Investment Partnership Management,Director of Place,External  Consultants,,26/03/2015,"7,975.00",,Consultancy
3250501,F. R. SHARROCK LIMITED,Environmental Services,Director of Place,Debits Goods Received,,26/03/2015,375,,Public Bodies
3250501,F. R. SHARROCK LIMITED,Environmental Services,Director of Place,"Plant, Vehicles And Equipment",,26/03/2015,"11,775.00",,Public Bodies
3250501,G B OILS TA CARLTON FUELS,Environmental Services,Director of Place,Diesel Fuel,,26/03/2015,"47,696.20",,Utilities
5194508,DAISY COMMUNICATIONS LTD,Multiple Heads of Service,Multiple Strategic Directorates,Telephone Landline Costs,,26/03/2015,"5,980.01",,Public Bodies
5194712,HMRC,Multiple Heads of Service,Multiple Strategic Directorates,Tax Paid Sub Contractors,,26/03/2015,"5,889.38",,Unclassifiable
5194733,NEW CHARTER BUILDING CO,Multiple Heads of Service,Multiple Strategic Directorates,Refurbishment Construction Costs,,26/03/2015,"1,968.00",,Public Bodies
5195421,HMS DECORATIVE SURFACING LTD,Multiple Heads of Service,Multiple Strategic Directorates,Road Marking Works,,26/03/2015,"12,754.40",,Building Construction Materials
5195424,J HOPKINS CONTRACTORS  LTD,Multiple Heads of Service,Multiple Strategic Directorates,Highway Construction,,26/03/2015,"24,820.71",,"Works - Construction, Repair & Maintenance"
5195436,MATTHEWS & GOODMAN LLP,Multiple Heads of Service,Multiple Strategic Directorates,Building Maintenance,,26/03/2015,"4,851.25",,Consultancy
5195765,INSPIREDSPACES TAMESIDE LTD,Corporate Costs,Corporate Costs,Professional Services,,30/03/2015,"36,403.20",,Consultancy
5193616,CAPACITY GRID,Exchequer,Director of Finance,Professional Services,,30/03/2015,"25,110.00",,Unclassifiable
5193912,CAPACITY GRID,Exchequer,Director of Finance,Professional Services,,30/03/2015,"18,899.00",,Unclassifiable
5194331,NORTHGATE INFORMATION SOLUTIONS UK LTD,Exchequer,Director of Finance,Professional Consultancy Services,,30/03/2015,"2,850.00",,Information Communication Technology
5195797,TWOFOLD LIMITED,Exchequer,Director of Finance,Repairs & Maintenance Cleaning/Domestic Equipment,,30/03/2015,814.83,,Facilities & Management Services
5195918,ROYAL MAIL GROUP PLC,Exchequer,Director of Finance,Postages,,30/03/2015,"9,004.73",,Mail Services
5188152,AUDITWARE SYSTEMS LIMTED,Finance,Director of Finance,Computer Software Maintenance Costs,,30/03/2015,"1,340.00",,Information Communication Technology
5194367,NORTHENDEN TRAVEL LTD,Finance,Director of Finance,Staff Travel Costs,,30/03/2015,25,,Human Resources
5193798,HEALTH MANAGEMENT (UK) LTD,Governance,Director of Governance,Professional Consultancy Services,,30/03/2015,"9,384.67",,Medical
5194492,TAMESIDE HOSPITAL NHS FOUNDATION TRUST,Governance,Director of Governance,Professional Consultancy Services,,30/03/2015,"2,365.00",,Medical
5195744,NWA SOCIAL & MARKET RESEARCH LIMITED,Governance,Director of Governance,Research Fees,,30/03/2015,"3,493.00",,Facilities & Management Services
460298,WOODLANDS RESIDENTIAL CARE HOME,Adult Social Care,Director of People,Residential Home Long Stay Fees,,30/03/2015,"10,725.71",,Social Community Care Supplies & Services
5188339,LIQUIDLOGIC LTD,Adult Social Care,Director of People,Computer Software,,30/03/2015,"8,000.00",,Information Communication Technology
5192603,NEW BRIDGE HORIZONS,Adult Social Care,Director of People,Homecare Fees,,30/03/2015,"2,101.50",,Social Community Care Supplies & Services
5192606,NEW BRIDGE HORIZONS,Adult Social Care,Director of People,Homecare Fees,,30/03/2015,"1,868.00",,Social Community Care Supplies & Services
5192607,NEW BRIDGE HORIZONS,Adult Social Care,Director of People,Homecare Fees,,30/03/2015,"2,101.50",,Social Community Care Supplies & Services
5192915,STOCKPORT CP  SOCIETY,Adult Social Care,Director of People,Day Centre Fees,,30/03/2015,805.08,,Social Community Care Supplies & Services
5193721,TAMESIDE SPORTS TRUST,Adult Social Care,Director of People,Professional Services,,30/03/2015,"5,355.00",,Leisure Services
5193838,CLOVERLEAF ADVOCACY 2000 LTD,Adult Social Care,Director of People,Professional Services,,30/03/2015,"12,408.30",,Social Community Care Supplies & Services
5193968,DOMAIN CARE NORTH WEST LTD,Adult Social Care,Director of People,Homecare Fees,,30/03/2015,799.5,,Social Community Care
5193970,DOMAIN CARE NORTH WEST LTD,Adult Social Care,Director of People,Homecare Fees,,30/03/2015,638.85,,Social Community Care
5193972,DOMAIN CARE NORTH WEST LTD,Adult Social Care,Director of People,Homecare Fees,,30/03/2015,900.47,,Social Community Care
5194080,LIQUIDLOGIC LTD,Adult Social Care,Director of People,Computer Software,,30/03/2015,"6,800.00",,Information Communication Technology
5194164,TAMESIDE LINK,Adult Social Care,Director of People,Voluntary Organisations Fees,,30/03/2015,"15,086.32",,Social Community Care Supplies & Services
5194310,CARE UK HOMECARE,Adult Social Care,Director of People,Homecare Fees,,30/03/2015,"3,348.64",,Social Community Care Supplies & Services
5194443,ALTERNATIVE FUTURES GROUP,Adult Social Care,Director of People,Homecare Fees,,30/03/2015,"3,178.62",,Social Community Care Supplies & Services
5194464,ALTERNATIVE FUTURES GROUP,Adult Social Care,Director of People,Homecare Fees,,30/03/2015,"1,010.07",,Social Community Care Supplies & Services
5194632,CREATIVE SUPPORT LTD,Adult Social Care,Director of People,Homecare Fees,,30/03/2015,"13,678.25",,Social Community Care Supplies & Services
5194994,DOMAIN CARE NORTH WEST LTD,Adult Social Care,Director of People,Homecare Fees,,30/03/2015,799.5,,Social Community Care
5194996,DOMAIN CARE NORTH WEST LTD,Adult Social Care,Director of People,Homecare Fees,,30/03/2015,900.47,,Social Community Care
5195138,PAYPARTNERS LTD (MONTHLY),Adult Social Care,Director of People,Sub-contractor Services,,30/03/2015,794.5,,Social Community Care Supplies & Services
5195583,CREATIVE SUPPORT LTD,Adult Social Care,Director of People,Age Concern Fees,,30/03/2015,"28,726.66",,Social Community Care Supplies & Services
5195596,NEW BRIDGE HORIZONS,Adult Social Care,Director of People,Homecare Fees,,30/03/2015,"2,218.25",,Social Community Care Supplies & Services
5195602,NEW BRIDGE HORIZONS,Adult Social Care,Director of People,Homecare Fees,,30/03/2015,"1,868.00",,Social Community Care Supplies & Services
5195704,NEW BRIDGE HORIZONS,Adult Social Care,Director of People,Homecare Fees,,30/03/2015,"1,751.25",,Social Community Care Supplies & Services
5195796,JUST CHECKING LTD,Adult Social Care,Director of People,It Equipment,,30/03/2015,"3,899.00",,Social Community Care Supplies & Services
5195871,NEW BRIDGE HORIZONS,Adult Social Care,Director of People,Homecare Fees,,30/03/2015,508,,Social Community Care Supplies & Services
5195469,GRAFTON HOUSE ENTERTAINMENT COMMITTEE,Adults Early Intervention,Director of People,Development Monies,,30/03/2015,"4,979.23",,Facilities & Management Services
5195808,LOWWINTERSUN,Adults Early Intervention,Director of People,Professional Consultancy Services,,30/03/2015,"11,000.00",,Facilities & Management Services
5195468,NEW CHARTER HOUSING TRUST GROUP,Childrens Services,Director of People,Planning Fees,,30/03/2015,"3,458.83",,Social Community Care Supplies & Services
5186666,UNIVERSITY OF BIRMINGHAM,Education,Director of People,Training Course Costs,,30/03/2015,"1,626.50",,Education
5190595,ROCHDALE MBC,Education,Director of People,Other Local Authorities Fees,,30/03/2015,"2,687.06",,Public Bodies
5193453,RANDSTAD EDUCATION LIMITED,Education,Director of People,Agency Staff,,30/03/2015,575,,Education
5194376,RANDSTAD EDUCATION LIMITED,Education,Director of People,Agency Staff,,30/03/2015,650,,Education
5194529,AGRICULTURAL AND RURAL CENTRE CIC,Education,Director of People,"Activity (Materials, Trips)",,30/03/2015,"1,620.00",,Education
5194583,SKILLFORCE DEVELOPMENT LIMITED,Education,Director of People,Professional Services,,30/03/2015,"6,000.00",,Human Resources
5194662,LEGGETT PSYCHOLOGY LTD,Education,Director of People,Professional Services,,30/03/2015,"1,400.00",,Education
5195164,RANDSTAD EDUCATION LIMITED,Education,Director of People,Agency Staff,,30/03/2015,650,,Education
5195165,RANDSTAD EDUCATION LIMITED,Education,Director of People,Agency Staff,,30/03/2015,575,,Education
5195166,RANDSTAD EDUCATION LIMITED,Education,Director of People,Agency Staff,,30/03/2015,"1,050.00",,Education
5195167,RANDSTAD EDUCATION LIMITED,Education,Director of People,Agency Staff,,30/03/2015,"1,050.00",,Education
5195176,RANDSTAD EDUCATION LIMITED,Education,Director of People,Agency Staff,,30/03/2015,"1,050.00",,Education
5195179,RANDSTAD EDUCATION LIMITED,Education,Director of People,Agency Staff,,30/03/2015,575,,Education
5195712,H MULLANEY & SON LTD,Education,Director of People,Waste Disposal Fees,,30/03/2015,960,,Environmental Services
5195973,HOWARD COOK,Education,Director of People,Professional Services,Business Payment,30/03/2015,580,,Unclassifiable
5192507,THE CHESHIRE & GREATER MANCHESTER COMMUNITY REHABILITATION COMPANY LTD,Strategy & Early Intervention,Director of People,Professional Services,,30/03/2015,"9,800.00",,Unclassifiable
5192514,THE CHESHIRE & GREATER MANCHESTER COMMUNITY REHABILITATION COMPANY LTD,Strategy & Early Intervention,Director of People,Professional Services,,30/03/2015,"28,800.00",,Unclassifiable
5194333,NORTHGATE INFORMATION SOLUTIONS UK LTD,Stronger Communities,Director of People,Computer Hardware Purchase,,30/03/2015,816.35,,Information Communication Technology
5194588,NORTHGATE INFORMATION SOLUTIONS UK LTD,Stronger Communities,Director of People,Computer Hardware Purchase,,30/03/2015,583.77,,Information Communication Technology
5194698,READING ROOM MANCHESTER LTD,Stronger Communities,Director of People,Professional Services,,30/03/2015,"1,100.00",,Unclassifiable
5194810,ULVERSCROFT LARGE PRINT  BOOKS LTD,Stronger Communities,Director of People,Professional Services,,30/03/2015,"1,212.87",,Education
5195414,EAST NEIGHBOURHOOD SERVICES TEAM,Stronger Communities,Director of People,Furniture And Fittings,,30/03/2015,"1,000.00",,Unclassifiable
5195452,VICTIM SUPPORT,Stronger Communities,Director of People,Professional Services,,30/03/2015,"33,000.00",,Social Community Care Supplies & Services
5195468,NEW CHARTER HOUSING TRUST GROUP,Stronger Communities,Director of People,Supporting People Gross Contract,,30/03/2015,"25,599.75",,Social Community Care Supplies & Services
5195594,NORTHENDEN TRAVEL LTD,Stronger Communities,Director of People,Staff Travel Costs,,30/03/2015,932,,Human Resources
5195612,STOCKPORT MBC,Stronger Communities,Director of People,Purchase Books,,30/03/2015,"1,115.50",,Highway Equipment & Materials�
5195746,GREATER MANCHESTER POLICE,Stronger Communities,Director of People,Professional Services,,30/03/2015,"1,400.00",,Non 3rd Party spend  
5195928,READING ROOM MANCHESTER LTD,Stronger Communities,Director of People,Professional Services,,30/03/2015,"2,000.00",,Unclassifiable
5194694,INSPIREDSPACES TAMESIDE LTD,Asset & Investment Partnership Management,Director of Place,Cleaning Materials,,30/03/2015,"5,929.19",,Consultancy
5194694,INSPIREDSPACES TAMESIDE LTD,Asset & Investment Partnership Management,Director of Place,Professional Services,,30/03/2015,"34,032.56",,Consultancy
5194694,INSPIREDSPACES TAMESIDE LTD,Asset & Investment Partnership Management,Director of Place,Refreshments,,30/03/2015,"36,469.98",,Consultancy
5195520,BT PLC,Asset & Investment Partnership Management,Director of Place,Security Repairs and Maintenance,,30/03/2015,500,,Information Communication Technology
5195530,UNITED UTILITIES WATER PLC,Asset & Investment Partnership Management,Director of Place,Metered Water Costs,,30/03/2015,"1,118.00",,Utilities
5195551,PROFILE SECURITY SERVICES LIMITED,Asset & Investment Partnership Management,Director of Place,Security Services,,30/03/2015,678.95,,Facilities & Management Services
5195555,PROFILE SECURITY SERVICES LIMITED,Asset & Investment Partnership Management,Director of Place,Security Equipment,,30/03/2015,"6,153.84",,Facilities & Management Services
5195740,SICO EUROPE LIMITED,Asset & Investment Partnership Management,Director of Place,Postages,,30/03/2015,15.44,,Furniture
5195740,SICO EUROPE LIMITED,Asset & Investment Partnership Management,Director of Place,Purchase Heavy Catering Equipment,,30/03/2015,625.6,,Furniture
5195843,INSPIREDSPACES TAMESIDE LTD,Asset & Investment Partnership Management,Director of Place,Professional Services,,30/03/2015,"-84,000.00",,Consultancy
5195901,PROFILE SECURITY SERVICES LIMITED,Asset & Investment Partnership Management,Director of Place,Security Services,,30/03/2015,"2,294.62",,Facilities & Management Services
5190674,VIGLEN LTD,Digital Tameside,Director of Place,It Equipment,,30/03/2015,"33,372.00",,Information Communication Technology
5192861,GETRONICS UNIFIED COMMUNICATIONS UK LIMITED,Digital Tameside,Director of Place,It Equipment,,30/03/2015,"29,640.00",,Information Communication Technology
5195855,SOFTCAT LIMITED,Digital Tameside,Director of Place,Computer Software,,30/03/2015,"5,266.00",,Information Communication Technology
470609,AJC ROAD SWEEPERS,Environmental Services,Director of Place,Sub-contractor Services,,30/03/2015,"2,700.00",,Vehicles
470609,AMBERON LTD,Environmental Services,Director of Place,Additional Hire,,30/03/2015,"4,558.58",,Highway Equipment & Materials�
470609,AUTOMATIC ALARMS LTD,Environmental Services,Director of Place,General Materials,,30/03/2015,"1,964.41",,Facilities & Management Services
470609,BRAMHALL SURFACING LTD,Environmental Services,Director of Place,Sub-contractor Services,,30/03/2015,"9,354.70",,"Works - Construction, Repair & Maintenance"
470609,CBS (NORTH WEST) LTD,Environmental Services,Director of Place,Sub-contractor Services,,30/03/2015,"1,885.61",,"Works - Construction, Repair & Maintenance"
470609,CITY ELECTRICAL FACTORS LTD,Environmental Services,Director of Place,Discounts Taken,,30/03/2015,-13.5,,Building Construction Materials
470609,EAGLE CIVIL ENGINEERING LTD,Environmental Services,Director of Place,Sub-contractor Services,,30/03/2015,"36,776.42",,Highway Equipment & Materials�
470609,ELLIOTT GROUP LTD,Environmental Services,Director of Place,Additional Hire,,30/03/2015,"1,183.70",,"Works - Construction, Repair & Maintenance"
470609,FAIRWAY LANDSCAPES LTD,Environmental Services,Director of Place,Sub-contractor Services,,30/03/2015,"2,692.00",,"Works - Construction, Repair & Maintenance"
470609,GROUNDFORCE SHORCO,Environmental Services,Director of Place,Additional Hire,,30/03/2015,680.8,,Vehicles
470609,INTEGRA BUILDINGS LTD,Environmental Services,Director of Place,General Materials,,30/03/2015,"50,952.00",,"Works - Construction, Repair & Maintenance"
470609,KENNY BROTHERS,Environmental Services,Director of Place,Sub-contractor Services,,30/03/2015,"4,395.82",,Non 3rd Party spend  
470609,KONSTRUCTA HIRE LIMITED,Environmental Services,Director of Place,Additional Hire,,30/03/2015,"2,851.00",,"Works - Construction, Repair & Maintenance"
470609,L&R ROADLINES LTD,Environmental Services,Director of Place,Sub-contractor Services,,30/03/2015,"1,500.91",,Highway Equipment & Materials�
470609,MALLATITE LTD,Environmental Services,Director of Place,Stores Purchases,,30/03/2015,250,,Highway Equipment & Materials�
470609,MATHER AND STUART GENERATORS LTD,Environmental Services,Director of Place,Additional Hire,,30/03/2015,560,,Horticultural
470609,NETCARE EUROPE LTD,Environmental Services,Director of Place,General Materials,,30/03/2015,"3,448.00",,Unclassifiable
470609,NU FIRE & SECURITY LTD,Environmental Services,Director of Place,General Materials,,30/03/2015,"13,522.00",,Facilities & Management Services
470609,P CASEY (ENVIRO) LTD,Environmental Services,Director of Place,Tipping Facility Fees,,30/03/2015,"7,456.74",,Public Bodies
470609,P P O'CONNOR,Environmental Services,Director of Place,Sub-contractor Services,Business Payment,30/03/2015,"60,674.53",,Public Bodies
470609,PG FABRICATIONS,Environmental Services,Director of Place,General Materials,,30/03/2015,888,,"Works - Construction, Repair & Maintenance"
470609,SECURETASK SECURITY LTD,Environmental Services,Director of Place,Sub-contractor Services,,30/03/2015,"1,060.08",,Facilities & Management Services
470609,TARMAC CENTRAL LIMITED,Environmental Services,Director of Place,Stores Purchases,,30/03/2015,52.56,,Highway Equipment & Materials�
470609,VIRIDOR,Environmental Services,Director of Place,Tipping Facility Fees,,30/03/2015,"24,316.80",,Environmental Services
5193809,CRAEMER UK LTD,Environmental Services,Director of Place,Refuse Domestic Bin Purchases,,30/03/2015,"14,647.50",,Environmental Services
5194178,MAMMOTH SIGNS LTD,Environmental Services,Director of Place,Signs,,30/03/2015,"2,760.00",,"Works - Construction, Repair & Maintenance"
5194564,PHS GROUP PLC,Environmental Services,Director of Place,Sub-contractor Services,,30/03/2015,"1,125.10",,Cleaning & Janitorial
5195094,PHS GROUP PLC,Environmental Services,Director of Place,Sub-contractor Services,,30/03/2015,"1,108.86",,Cleaning & Janitorial
5195100,PHS GROUP PLC,Environmental Services,Director of Place,Sub-contractor Services,,30/03/2015,530.76,,Cleaning & Janitorial
5195859,THE YABOO COMPANY LIMITED,Environmental Services,Director of Place,General Materials,,30/03/2015,"4,956.55",,Cemetery & Crematorium
5189067,EAST CHESHIRE NHS TRUST,Public Health,Director of Public Health,Professional Services,,30/03/2015,"1,030.00",,Consultancy
5194176,FRONTIER MEDICAL PRODUCTS,Public Health,Director of Public Health,Local Enhanced Services,,30/03/2015,"5,103.00",,Consultancy
5195159,STOCKPORT NHS FOUNDATION TRUST,Public Health,Director of Public Health,Professional Services,,30/03/2015,"1,749.86",,Medical
5195468,NEW CHARTER HOUSING TRUST GROUP,Public Health,Director of Public Health,Supporting People Gross Contract,,30/03/2015,"13,176.25",,Social Community Care Supplies & Services
5195601,NHS TAMESIDE AND GLOSSOP CCG,Public Health,Director of Public Health,Professional Services,,30/03/2015,"95,066.69",,Medical
5195695,STOCKPORT NHS FOUNDATION TRUST,Public Health,Director of Public Health,Training  Course costs,,30/03/2015,"11,000.00",,Medical
5194694,INSPIREDSPACES TAMESIDE LTD,Asset & Investment Partnership Management,Director of Place,Furniture And Fittings,,30/03/2015,"76,748.64",,Consultancy
5195843,INSPIREDSPACES TAMESIDE LTD,Asset & Investment Partnership Management,Director of Place,Other Works,,30/03/2015,"3,696.18",,Consultancy
5195887,INSPIREDSPACES TAMESIDE LTD,Asset & Investment Partnership Management,Director of Place,Other Works,,30/03/2015,741.2,,Consultancy
5195887,INSPIREDSPACES TAMESIDE LTD,Asset & Investment Partnership Management,Director of Place,Other Works,,30/03/2015,"268,038.64",,Consultancy
470609,ABACUS LIGHTING LTD,Environmental Services,Director of Place,Debits Goods Received,,30/03/2015,"4,577.31",,Highway Equipment & Materials�
470609,ARCO LIMITED,Environmental Services,Director of Place,Debits Goods Received,,30/03/2015,921.94,,Clothing
470609,BENCHMARK BUILDING SUPPLIES LTD,Environmental Services,Director of Place,Debits Goods Received,,30/03/2015,"2,176.15",,Building Construction Materials
470609,CITY ELECTRICAL FACTORS LTD,Environmental Services,Director of Place,Debits Goods Received,,30/03/2015,539.7,,Building Construction Materials
470609,GRAFTON MERCHANTING GB LTD,Environmental Services,Director of Place,Debits Goods Received,,30/03/2015,915.5,,Building Construction Materials
470609,MALLATITE LTD,Environmental Services,Director of Place,Debits Goods Received,,30/03/2015,"11,681.54",,Highway Equipment & Materials�
470609,MARWOOD ELECTRICAL CO,Environmental Services,Director of Place,Debits Goods Received,,30/03/2015,"1,342.80",,Highway Equipment & Materials�
470609,P F CUSACK LTD,Environmental Services,Director of Place,Debits Goods Received,,30/03/2015,679.91,,Horticultural
470609,STAINTON METAL CO LTD,Environmental Services,Director of Place,Debits Goods Received,,30/03/2015,"1,277.60",,Highway Equipment & Materials�
470609,TARMAC CENTRAL LIMITED,Environmental Services,Director of Place,Debits Goods Received,,30/03/2015,"3,023.92",,Highway Equipment & Materials�
470609,WOLSELEY UK LTD,Environmental Services,Director of Place,Debits Goods Received,,30/03/2015,527,,Highway Equipment & Materials�
5178982,ELECTRICITY NORTH WEST LTD,Environmental Services,Director of Place,Street Lighting Works,,30/03/2015,"1,207.63",,Utilities
5193694,PG FABRICATIONS,Environmental Services,Director of Place,Engineers -External,,30/03/2015,"5,275.20",,"Works - Construction, Repair & Maintenance"
5194179,MAMMOTH SIGNS LTD,Environmental Services,Director of Place,Signs,,30/03/2015,"2,680.00",,"Works - Construction, Repair & Maintenance"
5194687,HUBER CAR PARK SYSTEMS INTERNATIONAL GMBH,Development Growth & Investment,Director of Place,Engineers -External,,30/03/2015,"89,731.18",,"Works - Construction, Repair & Maintenance"
5195428,AGGREGATE INDUSTRIES UK LIMITED,Development Growth & Investment,Director of Place,Highway Construction,,30/03/2015,"10,828.07",,Highway Equipment & Materials�
5195840,INSPIREDSPACES TAMESIDE LTD,Asset & Investment Partnership Management,Director of Place,Furniture And Fittings,,30/03/2015,"91,296.98",,Consultancy
5195840,INSPIREDSPACES TAMESIDE LTD,Asset & Investment Partnership Management,Director of Place,Other Works,,30/03/2015,"216,399.11",,Consultancy
5195840,INSPIREDSPACES TAMESIDE LTD,Asset & Investment Partnership Management,Director of Place,Survey/Surveyors Fees,,30/03/2015,"1,002.80",,Consultancy
5195843,INSPIREDSPACES TAMESIDE LTD,Asset & Investment Partnership Management,Director of Place,Other Works,,30/03/2015,"74,696.05",,Consultancy
5195843,INSPIREDSPACES TAMESIDE LTD,Asset & Investment Partnership Management,Director of Place,Survey/Surveyors Fees,,30/03/2015,"7,001.07",,Consultancy
5195887,INSPIREDSPACES TAMESIDE LTD,Asset & Investment Partnership Management,Director of Place,Other Works,,30/03/2015,"241,264.26",,Consultancy
470609,P P O'CONNOR,Multiple Heads of Service,Multiple Strategic Directorates,Tax Retained Sub Contractors,Business Payment,30/03/2015,"-12,134.91",,Public Bodies
5188891,TRANSPORT FOR GREATER MANCHESTER,Multiple Heads of Service,Multiple Strategic Directorates,Traffic Signals,,30/03/2015,640,,Transport
5192991,ROCOM,Multiple Heads of Service,Multiple Strategic Directorates,Computer Hardware,,30/03/2015,"1,038.95",,Information Communication Technology
5194395,DOCUMENT AND DATA SHRED LTD,Multiple Heads of Service,Multiple Strategic Directorates,Waste Disposal Fees,,30/03/2015,570,,Environmental Services
5195428,AGGREGATE INDUSTRIES UK LIMITED,Multiple Heads of Service,Multiple Strategic Directorates,Highway Construction,,30/03/2015,"119,757.05",,Highway Equipment & Materials�
5195887,INSPIREDSPACES TAMESIDE LTD,Multiple Heads of Service,Multiple Strategic Directorates,Other Works,,30/03/2015,"731,321.39",,Consultancy
5195595,BURY MBC,Adult Social Care,Director of People,Room Hire,,31/03/2015,"1,520.72",,Unclassifiable
5195993,FRIENDS OF WATERLOO PARK,Corporate Costs,Corporate Costs,Contributions,,31/03/2015,500,,Financial Services
5195994,FRIENDS OF WATERLOO PARK,Corporate Costs,Corporate Costs,Contributions,,31/03/2015,500,,Financial Services
5196001,DUKINFIELD BRASS BAND FUND,Corporate Costs,Corporate Costs,Contributions,,31/03/2015,500,,Leisure Services
5195669,MR AUSTIN WELCH,Exchequer,Director of Finance,Legal Fees,Business Payment,31/03/2015,"4,088.00",,Unclassifiable
5195998,ROYAL MAIL GROUP PLC,Exchequer,Director of Finance,Postages,,31/03/2015,"1,010.04",,Mail Services
5195934,COMPLETE BACKGROUND SCREENING LTD,Governance,Director of Governance,Professional Services,,31/03/2015,"3,286.50",,Unclassifiable
5189966, ,Adult Social Care,Director of People,Homecare Fees,Redacted Supplier,31/03/2015,639.96,,Redacted
5193880,SHERIDAN LIFTS LIMITED,Adult Social Care,Director of People,Building Repairs,,31/03/2015,"1,660.00",,Building Construction
5195375,MR KELVIN RUTLEDGE QC,Adult Social Care,Director of People,Legal Fees,Business Payment,31/03/2015,800,,Unclassifiable
5195471,MR KELVIN RUTLEDGE QC,Adult Social Care,Director of People,Legal Fees,Business Payment,31/03/2015,"1,550.00",,Unclassifiable
5195668,TAMESIDE HOSPITAL NHS FOUNDATION TRUST,Adult Social Care,Director of People,Staff Car Park Passes,,31/03/2015,"7,200.00",,Medical
5195461,MISS VANESSA LAU,Childrens Services,Director of People,Legal Fees,Business Payment,31/03/2015,900,,Unclassifiable
5195473,MISS RACHAEL HEPPENSTALL,Childrens Services,Director of People,Legal Fees,Business Payment,31/03/2015,"2,600.00",,Unclassifiable
5195459,OLDHAM COLLEGE,Education,Director of People,Professional Services,,31/03/2015,"14,180.53",,Education
5195561,SCOPE,Education,Director of People,Professional Services,,31/03/2015,"14,838.72",,Unclassifiable
5195631,THE MANCHESTER COLLEGE,Education,Director of People,Professional Services,,31/03/2015,"7,939.08",,Non 3rd Party spend  
5196003,PAYPOINT COLLECTIONS LTD,Stronger Communities,Director of People,Emergency Grant Payments,,31/03/2015,"1,240.00",,Unclassifiable
5192290,PAT HIGGINS LTD,Asset & Investment Partnership Management,Director of Place,Professional Services,,31/03/2015,"48,042.50",,Facilities & Management Services
5194894,SOUTHERN ELECTRIC GAS,Asset & Investment Partnership Management,Director of Place,Electricity,,31/03/2015,564.95,,Public Bodies
5194997,SOUTHERN ELECTRIC GAS,Asset & Investment Partnership Management,Director of Place,Electricity,,31/03/2015,564.95,,Public Bodies
5195441,HM REVENUES AND CUSTOMS ONLY 508467318MD,Asset & Investment Partnership Management,Director of Place,Fees,,31/03/2015,"2,125.00",,Unclassifiable
5195981,INSPIREDSPACES TAMESIDE LTD,Asset & Investment Partnership Management,Director of Place,Building Repairs,,31/03/2015,"6,022.80",,Consultancy
5195988,INSPIREDSPACES TAMESIDE LTD,Asset & Investment Partnership Management,Director of Place,Hire Of Rooms,,31/03/2015,"-16,629.76",,Consultancy
5195988,INSPIREDSPACES TAMESIDE LTD,Asset & Investment Partnership Management,Director of Place,PFI Facilities Management Services,,31/03/2015,"-664,376.75",,Consultancy
5195990,INSPIREDSPACES TAMESIDE(PROJECTCO1) LTD,Asset & Investment Partnership Management,Director of Place,Free School Meal Costs,,31/03/2015,"6,471.85",,"Works - Construction, Repair & Maintenance"
5195990,INSPIREDSPACES TAMESIDE(PROJECTCO1) LTD,Asset & Investment Partnership Management,Director of Place,Unitary Charge Payments,,31/03/2015,"493,869.08",,"Works - Construction, Repair & Maintenance"
5195990,INSPIREDSPACES TAMESIDE(PROJECTCO1) LTD,Asset & Investment Partnership Management,Director of Place,Utilities,,31/03/2015,"30,618.05",,"Works - Construction, Repair & Maintenance"
5195991,PYRAMID SCHOOLS (TAMESIDE) LTD,Asset & Investment Partnership Management,Director of Place,Free School Meal Costs,,31/03/2015,"42,092.63",,"Works - Construction, Repair & Maintenance"
5195991,PYRAMID SCHOOLS (TAMESIDE) LTD,Asset & Investment Partnership Management,Director of Place,PFI FM Fees and Insurance Costs,,31/03/2015,"3,999.88",,"Works - Construction, Repair & Maintenance"
5195991,PYRAMID SCHOOLS (TAMESIDE) LTD,Asset & Investment Partnership Management,Director of Place,Unitary Charge Payments,,31/03/2015,"265,117.87",,"Works - Construction, Repair & Maintenance"
5195991,PYRAMID SCHOOLS (TAMESIDE) LTD,Asset & Investment Partnership Management,Director of Place,Utilities,,31/03/2015,"8,102.18",,"Works - Construction, Repair & Maintenance"
5195992,INSPIREDSPACES TAMESIDE (PROJECTCO2) LTD,Asset & Investment Partnership Management,Director of Place,Free School Meal Costs,,31/03/2015,"13,751.40",,"Works - Construction, Repair & Maintenance"
